Workbook

Sheet Catalogue 1 (hidden)
A1: Catégorie 1
B4: Code | C4: Nom | D4: Description | E4: Prix | F4: Qté | G4: Prix total
B5: CODE_PRODUIT_1 | C5: Produit 1 | D5: Decription produit 1 | E5: 25 | F5: 0 | G5: =E5*F5 -> 0
B6: CODE_PRODUIT_2 | C6: Produit 2 | D6: Decription produit 2 | E6: 142 | G6: =E6*F6 -> 0
B7: CODE_PRODUIT_3 | C7: Produit 3 | D7: Decription produit 3 | E7: 63 | F7: 2 | G7: 126
A10: Catégorie 2
B12: - Sous catégorie 2-1
B14: Code | C14: Nom | D14: Description | E14: Prix | F14: Qté | G14: Prix total
B15: CODE_PRODUIT_4 | C15: Produit 4 | D15: Decription produit 4 | E15: 16 | G15: =E15*F15 -> 0
B16: CODE_PRODUIT_5 | C16: Produit 5 | D16: Decription produit 5 | E16: 37 | F16: 7 | G16: =E16*F16 -> 259
B19: - Sous catégorie 2-2
B21: Code | C21: Nom | D21: Description | E21: Prix | F21: Qté | G21: Prix total
B22: CODE_PRODUIT_6 | C22: Produit 6 | D22: Decription produit 6 | E22: 16 | F22: 0 | G22: =E22*F22 -> 0
B23: CODE_PRODUIT_7 | C23: Produit 7 | D23: Decription produit 7 | E23: 59 | F23: 1 | G23: =E23*F23 -> 59
B24: CODE_PRODUIT_8 | C24: Produit 8 | D24: Decription produit 8 | E24: 44 | G24: 0
B25: CODE_PRODUIT_9 | C25: Produit 9 | D25: Decription produit 9 | E25: 13 | F25: 3 | G25: 39

Sheet Catalogue 2 (hidden)
A1: Catégorie 3
B4: Code | C4: Nom | D4: Description | E4: Prix | F4: Qté | G4: Prix total
B5: CODE_PRODUIT_A | C5: Produit A | D5: Decription produit A | E5: 7 | F5: 0 | G5: =E5*F5 -> 0
B6: CODE_PRODUIT_B | C6: Produit B | D6: Decription produit B | E6: 32 | G6: =E6*F6 -> 0
B7: CODE_PRODUIT_C | C7: Produit C | D7: Decription produit C | E7: 45 | F7: 2 | G7: 90
A10: Catégorie 4
B12: - Sous catégorie 4-1
B14: Code | C14: Nom | D14: Description | E14: Prix | F14: Qté | G14: Prix total
B15: CODE_PRODUIT_D | C15: Produit D | D15: Decription produit D | E15: 3.5 | F15: 0 | G15: =E15*F15 -> 0
B16: CODE_PRODUIT_E | C16: Produit E | D16: Decription produit E | E16: 12 | F16: 4 | G16: =E16*F16 -> 48
B17: CODE_PRODUIT_F | C17: Produit F | D17: Decription produit F | E17: 10 | G17: 0
B18: CODE_PRODUIT_G | C18: Produit G | D18: Decription produit G | E18: 51 | G18: 0
B21: - Sous catégorie 4-2
B23: Code | C23: Nom | D23: Description | E23: Prix | F23: Qté | G23: Prix total
B24: CODE_PRODUIT_H | C24: Produit H | D24: Decription produit H | E24: 10 | F24: 1 | G24: =E24*F24 -> 10
B25: CODE_PRODUIT_I | C25: Produit I | D25: Decription produit I | E25: 4 | G25: =E25*F25 -> 0
B26: CODE_PRODUIT_J | C26: Produit J | D26: Decription produit J | E26: 23 | F26: 3 | G26: 69

Sheet Devis-base
F1: DATE: | G1: 2017-05-12
E2: ="Devis "&G2&" à "&XFC2 -> Devis 1001 à 9189 | F2: No. Devis: | G2: 1001 | I2: =G2+1 -> 1002 | K2: =I2+1 -> 1003 | M2: =K2+1 -> 1004 | O2: =M2+1 -> 1005 | Q2: =O2+1 -> 1006 | S2: =Q2+1 -> 1007 | U2: =S2+1 -> 1008 | W2: =U2+1 -> 1009 | Y2: =W2+1 -> 1010 | AA2: =Y2+1 -> 1011 | AC2: =AA2+1 -> 1012 | AE2: =AC2+1 -> 1013 | AG2: =AE2+1 -> 1014 | AI2: =AG2+1 -> 1015 | AK2: =AI2+1 -> 1016 | AM2: =AK2+1 -> 1017 | AO2: =AM2+1 -> 1018 | AQ2: =AO2+1 -> 1019 | AS2: =AQ2+1 -> 1020 | AU2: =AS2+1 -> 1021 | AW2: =AU2+1 -> 1022 | AY2: =AW2+1 -> 1023 | BA2: =AY2+1 -> 1024 | BC2: =BA2+1 -> 1025 | BE2: =BC2+1 -> 1026 | BG2: =BE2+1 -> 1027 | BI2: =BG2+1 -> 1028 | BK2: =BI2+1 -> 1029 | BM2: =BK2+1 -> 1030 | BO2: =BM2+1 -> 1031 | BQ2: =BO2+1 -> 1032 | BS2: =BQ2+1 -> 1033 | BU2: =BS2+1 -> 1034 | BW2: =BU2+1 -> 1035 | BY2: =BW2+1 -> 1036 | CA2: =BY2+1 -> 1037 | CC2: =CA2+1 -> 1038 | CE2: =CC2+1 -> 1039 | CG2: =CE2+1 -> 1040 | CI2: =CG2+1 -> 1041 | CK2: =CI2+1 -> 1042 | CM2: =CK2+1 -> 1043 | CO2: =CM2+1 -> 1044 | CQ2: =CO2+1 -> 1045 | CS2: =CQ2+1 -> 1046 | CU2: =CS2+1 -> 1047 | CW2: =CU2+1 -> 1048 | CY2: =CW2+1 -> 1049 | DA2: =CY2+1 -> 1050 | DC2: =DA2+1 -> 1051 | DE2: =DC2+1 -> 1052 | DG2: =DE2+1 -> 1053 | DI2: =DG2+1 -> 1054 | DK2: =DI2+1 -> 1055 | DM2: =DK2+1 -> 1056 | DO2: =DM2+1 -> 1057 | DQ2: =DO2+1 -> 1058 | DS2: =DQ2+1 -> 1059 | DU2: =DS2+1 -> 1060 | DW2: =DU2+1 -> 1061 | DY2: =DW2+1 -> 1062 | EA2: =DY2+1 -> 1063 | EC2: =EA2+1 -> 1064 | EE2: =EC2+1 -> 1065 | EG2: =EE2+1 -> 1066 | EI2: =EG2+1 -> 1067 | EK2: =EI2+1 -> 1068 | EM2: =EK2+1 -> 1069 | EO2: =EM2+1 -> 1070 | EQ2: =EO2+1 -> 1071 | ES2: =EQ2+1 -> 1072 | EU2: =ES2+1 -> 1073 | EW2: =EU2+1 -> 1074 | EY2: =EW2+1 -> 1075 | FA2: =EY2+1 -> 1076 | FC2: =FA2+1 -> 1077 | FE2: =FC2+1 -> 1078 | FG2: =FE2+1 -> 1079 | FI2: =FG2+1 -> 1080 | FK2: =FI2+1 -> 1081 | FM2: =FK2+1 -> 1082 | FO2: =FM2+1 -> 1083 | FQ2: =FO2+1 -> 1084 | FS2: =FQ2+1 -> 1085 | FU2: =FS2+1 -> 1086 | FW2: =FU2+1 -> 1087 | FY2: =FW2+1 -> 1088 | GA2: =FY2+1 -> 1089 | GC2: =GA2+1 -> 1090 | GE2: =GC2+1 -> 1091 | GG2: =GE2+1 -> 1092 | GI2: =GG2+1 -> 1093 | GK2: =GI2+1 -> 1094 | GM2: =GK2+1 -> 1095 | GO2: =GM2+1 -> 1096 | GQ2: =GO2+1 -> 1097 | GS2: =GQ2+1 -> 1098 | GU2: =GS2+1 -> 1099 | GW2: =GU2+1 -> 1100 | GY2: =GW2+1 -> 1101 | HA2: =GY2+1 -> 1102 | HC2: =HA2+1 -> 1103 | HE2: =HC2+1 -> 1104 | HG2: =HE2+1 -> 1105 | HI2: =HG2+1 -> 1106 | HK2: =HI2+1 -> 1107 | HM2: =HK2+1 -> 1108 | HO2: =HM2+1 -> 1109 | HQ2: =HO2+1 -> 1110 | HS2: =HQ2+1 -> 1111 | HU2: =HS2+1 -> 1112 | HW2: =HU2+1 -> 1113 | HY2: =HW2+1 -> 1114 | IA2: =HY2+1 -> 1115 | IC2: =IA2+1 -> 1116 | IE2: =IC2+1 -> 1117 | IG2: =IE2+1 -> 1118 | II2: =IG2+1 -> 1119 | IK2: =II2+1 -> 1120 | IM2: =IK2+1 -> 1121 | IO2: =IM2+1 -> 1122 | IQ2: =IO2+1 -> 1123 | IS2: =IQ2+1 -> 1124 | IU2: =IS2+1 -> 1125 | IW2: =IU2+1 -> 1126 | IY2: =IW2+1 -> 1127 | JA2: =IY2+1 -> 1128 | JC2: =JA2+1 -> 1129 | JE2: =JC2+1 -> 1130 | JG2: =JE2+1 -> 1131 | JI2: =JG2+1 -> 1132 | JK2: =JI2+1 -> 1133 | JM2: =JK2+1 -> 1134 | JO2: =JM2+1 -> 1135 | JQ2: =JO2+1 -> 1136 | JS2: =JQ2+1 -> 1137 | JU2: =JS2+1 -> 1138 | JW2: =JU2+1 -> 1139 | JY2: =JW2+1 -> 1140 | KA2: =JY2+1 -> 1141 | KC2: =KA2+1 -> 1142 | KE2: =KC2+1 -> 1143 | KG2: =KE2+1 -> 1144 | KI2: =KG2+1 -> 1145 | KK2: =KI2+1 -> 1146 | KM2: =KK2+1 -> 1147 | KO2: =KM2+1 -> 1148 | KQ2: =KO2+1 -> 1149 | KS2: =KQ2+1 -> 1150 | KU2: =KS2+1 -> 1151 | KW2: =KU2+1 -> 1152 | KY2: =KW2+1 -> 1153 | LA2: =KY2+1 -> 1154 | LC2: =LA2+1 -> 1155 | LE2: =LC2+1 -> 1156 | LG2: =LE2+1 -> 1157 | LI2: =LG2+1 -> 1158 | LK2: =LI2+1 -> 1159 | LM2: =LK2+1 -> 1160 | LO2: =LM2+1 -> 1161 | LQ2: =LO2+1 -> 1162 | LS2: =LQ2+1 -> 1163 | LU2: =LS2+1 -> 1164 | LW2: =LU2+1 -> 1165 | LY2: =LW2+1 -> 1166 | MA2: =LY2+1 -> 1167 | MC2: =MA2+1 -> 1168 | ME2: =MC2+1 -> 1169 | MG2: =ME2+1 -> 1170 | MI2: =MG2+1 -> 1171 | MK2: =MI2+1 -> 1172 | MM2: =MK2+1 -> 1173 | MO2: =MM2+1 -> 1174 | MQ2: =MO2+1 -> 1175 | MS2: =MQ2+1 -> 1176 | MU2: =MS2+1 -> 1177 | MW2: =MU2+1 -> 1178 | MY2: =MW2+1 -> 1179 | NA2: =MY2+1 -> 1180 | NC2: =NA2+1 -> 1181 | NE2: =NC2+1 -> 1182 | NG2: =NE2+1 -> 1183 | NI2: =NG2+1 -> 1184 | NK2: =NI2+1 -> 1185 | NM2: =NK2+1 -> 1186 | NO2: =NM2+1 -> 1187 | NQ2: =NO2+1 -> 1188 | NS2: =NQ2+1 -> 1189 | NU2: =NS2+1 -> 1190 | NW2: =NU2+1 -> 1191 | NY2: =NW2+1 -> 1192 | OA2: =NY2+1 -> 1193 | OC2: =OA2+1 -> 1194 | OE2: =OC2+1 -> 1195 | OG2: =OE2+1 -> 1196 | OI2: =OG2+1 -> 1197 | OK2: =OI2+1 -> 1198 | OM2: =OK2+1 -> 1199 | OO2: =OM2+1 -> 1200 | OQ2: =OO2+1 -> 1201 | OS2: =OQ2+1 -> 1202 | OU2: =OS2+1 -> 1203 | OW2: =OU2+1 -> 1204 | OY2: =OW2+1 -> 1205 | PA2: =OY2+1 -> 1206 | PC2: =PA2+1 -> 1207 | PE2: =PC2+1 -> 1208 | PG2: =PE2+1 -> 1209 | PI2: =PG2+1 -> 1210 | PK2: =PI2+1 -> 1211 | PM2: =PK2+1 -> 1212 | PO2: =PM2+1 -> 1213 | PQ2: =PO2+1 -> 1214 | PS2: =PQ2+1 -> 1215 | PU2: =PS2+1 -> 1216 | PW2: =PU2+1 -> 1217 | PY2: =PW2+1 -> 1218 | QA2: =PY2+1 -> 1219 | QC2: =QA2+1 -> 1220 | QE2: =QC2+1 -> 1221 | QG2: =QE2+1 -> 1222 | QI2: =QG2+1 -> 1223 | QK2: =QI2+1 -> 1224 | QM2: =QK2+1 -> 1225 | QO2: =QM2+1 -> 1226 | QQ2: =QO2+1 -> 1227 | QS2: =QQ2+1 -> 1228 | QU2: =QS2+1 -> 1229 | QW2: =QU2+1 -> 1230 | QY2: =QW2+1 -> 1231 | RA2: =QY2+1 -> 1232 | RC2: =RA2+1 -> 1233 | RE2: =RC2+1 -> 1234 | RG2: =RE2+1 -> 1235 | RI2: =RG2+1 -> 1236 | RK2: =RI2+1 -> 1237 | RM2: =RK2+1 -> 1238 | RO2: =RM2+1 -> 1239 | RQ2: =RO2+1 -> 1240 | RS2: =RQ2+1 -> 1241 | RU2: =RS2+1 -> 1242 | RW2: =RU2+1 -> 1243 | RY2: =RW2+1 -> 1244 | SA2: =RY2+1 -> 1245 | SC2: =SA2+1 -> 1246 | SE2: =SC2+1 -> 1247 | SG2: =SE2+1 -> 1248 | SI2: =SG2+1 -> 1249 | SK2: =SI2+1 -> 1250 | SM2: =SK2+1 -> 1251 | SO2: =SM2+1 -> 1252 | SQ2: =SO2+1 -> 1253 | SS2: =SQ2+1 -> 1254 | SU2: =SS2+1 -> 1255 | SW2: =SU2+1 -> 1256 | SY2: =SW2+1 -> 1257 | TA2: =SY2+1 -> 1258 | TC2: =TA2+1 -> 1259 | TE2: =TC2+1 -> 1260 | TG2: =TE2+1 -> 1261 | TI2: =TG2+1 -> 1262 | TK2: =TI2+1 -> 1263 | TM2: =TK2+1 -> 1264 | TO2: =TM2+1 -> 1265 | TQ2: =TO2+1 -> 1266 | TS2: =TQ2+1 -> 1267 | TU2: =TS2+1 -> 1268 | TW2: =TU2+1 -> 1269 | TY2: =TW2+1 -> 1270 | UA2: =TY2+1 -> 1271 | UC2: =UA2+1 -> 1272 | UE2: =UC2+1 -> 1273 | UG2: =UE2+1 -> 1274 | UI2: =UG2+1 -> 1275 | UK2: =UI2+1 -> 1276 | UM2: =UK2+1 -> 1277 | UO2: =UM2+1 -> 1278 | UQ2: =UO2+1 -> 1279 | US2: =UQ2+1 -> 1280 | UU2: =US2+1 -> 1281 | UW2: =UU2+1 -> 1282 | UY2: =UW2+1 -> 1283 | VA2: =UY2+1 -> 1284 | VC2: =VA2+1 -> 1285 | VE2: =VC2+1 -> 1286 | VG2: =VE2+1 -> 1287 | VI2: =VG2+1 -> 1288 | VK2: =VI2+1 -> 1289 | VM2: =VK2+1 -> 1290 | VO2: =VM2+1 -> 1291 | VQ2: =VO2+1 -> 1292 | VS2: =VQ2+1 -> 1293 | VU2: =VS2+1 -> 1294 | VW2: =VU2+1 -> 1295 | VY2: =VW2+1 -> 1296 | WA2: =VY2+1 -> 1297 | WC2: =WA2+1 -> 1298 | WE2: =WC2+1 -> 1299 | WG2: =WE2+1 -> 1300 | WI2: =WG2+1 -> 1301 | WK2: =WI2+1 -> 1302 | WM2: =WK2+1 -> 1303 | WO2: =WM2+1 -> 1304 | WQ2: =WO2+1 -> 1305 | WS2: =WQ2+1 -> 1306 | WU2: =WS2+1 -> 1307 | WW2: =WU2+1 -> 1308 | WY2: =WW2+1 -> 1309 | XA2: =WY2+1 -> 1310 | XC2: =XA2+1 -> 1311 | XE2: =XC2+1 -> 1312 | XG2: =XE2+1 -> 1313 | XI2: =XG2+1 -> 1314 | XK2: =XI2+1 -> 1315 | XM2: =XK2+1 -> 1316 | XO2: =XM2+1 -> 1317 | XQ2: =XO2+1 -> 1318 | XS2: =XQ2+1 -> 1319 | XU2: =XS2+1 -> 1320 | XW2: =XU2+1 -> 1321 | XY2: =XW2+1 -> 1322 | YA2: =XY2+1 -> 1323 | YC2: =YA2+1 -> 1324 | YE2: =YC2+1 -> 1325 | YG2: =YE2+1 -> 1326 | YI2: =YG2+1 -> 1327 | YK2: =YI2+1 -> 1328 | YM2: =YK2+1 -> 1329 | YO2: =YM2+1 -> 1330 | YQ2: =YO2+1 -> 1331 | YS2: =YQ2+1 -> 1332 | YU2: =YS2+1 -> 1333 | YW2: =YU2+1 -> 1334 | YY2: =YW2+1 -> 1335 | ZA2: =YY2+1 -> 1336 | ZC2: =ZA2+1 -> 1337 | ZE2: =ZC2+1 -> 1338 | ZG2: =ZE2+1 -> 1339 | ZI2: =ZG2+1 -> 1340 | ZK2: =ZI2+1 -> 1341 | ZM2: =ZK2+1 -> 1342 | ZO2: =ZM2+1 -> 1343 | ZQ2: =ZO2+1 -> 1344 | ZS2: =ZQ2+1 -> 1345 | ZU2: =ZS2+1 -> 1346 | ZW2: =ZU2+1 -> 1347 | ZY2: =ZW2+1 -> 1348 | AAA2: =ZY2+1 -> 1349 | AAC2: =AAA2+1 -> 1350 | AAE2: =AAC2+1 -> 1351 | AAG2: =AAE2+1 -> 1352 | AAI2: =AAG2+1 -> 1353 | AAK2: =AAI2+1 -> 1354 | AAM2: =AAK2+1 -> 1355 | AAO2: =AAM2+1 -> 1356 | AAQ2: =AAO2+1 -> 1357 | AAS2: =AAQ2+1 -> 1358 | AAU2: =AAS2+1 -> 1359 | AAW2: =AAU2+1 -> 1360 | AAY2: =AAW2+1 -> 1361 | ABA2: =AAY2+1 -> 1362 | ABC2: =ABA2+1 -> 1363 | ABE2: =ABC2+1 -> 1364 | ABG2: =ABE2+1 -> 1365 | ABI2: =ABG2+1 -> 1366 | ABK2: =ABI2+1 -> 1367 | ABM2: =ABK2+1 -> 1368 | ABO2: =ABM2+1 -> 1369 | ABQ2: =ABO2+1 -> 1370 | ABS2: =ABQ2+1 -> 1371 | ABU2: =ABS2+1 -> 1372 | ABW2: =ABU2+1 -> 1373 | ABY2: =ABW2+1 -> 1374 | ACA2: =ABY2+1 -> 1375 | ACC2: =ACA2+1 -> 1376 | ACE2: =ACC2+1 -> 1377 | ACG2: =ACE2+1 -> 1378 | ACI2: =ACG2+1 -> 1379 | ACK2: =ACI2+1 -> 1380 | ACM2: =ACK2+1 -> 1381 | ACO2: =ACM2+1 -> 1382 | ACQ2: =ACO2+1 -> 1383 | ACS2: =ACQ2+1 -> 1384 | ACU2: =ACS2+1 -> 1385 | ACW2: =ACU2+1 -> 1386 | ACY2: =ACW2+1 -> 1387 | ADA2: =ACY2+1 -> 1388 | ADC2: =ADA2+1 -> 1389 | ADE2: =ADC2+1 -> 1390 | ADG2: =ADE2+1 -> 1391 | ADI2: =ADG2+1 -> 1392 | ADK2: =ADI2+1 -> 1393 | ADM2: =ADK2+1 -> 1394 | ADO2: =ADM2+1 -> 1395 | ADQ2: =ADO2+1 -> 1396 | ADS2: =ADQ2+1 -> 1397 | ADU2: =ADS2+1 -> 1398 | ADW2: =ADU2+1 -> 1399 | ADY2: =ADW2+1 -> 1400 | AEA2: =ADY2+1 -> 1401 | AEC2: =AEA2+1 -> 1402 | AEE2: =AEC2+1 -> 1403 | AEG2: =AEE2+1 -> 1404 | AEI2: =AEG2+1 -> 1405 | AEK2: =AEI2+1 -> 1406 | AEM2: =AEK2+1 -> 1407 | AEO2: =AEM2+1 -> 1408 | AEQ2: =AEO2+1 -> 1409 | AES2: =AEQ2+1 -> 1410 | AEU2: =AES2+1 -> 1411 | AEW2: =AEU2+1 -> 1412 | AEY2: =AEW2+1 -> 1413 | AFA2: =AEY2+1 -> 1414 | AFC2: =AFA2+1 -> 1415 | AFE2: =AFC2+1 -> 1416 | AFG2: =AFE2+1 -> 1417 | AFI2: =AFG2+1 -> 1418 | AFK2: =AFI2+1 -> 1419 | AFM2: =AFK2+1 -> 1420 | AFO2: =AFM2+1 -> 1421 | AFQ2: =AFO2+1 -> 1422 | AFS2: =AFQ2+1 -> 1423 | AFU2: =AFS2+1 -> 1424 | AFW2: =AFU2+1 -> 1425 | AFY2: =AFW2+1 -> 1426 | AGA2: =AFY2+1 -> 1427 | AGC2: =AGA2+1 -> 1428 | AGE2: =AGC2+1 -> 1429 | AGG2: =AGE2+1 -> 1430 | AGI2: =AGG2+1 -> 1431 | AGK2: =AGI2+1 -> 1432 | AGM2: =AGK2+1 -> 1433 | AGO2: =AGM2+1 -> 1434 | AGQ2: =AGO2+1 -> 1435 | AGS2: =AGQ2+1 -> 1436 | AGU2: =AGS2+1 -> 1437 | AGW2: =AGU2+1 -> 1438 | AGY2: =AGW2+1 -> 1439 | AHA2: =AGY2+1 -> 1440 | AHC2: =AHA2+1 -> 1441 | AHE2: =AHC2+1 -> 1442 | AHG2: =AHE2+1 -> 1443 | AHI2: =AHG2+1 -> 1444 | AHK2: =AHI2+1 -> 1445 | AHM2: =AHK2+1 -> 1446 | AHO2: =AHM2+1 -> 1447 | AHQ2: =AHO2+1 -> 1448 | AHS2: =AHQ2+1 -> 1449 | AHU2: =AHS2+1 -> 1450 | AHW2: =AHU2+1 -> 1451 | AHY2: =AHW2+1 -> 1452 | AIA2: =AHY2+1 -> 1453 | AIC2: =AIA2+1 -> 1454 | AIE2: =AIC2+1 -> 1455 | AIG2: =AIE2+1 -> 1456 | AII2: =AIG2+1 -> 1457 | AIK2: =AII2+1 -> 1458 | AIM2: =AIK2+1 -> 1459 | AIO2: =AIM2+1 -> 1460 | AIQ2: =AIO2+1 -> 1461 | AIS2: =AIQ2+1 -> 1462 | AIU2: =AIS2+1 -> 1463 | AIW2: =AIU2+1 -> 1464 | AIY2: =AIW2+1 -> 1465 | AJA2: =AIY2+1 -> 1466 | AJC2: =AJA2+1 -> 1467 | AJE2: =AJC2+1 -> 1468 | AJG2: =AJE2+1 -> 1469 | AJI2: =AJG2+1 -> 1470 | AJK2: =AJI2+1 -> 1471 | AJM2: =AJK2+1 -> 1472 | AJO2: =AJM2+1 -> 1473 | AJQ2: =AJO2+1 -> 1474 | AJS2: =AJQ2+1 -> 1475 | AJU2: =AJS2+1 -> 1476 | AJW2: =AJU2+1 -> 1477 | AJY2: =AJW2+1 -> 1478 | AKA2: =AJY2+1 -> 1479 | AKC2: =AKA2+1 -> 1480 | AKE2: =AKC2+1 -> 1481 | AKG2: =AKE2+1 -> 1482 | AKI2: =AKG2+1 -> 1483 | AKK2: =AKI2+1 -> 1484 | AKM2: =AKK2+1 -> 1485 | AKO2: =AKM2+1 -> 1486 | AKQ2: =AKO2+1 -> 1487 | AKS2: =AKQ2+1 -> 1488 | AKU2: =AKS2+1 -> 1489 | AKW2: =AKU2+1 -> 1490 | AKY2: =AKW2+1 -> 1491 | ALA2: =AKY2+1 -> 1492 | ALC2: =ALA2+1 -> 1493 | ALE2: =ALC2+1 -> 1494 | ALG2: =ALE2+1 -> 1495 | ALI2: =ALG2+1 -> 1496 | ALK2: =ALI2+1 -> 1497 | ALM2: =ALK2+1 -> 1498 | ALO2: =ALM2+1 -> 1499 | ALQ2: =ALO2+1 -> 1500 | ALS2: =ALQ2+1 -> 1501 | ALU2: =ALS2+1 -> 1502 | ALW2: =ALU2+1 -> 1503 | ALY2: =ALW2+1 -> 1504 | AMA2: =ALY2+1 -> 1505 | AMC2: =AMA2+1 -> 1506 | AME2: =AMC2+1 -> 1507 | AMG2: =AME2+1 -> 1508 | AMI2: =AMG2+1 -> 1509 | AMK2: =AMI2+1 -> 1510 | AMM2: =AMK2+1 -> 1511 | AMO2: =AMM2+1 -> 1512 | AMQ2: =AMO2+1 -> 1513 | AMS2: =AMQ2+1 -> 1514 | AMU2: =AMS2+1 -> 1515 | AMW2: =AMU2+1 -> 1516 | AMY2: =AMW2+1 -> 1517 | ANA2: =AMY2+1 -> 1518 | ANC2: =ANA2+1 -> 1519 | ANE2: =ANC2+1 -> 1520 | ANG2: =ANE2+1 -> 1521 | ANI2: =ANG2+1 -> 1522 | ANK2: =ANI2+1 -> 1523 | ANM2: =ANK2+1 -> 1524 | ANO2: =ANM2+1 -> 1525 | ANQ2: =ANO2+1 -> 1526 | ANS2: =ANQ2+1 -> 1527 | ANU2: =ANS2+1 -> 1528 | ANW2: =ANU2+1 -> 1529 | ANY2: =ANW2+1 -> 1530 | AOA2: =ANY2+1 -> 1531 | AOC2: =AOA2+1 -> 1532 | AOE2: =AOC2+1 -> 1533 | AOG2: =AOE2+1 -> 1534 | AOI2: =AOG2+1 -> 1535 | AOK2: =AOI2+1 -> 1536 | AOM2: =AOK2+1 -> 1537 | AOO2: =AOM2+1 -> 1538 | AOQ2: =AOO2+1 -> 1539 | AOS2: =AOQ2+1 -> 1540 | AOU2: =AOS2+1 -> 1541 | AOW2: =AOU2+1 -> 1542 | AOY2: =AOW2+1 -> 1543 | APA2: =AOY2+1 -> 1544 | APC2: =APA2+1 -> 1545 | APE2: =APC2+1 -> 1546 | APG2: =APE2+1 -> 1547 | API2: =APG2+1 -> 1548 | APK2: =API2+1 -> 1549 | APM2: =APK2+1 -> 1550 | APO2: =APM2+1 -> 1551 | APQ2: =APO2+1 -> 1552 | APS2: =APQ2+1 -> 1553 | APU2: =APS2+1 -> 1554 | APW2: =APU2+1 -> 1555 | APY2: =APW2+1 -> 1556 | AQA2: =APY2+1 -> 1557 | AQC2: =AQA2+1 -> 1558 | AQE2: =AQC2+1 -> 1559 | AQG2: =AQE2+1 -> 1560 | AQI2: =AQG2+1 -> 1561 | AQK2: =AQI2+1 -> 1562 | AQM2: =AQK2+1 -> 1563 | AQO2: =AQM2+1 -> 1564 | AQQ2: =AQO2+1 -> 1565 | AQS2: =AQQ2+1 -> 1566 | AQU2: =AQS2+1 -> 1567 | AQW2: =AQU2+1 -> 1568 | AQY2: =AQW2+1 -> 1569 | ARA2: =AQY2+1 -> 1570 | ARC2: =ARA2+1 -> 1571 | ARE2: =ARC2+1 -> 1572 | ARG2: =ARE2+1 -> 1573 | ARI2: =ARG2+1 -> 1574 | ARK2: =ARI2+1 -> 1575 | ARM2: =ARK2+1 -> 1576 | ARO2: =ARM2+1 -> 1577 | ARQ2: =ARO2+1 -> 1578 | ARS2: =ARQ2+1 -> 1579 | ARU2: =ARS2+1 -> 1580 | ARW2: =ARU2+1 -> 1581 | ARY2: =ARW2+1 -> 1582 | ASA2: =ARY2+1 -> 1583 | ASC2: =ASA2+1 -> 1584 | ASE2: =ASC2+1 -> 1585 | ASG2: =ASE2+1 -> 1586 | ASI2: =ASG2+1 -> 1587 | ASK2: =ASI2+1 -> 1588 | ASM2: =ASK2+1 -> 1589 | ASO2: =ASM2+1 -> 1590 | ASQ2: =ASO2+1 -> 1591 | ASS2: =ASQ2+1 -> 1592 | ASU2: =ASS2+1 -> 1593 | ASW2: =ASU2+1 -> 1594 | ASY2: =ASW2+1 -> 1595 | ATA2: =ASY2+1 -> 1596 | ATC2: =ATA2+1 -> 1597 | ATE2: =ATC2+1 -> 1598 | ATG2: =ATE2+1 -> 1599 | ATI2: =ATG2+1 -> 1600 | ATK2: =ATI2+1 -> 1601 | ATM2: =ATK2+1 -> 1602 | ATO2: =ATM2+1 -> 1603 | ATQ2: =ATO2+1 -> 1604 | ATS2: =ATQ2+1 -> 1605 | ATU2: =ATS2+1 -> 1606 | ATW2: =ATU2+1 -> 1607 | ATY2: =ATW2+1 -> 1608 | AUA2: =ATY2+1 -> 1609 | AUC2: =AUA2+1 -> 1610 | AUE2: =AUC2+1 -> 1611 | AUG2: =AUE2+1 -> 1612 | AUI2: =AUG2+1 -> 1613 | AUK2: =AUI2+1 -> 1614 | AUM2: =AUK2+1 -> 1615 | AUO2: =AUM2+1 -> 1616 | AUQ2: =AUO2+1 -> 1617 | AUS2: =AUQ2+1 -> 1618 | AUU2: =AUS2+1 -> 1619 | AUW2: =AUU2+1 -> 1620 | AUY2: =AUW2+1 -> 1621 | AVA2: =AUY2+1 -> 1622 | AVC2: =AVA2+1 -> 1623 | AVE2: =AVC2+1 -> 1624 | AVG2: =AVE2+1 -> 1625 | AVI2: =AVG2+1 -> 1626 | AVK2: =AVI2+1 -> 1627 | AVM2: =AVK2+1 -> 1628 | AVO2: =AVM2+1 -> 1629 | AVQ2: =AVO2+1 -> 1630 | AVS2: =AVQ2+1 -> 1631 | AVU2: =AVS2+1 -> 1632 | AVW2: =AVU2+1 -> 1633 | AVY2: =AVW2+1 -> 1634 | AWA2: =AVY2+1 -> 1635 | AWC2: =AWA2+1 -> 1636 | AWE2: =AWC2+1 -> 1637 | AWG2: =AWE2+1 -> 1638 | AWI2: =AWG2+1 -> 1639 | AWK2: =AWI2+1 -> 1640 | AWM2: =AWK2+1 -> 1641 | AWO2: =AWM2+1 -> 1642 | AWQ2: =AWO2+1 -> 1643 | AWS2: =AWQ2+1 -> 1644 | AWU2: =AWS2+1 -> 1645 | AWW2: =AWU2+1 -> 1646 | AWY2: =AWW2+1 -> 1647 | AXA2: =AWY2+1 -> 1648 | AXC2: =AXA2+1 -> 1649 | AXE2: =AXC2+1 -> 1650 | AXG2: =AXE2+1 -> 1651 | AXI2: =AXG2+1 -> 1652 | AXK2: =AXI2+1 -> 1653 | AXM2: =AXK2+1 -> 1654 | AXO2: =AXM2+1 -> 1655 | AXQ2: =AXO2+1 -> 1656 | AXS2: =AXQ2+1 -> 1657 | AXU2: =AXS2+1 -> 1658 | AXW2: =AXU2+1 -> 1659 | AXY2: =AXW2+1 -> 1660 | AYA2: =AXY2+1 -> 1661 | AYC2: =AYA2+1 -> 1662 | AYE2: =AYC2+1 -> 1663 | AYG2: =AYE2+1 -> 1664 | AYI2: =AYG2+1 -> 1665 | AYK2: =AYI2+1 -> 1666 | AYM2: =AYK2+1 -> 1667 | AYO2: =AYM2+1 -> 1668 | AYQ2: =AYO2+1 -> 1669 | AYS2: =AYQ2+1 -> 1670 | AYU2: =AYS2+1 -> 1671 | AYW2: =AYU2+1 -> 1672 | AYY2: =AYW2+1 -> 1673 | AZA2: =AYY2+1 -> 1674 | AZC2: =AZA2+1 -> 1675 | AZE2: =AZC2+1 -> 1676 | AZG2: =AZE2+1 -> 1677 | AZI2: =AZG2+1 -> 1678 | AZK2: =AZI2+1 -> 1679 | AZM2: =AZK2+1 -> 1680 | AZO2: =AZM2+1 -> 1681 | AZQ2: =AZO2+1 -> 1682 | AZS2: =AZQ2+1 -> 1683 | AZU2: =AZS2+1 -> 1684 | AZW2: =AZU2+1 -> 1685 | AZY2: =AZW2+1 -> 1686 | BAA2: =AZY2+1 -> 1687 | BAC2: =BAA2+1 -> 1688 | BAE2: =BAC2+1 -> 1689 | BAG2: =BAE2+1 -> 1690 | BAI2: =BAG2+1 -> 1691 | BAK2: =BAI2+1 -> 1692 | BAM2: =BAK2+1 -> 1693 | BAO2: =BAM2+1 -> 1694 | BAQ2: =BAO2+1 -> 1695 | BAS2: =BAQ2+1 -> 1696 | BAU2: =BAS2+1 -> 1697 | BAW2: =BAU2+1 -> 1698 | BAY2: =BAW2+1 -> 1699 | BBA2: =BAY2+1 -> 1700 | BBC2: =BBA2+1 -> 1701 | BBE2: =BBC2+1 -> 1702 | BBG2: =BBE2+1 -> 1703 | BBI2: =BBG2+1 -> 1704 | BBK2: =BBI2+1 -> 1705 | BBM2: =BBK2+1 -> 1706 | BBO2: =BBM2+1 -> 1707 | BBQ2: =BBO2+1 -> 1708 | BBS2: =BBQ2+1 -> 1709 | BBU2: =BBS2+1 -> 1710 | BBW2: =BBU2+1 -> 1711 | BBY2: =BBW2+1 -> 1712 | BCA2: =BBY2+1 -> 1713 | BCC2: =BCA2+1 -> 1714 | BCE2: =BCC2+1 -> 1715 | BCG2: =BCE2+1 -> 1716 | BCI2: =BCG2+1 -> 1717 | BCK2: =BCI2+1 -> 1718 | BCM2: =BCK2+1 -> 1719 | BCO2: =BCM2+1 -> 1720 | BCQ2: =BCO2+1 -> 1721 | BCS2: =BCQ2+1 -> 1722 | BCU2: =BCS2+1 -> 1723 | BCW2: =BCU2+1 -> 1724 | BCY2: =BCW2+1 -> 1725 | BDA2: =BCY2+1 -> 1726 | BDC2: =BDA2+1 -> 1727 | BDE2: =BDC2+1 -> 1728 | BDG2: =BDE2+1 -> 1729 | BDI2: =BDG2+1 -> 1730 | BDK2: =BDI2+1 -> 1731 | BDM2: =BDK2+1 -> 1732 | BDO2: =BDM2+1 -> 1733 | BDQ2: =BDO2+1 -> 1734 | BDS2: =BDQ2+1 -> 1735 | BDU2: =BDS2+1 -> 1736 | BDW2: =BDU2+1 -> 1737 | BDY2: =BDW2+1 -> 1738 | BEA2: =BDY2+1 -> 1739 | BEC2: =BEA2+1 -> 1740 | BEE2: =BEC2+1 -> 1741 | BEG2: =BEE2+1 -> 1742 | BEI2: =BEG2+1 -> 1743 | BEK2: =BEI2+1 -> 1744 | BEM2: =BEK2+1 -> 1745 | BEO2: =BEM2+1 -> 1746 | BEQ2: =BEO2+1 -> 1747 | BES2: =BEQ2+1 -> 1748 | BEU2: =BES2+1 -> 1749 | BEW2: =BEU2+1 -> 1750 | BEY2: =BEW2+1 -> 1751 | BFA2: =BEY2+1 -> 1752 | BFC2: =BFA2+1 -> 1753 | BFE2: =BFC2+1 -> 1754 | BFG2: =BFE2+1 -> 1755 | BFI2: =BFG2+1 -> 1756 | BFK2: =BFI2+1 -> 1757 | BFM2: =BFK2+1 -> 1758 | BFO2: =BFM2+1 -> 1759 | BFQ2: =BFO2+1 -> 1760 | BFS2: =BFQ2+1 -> 1761 | BFU2: =BFS2+1 -> 1762 | BFW2: =BFU2+1 -> 1763 | BFY2: =BFW2+1 -> 1764 | BGA2: =BFY2+1 -> 1765 | BGC2: =BGA2+1 -> 1766 | BGE2: =BGC2+1 -> 1767 | BGG2: =BGE2+1 -> 1768 | BGI2: =BGG2+1 -> 1769 | BGK2: =BGI2+1 -> 1770 | BGM2: =BGK2+1 -> 1771 | BGO2: =BGM2+1 -> 1772 | BGQ2: =BGO2+1 -> 1773 | BGS2: =BGQ2+1 -> 1774 | BGU2: =BGS2+1 -> 1775 | BGW2: =BGU2+1 -> 1776 | BGY2: =BGW2+1 -> 1777 | BHA2: =BGY2+1 -> 1778 | BHC2: =BHA2+1 -> 1779 | BHE2: =BHC2+1 -> 1780 | BHG2: =BHE2+1 -> 1781 | BHI2: =BHG2+1 -> 1782 | BHK2: =BHI2+1 -> 1783 | BHM2: =BHK2+1 -> 1784 | BHO2: =BHM2+1 -> 1785 | BHQ2: =BHO2+1 -> 1786 | BHS2: =BHQ2+1 -> 1787 | BHU2: =BHS2+1 -> 1788 | BHW2: =BHU2+1 -> 1789 | BHY2: =BHW2+1 -> 1790 | BIA2: =BHY2+1 -> 1791 | BIC2: =BIA2+1 -> 1792 | BIE2: =BIC2+1 -> 1793 | BIG2: =BIE2+1 -> 1794 | BII2: =BIG2+1 -> 1795 | BIK2: =BII2+1 -> 1796 | BIM2: =BIK2+1 -> 1797 | BIO2: =BIM2+1 -> 1798 | BIQ2: =BIO2+1 -> 1799 | BIS2: =BIQ2+1 -> 1800 | BIU2: =BIS2+1 -> 1801 | BIW2: =BIU2+1 -> 1802 | BIY2: =BIW2+1 -> 1803 | BJA2: =BIY2+1 -> 1804 | BJC2: =BJA2+1 -> 1805 | BJE2: =BJC2+1 -> 1806 | BJG2: =BJE2+1 -> 1807 | BJI2: =BJG2+1 -> 1808 | BJK2: =BJI2+1 -> 1809 | BJM2: =BJK2+1 -> 1810 | BJO2: =BJM2+1 -> 1811 | BJQ2: =BJO2+1 -> 1812 | BJS2: =BJQ2+1 -> 1813 | BJU2: =BJS2+1 -> 1814 | BJW2: =BJU2+1 -> 1815 | BJY2: =BJW2+1 -> 1816 | BKA2: =BJY2+1 -> 1817 | BKC2: =BKA2+1 -> 1818 | BKE2: =BKC2+1 -> 1819 | BKG2: =BKE2+1 -> 1820 | BKI2: =BKG2+1 -> 1821 | BKK2: =BKI2+1 -> 1822 | BKM2: =BKK2+1 -> 1823 | BKO2: =BKM2+1 -> 1824 | BKQ2: =BKO2+1 -> 1825 | BKS2: =BKQ2+1 -> 1826 | BKU2: =BKS2+1 -> 1827 | BKW2: =BKU2+1 -> 1828 | BKY2: =BKW2+1 -> 1829 | BLA2: =BKY2+1 -> 1830 | BLC2: =BLA2+1 -> 1831 | BLE2: =BLC2+1 -> 1832 | BLG2: =BLE2+1 -> 1833 | BLI2: =BLG2+1 -> 1834 | BLK2: =BLI2+1 -> 1835 | BLM2: =BLK2+1 -> 1836 | BLO2: =BLM2+1 -> 1837 | BLQ2: =BLO2+1 -> 1838 | BLS2: =BLQ2+1 -> 1839 | BLU2: =BLS2+1 -> 1840 | BLW2: =BLU2+1 -> 1841 | BLY2: =BLW2+1 -> 1842 | BMA2: =BLY2+1 -> 1843 | BMC2: =BMA2+1 -> 1844 | BME2: =BMC2+1 -> 1845 | BMG2: =BME2+1 -> 1846 | BMI2: =BMG2+1 -> 1847 | BMK2: =BMI2+1 -> 1848 | BMM2: =BMK2+1 -> 1849 | BMO2: =BMM2+1 -> 1850 | BMQ2: =BMO2+1 -> 1851 | BMS2: =BMQ2+1 -> 1852 | BMU2: =BMS2+1 -> 1853 | BMW2: =BMU2+1 -> 1854 | BMY2: =BMW2+1 -> 1855 | BNA2: =BMY2+1 -> 1856 | BNC2: =BNA2+1 -> 1857 | BNE2: =BNC2+1 -> 1858 | BNG2: =BNE2+1 -> 1859 | BNI2: =BNG2+1 -> 1860 | BNK2: =BNI2+1 -> 1861 | BNM2: =BNK2+1 -> 1862 | BNO2: =BNM2+1 -> 1863 | BNQ2: =BNO2+1 -> 1864 | BNS2: =BNQ2+1 -> 1865 | BNU2: =BNS2+1 -> 1866 | BNW2: =BNU2+1 -> 1867 | BNY2: =BNW2+1 -> 1868 | BOA2: =BNY2+1 -> 1869 | BOC2: =BOA2+1 -> 1870 | BOE2: =BOC2+1 -> 1871 | BOG2: =BOE2+1 -> 1872 | BOI2: =BOG2+1 -> 1873 | BOK2: =BOI2+1 -> 1874 | BOM2: =BOK2+1 -> 1875 | BOO2: =BOM2+1 -> 1876 | BOQ2: =BOO2+1 -> 1877 | BOS2: =BOQ2+1 -> 1878 | BOU2: =BOS2+1 -> 1879 | BOW2: =BOU2+1 -> 1880 | BOY2: =BOW2+1 -> 1881 | BPA2: =BOY2+1 -> 1882 | BPC2: =BPA2+1 -> 1883 | BPE2: =BPC2+1 -> 1884 | BPG2: =BPE2+1 -> 1885 | BPI2: =BPG2+1 -> 1886 | BPK2: =BPI2+1 -> 1887 | BPM2: =BPK2+1 -> 1888 | BPO2: =BPM2+1 -> 1889 | BPQ2: =BPO2+1 -> 1890 | BPS2: =BPQ2+1 -> 1891 | BPU2: =BPS2+1 -> 1892 | BPW2: =BPU2+1 -> 1893 | BPY2: =BPW2+1 -> 1894 | BQA2: =BPY2+1 -> 1895 | BQC2: =BQA2+1 -> 1896 | BQE2: =BQC2+1 -> 1897 | BQG2: =BQE2+1 -> 1898 | BQI2: =BQG2+1 -> 1899 | BQK2: =BQI2+1 -> 1900 | BQM2: =BQK2+1 -> 1901 | BQO2: =BQM2+1 -> 1902 | BQQ2: =BQO2+1 -> 1903 | BQS2: =BQQ2+1 -> 1904 | BQU2: =BQS2+1 -> 1905 | BQW2: =BQU2+1 -> 1906 | BQY2: =BQW2+1 -> 1907 | BRA2: =BQY2+1 -> 1908 | BRC2: =BRA2+1 -> 1909 | BRE2: =BRC2+1 -> 1910 | BRG2: =BRE2+1 -> 1911 | BRI2: =BRG2+1 -> 1912 | BRK2: =BRI2+1 -> 1913 | BRM2: =BRK2+1 -> 1914 | BRO2: =BRM2+1 -> 1915 | BRQ2: =BRO2+1 -> 1916 | BRS2: =BRQ2+1 -> 1917 | BRU2: =BRS2+1 -> 1918 | BRW2: =BRU2+1 -> 1919 | BRY2: =BRW2+1 -> 1920 | BSA2: =BRY2+1 -> 1921 | BSC2: =BSA2+1 -> 1922 | BSE2: =BSC2+1 -> 1923 | BSG2: =BSE2+1 -> 1924 | BSI2: =BSG2+1 -> 1925 | BSK2: =BSI2+1 -> 1926 | BSM2: =BSK2+1 -> 1927 | BSO2: =BSM2+1 -> 1928 | BSQ2: =BSO2+1 -> 1929 | BSS2: =BSQ2+1 -> 1930 | BSU2: =BSS2+1 -> 1931 | BSW2: =BSU2+1 -> 1932 | BSY2: =BSW2+1 -> 1933 | BTA2: =BSY2+1 -> 1934 | BTC2: =BTA2+1 -> 1935 | BTE2: =BTC2+1 -> 1936 | BTG2: =BTE2+1 -> 1937 | BTI2: =BTG2+1 -> 1938 | BTK2: =BTI2+1 -> 1939 | BTM2: =BTK2+1 -> 1940 | BTO2: =BTM2+1 -> 1941 | BTQ2: =BTO2+1 -> 1942 | BTS2: =BTQ2+1 -> 1943 | BTU2: =BTS2+1 -> 1944 | BTW2: =BTU2+1 -> 1945 | BTY2: =BTW2+1 -> 1946 | BUA2: =BTY2+1 -> 1947 | BUC2: =BUA2+1 -> 1948 | BUE2: =BUC2+1 -> 1949 | BUG2: =BUE2+1 -> 1950 | BUI2: =BUG2+1 -> 1951 | BUK2: =BUI2+1 -> 1952 | BUM2: =BUK2+1 -> 1953 | BUO2: =BUM2+1 -> 1954 | BUQ2: =BUO2+1 -> 1955 | BUS2: =BUQ2+1 -> 1956 | BUU2: =BUS2+1 -> 1957 | BUW2: =BUU2+1 -> 1958 | BUY2: =BUW2+1 -> 1959 | BVA2: =BUY2+1 -> 1960 | BVC2: =BVA2+1 -> 1961 | BVE2: =BVC2+1 -> 1962 | BVG2: =BVE2+1 -> 1963 | BVI2: =BVG2+1 -> 1964 | BVK2: =BVI2+1 -> 1965 | BVM2: =BVK2+1 -> 1966 | BVO2: =BVM2+1 -> 1967 | BVQ2: =BVO2+1 -> 1968 | BVS2: =BVQ2+1 -> 1969 | BVU2: =BVS2+1 -> 1970 | BVW2: =BVU2+1 -> 1971 | BVY2: =BVW2+1 -> 1972 | BWA2: =BVY2+1 -> 1973 | BWC2: =BWA2+1 -> 1974 | BWE2: =BWC2+1 -> 1975 | BWG2: =BWE2+1 -> 1976 | BWI2: =BWG2+1 -> 1977 | BWK2: =BWI2+1 -> 1978 | BWM2: =BWK2+1 -> 1979 | BWO2: =BWM2+1 -> 1980 | BWQ2: =BWO2+1 -> 1981 | BWS2: =BWQ2+1 -> 1982 | BWU2: =BWS2+1 -> 1983 | BWW2: =BWU2+1 -> 1984 | BWY2: =BWW2+1 -> 1985 | BXA2: =BWY2+1 -> 1986 | BXC2: =BXA2+1 -> 1987 | BXE2: =BXC2+1 -> 1988 | BXG2: =BXE2+1 -> 1989 | BXI2: =BXG2+1 -> 1990 | BXK2: =BXI2+1 -> 1991 | BXM2: =BXK2+1 -> 1992 | BXO2: =BXM2+1 -> 1993 | BXQ2: =BXO2+1 -> 1994 | BXS2: =BXQ2+1 -> 1995 | BXU2: =BXS2+1 -> 1996 | BXW2: =BXU2+1 -> 1997 | BXY2: =BXW2+1 -> 1998 | BYA2: =BXY2+1 -> 1999 | BYC2: =BYA2+1 -> 2000 | BYE2: =BYC2+1 -> 2001 | BYG2: =BYE2+1 -> 2002 | BYI2: =BYG2+1 -> 2003 | BYK2: =BYI2+1 -> 2004 | BYM2: =BYK2+1 -> 2005 | BYO2: =BYM2+1 -> 2006 | BYQ2: =BYO2+1 -> 2007 | BYS2: =BYQ2+1 -> 2008 | BYU2: =BYS2+1 -> 2009 | BYW2: =BYU2+1 -> 2010 | BYY2: =BYW2+1 -> 2011 | BZA2: =BYY2+1 -> 2012 | BZC2: =BZA2+1 -> 2013 | BZE2: =BZC2+1 -> 2014 | BZG2: =BZE2+1 -> 2015 | BZI2: =BZG2+1 -> 2016 | BZK2: =BZI2+1 -> 2017 | BZM2: =BZK2+1 -> 2018 | BZO2: =BZM2+1 -> 2019 | BZQ2: =BZO2+1 -> 2020 | BZS2: =BZQ2+1 -> 2021 | BZU2: =BZS2+1 -> 2022 | BZW2: =BZU2+1 -> 2023 | BZY2: =BZW2+1 -> 2024 | CAA2: =BZY2+1 -> 2025 | CAC2: =CAA2+1 -> 2026 | CAE2: =CAC2+1 -> 2027 | CAG2: =CAE2+1 -> 2028 | CAI2: =CAG2+1 -> 2029 | CAK2: =CAI2+1 -> 2030 | CAM2: =CAK2+1 -> 2031 | CAO2: =CAM2+1 -> 2032 | CAQ2: =CAO2+1 -> 2033 | CAS2: =CAQ2+1 -> 2034 | CAU2: =CAS2+1 -> 2035 | CAW2: =CAU2+1 -> 2036 | CAY2: =CAW2+1 -> 2037 | CBA2: =CAY2+1 -> 2038 | CBC2: =CBA2+1 -> 2039 | CBE2: =CBC2+1 -> 2040 | CBG2: =CBE2+1 -> 2041 | CBI2: =CBG2+1 -> 2042 | CBK2: =CBI2+1 -> 2043 | CBM2: =CBK2+1 -> 2044 | CBO2: =CBM2+1 -> 2045 | CBQ2: =CBO2+1 -> 2046 | CBS2: =CBQ2+1 -> 2047 | CBU2: =CBS2+1 -> 2048 | CBW2: =CBU2+1 -> 2049 | CBY2: =CBW2+1 -> 2050 | CCA2: =CBY2+1 -> 2051 | CCC2: =CCA2+1 -> 2052 | CCE2: =CCC2+1 -> 2053 | CCG2: =CCE2+1 -> 2054 | CCI2: =CCG2+1 -> 2055 | CCK2: =CCI2+1 -> 2056 | CCM2: =CCK2+1 -> 2057 | CCO2: =CCM2+1 -> 2058 | CCQ2: =CCO2+1 -> 2059 | CCS2: =CCQ2+1 -> 2060 | CCU2: =CCS2+1 -> 2061 | CCW2: =CCU2+1 -> 2062 | CCY2: =CCW2+1 -> 2063 | CDA2: =CCY2+1 -> 2064 | CDC2: =CDA2+1 -> 2065 | CDE2: =CDC2+1 -> 2066 | CDG2: =CDE2+1 -> 2067 | CDI2: =CDG2+1 -> 2068 | CDK2: =CDI2+1 -> 2069 | CDM2: =CDK2+1 -> 2070 | CDO2: =CDM2+1 -> 2071 | CDQ2: =CDO2+1 -> 2072 | CDS2: =CDQ2+1 -> 2073 | CDU2: =CDS2+1 -> 2074 | CDW2: =CDU2+1 -> 2075 | CDY2: =CDW2+1 -> 2076 | CEA2: =CDY2+1 -> 2077 | CEC2: =CEA2+1 -> 2078 | CEE2: =CEC2+1 -> 2079 | CEG2: =CEE2+1 -> 2080 | CEI2: =CEG2+1 -> 2081 | CEK2: =CEI2+1 -> 2082 | CEM2: =CEK2+1 -> 2083 | CEO2: =CEM2+1 -> 2084 | CEQ2: =CEO2+1 -> 2085 | CES2: =CEQ2+1 -> 2086 | CEU2: =CES2+1 -> 2087 | CEW2: =CEU2+1 -> 2088 | CEY2: =CEW2+1 -> 2089 | CFA2: =CEY2+1 -> 2090 | CFC2: =CFA2+1 -> 2091 | CFE2: =CFC2+1 -> 2092 | CFG2: =CFE2+1 -> 2093 | CFI2: =CFG2+1 -> 2094 | CFK2: =CFI2+1 -> 2095 | CFM2: =CFK2+1 -> 2096 | CFO2: =CFM2+1 -> 2097 | CFQ2: =CFO2+1 -> 2098 | CFS2: =CFQ2+1 -> 2099 | CFU2: =CFS2+1 -> 2100 | CFW2: =CFU2+1 -> 2101 | CFY2: =CFW2+1 -> 2102 | CGA2: =CFY2+1 -> 2103 | CGC2: =CGA2+1 -> 2104 | CGE2: =CGC2+1 -> 2105 | CGG2: =CGE2+1 -> 2106 | CGI2: =CGG2+1 -> 2107 | CGK2: =CGI2+1 -> 2108 | CGM2: =CGK2+1 -> 2109 | CGO2: =CGM2+1 -> 2110 | CGQ2: =CGO2+1 -> 2111 | CGS2: =CGQ2+1 -> 2112 | CGU2: =CGS2+1 -> 2113 | CGW2: =CGU2+1 -> 2114 | CGY2: =CGW2+1 -> 2115 | CHA2: =CGY2+1 -> 2116 | CHC2: =CHA2+1 -> 2117 | CHE2: =CHC2+1 -> 2118 | CHG2: =CHE2+1 -> 2119 | CHI2: =CHG2+1 -> 2120 | CHK2: =CHI2+1 -> 2121 | CHM2: =CHK2+1 -> 2122 | CHO2: =CHM2+1 -> 2123 | CHQ2: =CHO2+1 -> 2124 | CHS2: =CHQ2+1 -> 2125 | CHU2: =CHS2+1 -> 2126 | CHW2: =CHU2+1 -> 2127 | CHY2: =CHW2+1 -> 2128 | CIA2: =CHY2+1 -> 2129 | CIC2: =CIA2+1 -> 2130 | CIE2: =CIC2+1 -> 2131 | CIG2: =CIE2+1 -> 2132 | CII2: =CIG2+1 -> 2133 | CIK2: =CII2+1 -> 2134 | CIM2: =CIK2+1 -> 2135 | CIO2: =CIM2+1 -> 2136 | CIQ2: =CIO2+1 -> 2137 | CIS2: =CIQ2+1 -> 2138 | CIU2: =CIS2+1 -> 2139 | CIW2: =CIU2+1 -> 2140 | CIY2: =CIW2+1 -> 2141 | CJA2: =CIY2+1 -> 2142 | CJC2: =CJA2+1 -> 2143 | CJE2: =CJC2+1 -> 2144 | CJG2: =CJE2+1 -> 2145 | CJI2: =CJG2+1 -> 2146 | CJK2: =CJI2+1 -> 2147 | CJM2: =CJK2+1 -> 2148 | CJO2: =CJM2+1 -> 2149 | CJQ2: =CJO2+1 -> 2150 | CJS2: =CJQ2+1 -> 2151 | CJU2: =CJS2+1 -> 2152 | CJW2: =CJU2+1 -> 2153 | CJY2: =CJW2+1 -> 2154 | CKA2: =CJY2+1 -> 2155 | CKC2: =CKA2+1 -> 2156 | CKE2: =CKC2+1 -> 2157 | CKG2: =CKE2+1 -> 2158 | CKI2: =CKG2+1 -> 2159 | CKK2: =CKI2+1 -> 2160 | CKM2: =CKK2+1 -> 2161 | CKO2: =CKM2+1 -> 2162 | CKQ2: =CKO2+1 -> 2163 | CKS2: =CKQ2+1 -> 2164 | CKU2: =CKS2+1 -> 2165 | CKW2: =CKU2+1 -> 2166 | CKY2: =CKW2+1 -> 2167 | CLA2: =CKY2+1 -> 2168 | CLC2: =CLA2+1 -> 2169 | CLE2: =CLC2+1 -> 2170 | CLG2: =CLE2+1 -> 2171 | CLI2: =CLG2+1 -> 2172 | CLK2: =CLI2+1 -> 2173 | CLM2: =CLK2+1 -> 2174 | CLO2: =CLM2+1 -> 2175 | CLQ2: =CLO2+1 -> 2176 | CLS2: =CLQ2+1 -> 2177 | CLU2: =CLS2+1 -> 2178 | CLW2: =CLU2+1 -> 2179 | CLY2: =CLW2+1 -> 2180 | CMA2: =CLY2+1 -> 2181 | CMC2: =CMA2+1 -> 2182 | CME2: =CMC2+1 -> 2183 | CMG2: =CME2+1 -> 2184 | CMI2: =CMG2+1 -> 2185 | CMK2: =CMI2+1 -> 2186 | CMM2: =CMK2+1 -> 2187 | CMO2: =CMM2+1 -> 2188 | CMQ2: =CMO2+1 -> 2189 | CMS2: =CMQ2+1 -> 2190 | CMU2: =CMS2+1 -> 2191 | CMW2: =CMU2+1 -> 2192 | CMY2: =CMW2+1 -> 2193 | CNA2: =CMY2+1 -> 2194 | CNC2: =CNA2+1 -> 2195 | CNE2: =CNC2+1 -> 2196 | CNG2: =CNE2+1 -> 2197 | CNI2: =CNG2+1 -> 2198 | CNK2: =CNI2+1 -> 2199 | CNM2: =CNK2+1 -> 2200 | CNO2: =CNM2+1 -> 2201 | CNQ2: =CNO2+1 -> 2202 | CNS2: =CNQ2+1 -> 2203 | CNU2: =CNS2+1 -> 2204 | CNW2: =CNU2+1 -> 2205 | CNY2: =CNW2+1 -> 2206 | COA2: =CNY2+1 -> 2207 | COC2: =COA2+1 -> 2208 | COE2: =COC2+1 -> 2209 | COG2: =COE2+1 -> 2210 | COI2: =COG2+1 -> 2211 | COK2: =COI2+1 -> 2212 | COM2: =COK2+1 -> 2213 | COO2: =COM2+1 -> 2214 | COQ2: =COO2+1 -> 2215 | COS2: =COQ2+1 -> 2216 | COU2: =COS2+1 -> 2217 | COW2: =COU2+1 -> 2218 | COY2: =COW2+1 -> 2219 | CPA2: =COY2+1 -> 2220 | CPC2: =CPA2+1 -> 2221 | CPE2: =CPC2+1 -> 2222 | CPG2: =CPE2+1 -> 2223 | CPI2: =CPG2+1 -> 2224 | CPK2: =CPI2+1 -> 2225 | CPM2: =CPK2+1 -> 2226 | CPO2: =CPM2+1 -> 2227 | CPQ2: =CPO2+1 -> 2228 | CPS2: =CPQ2+1 -> 2229 | CPU2: =CPS2+1 -> 2230 | CPW2: =CPU2+1 -> 2231 | CPY2: =CPW2+1 -> 2232 | CQA2: =CPY2+1 -> 2233 | CQC2: =CQA2+1 -> 2234 | CQE2: =CQC2+1 -> 2235 | CQG2: =CQE2+1 -> 2236 | CQI2: =CQG2+1 -> 2237 | CQK2: =CQI2+1 -> 2238 | CQM2: =CQK2+1 -> 2239 | CQO2: =CQM2+1 -> 2240 | CQQ2: =CQO2+1 -> 2241 | CQS2: =CQQ2+1 -> 2242 | CQU2: =CQS2+1 -> 2243 | CQW2: =CQU2+1 -> 2244 | CQY2: =CQW2+1 -> 2245 | CRA2: =CQY2+1 -> 2246 | CRC2: =CRA2+1 -> 2247 | CRE2: =CRC2+1 -> 2248 | CRG2: =CRE2+1 -> 2249 | CRI2: =CRG2+1 -> 2250 | CRK2: =CRI2+1 -> 2251 | CRM2: =CRK2+1 -> 2252 | CRO2: =CRM2+1 -> 2253 | CRQ2: =CRO2+1 -> 2254 | CRS2: =CRQ2+1 -> 2255 | CRU2: =CRS2+1 -> 2256 | CRW2: =CRU2+1 -> 2257 | CRY2: =CRW2+1 -> 2258 | CSA2: =CRY2+1 -> 2259 | CSC2: =CSA2+1 -> 2260 | CSE2: =CSC2+1 -> 2261 | CSG2: =CSE2+1 -> 2262 | CSI2: =CSG2+1 -> 2263 | CSK2: =CSI2+1 -> 2264 | CSM2: =CSK2+1 -> 2265 | CSO2: =CSM2+1 -> 2266 | CSQ2: =CSO2+1 -> 2267 | CSS2: =CSQ2+1 -> 2268 | CSU2: =CSS2+1 -> 2269 | CSW2: =CSU2+1 -> 2270 | CSY2: =CSW2+1 -> 2271 | CTA2: =CSY2+1 -> 2272 | CTC2: =CTA2+1 -> 2273 | CTE2: =CTC2+1 -> 2274 | CTG2: =CTE2+1 -> 2275 | CTI2: =CTG2+1 -> 2276 | CTK2: =CTI2+1 -> 2277 | CTM2: =CTK2+1 -> 2278 | CTO2: =CTM2+1 -> 2279 | CTQ2: =CTO2+1 -> 2280 | CTS2: =CTQ2+1 -> 2281 | CTU2: =CTS2+1 -> 2282 | CTW2: =CTU2+1 -> 2283 | CTY2: =CTW2+1 -> 2284 | CUA2: =CTY2+1 -> 2285 | CUC2: =CUA2+1 -> 2286 | CUE2: =CUC2+1 -> 2287 | CUG2: =CUE2+1 -> 2288 | CUI2: =CUG2+1 -> 2289 | CUK2: =CUI2+1 -> 2290 | CUM2: =CUK2+1 -> 2291 | CUO2: =CUM2+1 -> 2292 | CUQ2: =CUO2+1 -> 2293 | CUS2: =CUQ2+1 -> 2294 | CUU2: =CUS2+1 -> 2295 | CUW2: =CUU2+1 -> 2296 | CUY2: =CUW2+1 -> 2297 | CVA2: =CUY2+1 -> 2298 | CVC2: =CVA2+1 -> 2299 | CVE2: =CVC2+1 -> 2300 | CVG2: =CVE2+1 -> 2301 | CVI2: =CVG2+1 -> 2302 | CVK2: =CVI2+1 -> 2303 | CVM2: =CVK2+1 -> 2304 | CVO2: =CVM2+1 -> 2305 | CVQ2: =CVO2+1 -> 2306 | CVS2: =CVQ2+1 -> 2307 | CVU2: =CVS2+1 -> 2308 | CVW2: =CVU2+1 -> 2309 | CVY2: =CVW2+1 -> 2310 | CWA2: =CVY2+1 -> 2311 | CWC2: =CWA2+1 -> 2312 | CWE2: =CWC2+1 -> 2313 | CWG2: =CWE2+1 -> 2314 | CWI2: =CWG2+1 -> 2315 | CWK2: =CWI2+1 -> 2316 | CWM2: =CWK2+1 -> 2317 | CWO2: =CWM2+1 -> 2318 | CWQ2: =CWO2+1 -> 2319 | CWS2: =CWQ2+1 -> 2320 | CWU2: =CWS2+1 -> 2321 | CWW2: =CWU2+1 -> 2322 | CWY2: =CWW2+1 -> 2323 | CXA2: =CWY2+1 -> 2324 | CXC2: =CXA2+1 -> 2325 | CXE2: =CXC2+1 -> 2326 | CXG2: =CXE2+1 -> 2327 | CXI2: =CXG2+1 -> 2328 | CXK2: =CXI2+1 -> 2329 | CXM2: =CXK2+1 -> 2330 | CXO2: =CXM2+1 -> 2331 | CXQ2: =CXO2+1 -> 2332 | CXS2: =CXQ2+1 -> 2333 | CXU2: =CXS2+1 -> 2334 | CXW2: =CXU2+1 -> 2335 | CXY2: =CXW2+1 -> 2336 | CYA2: =CXY2+1 -> 2337 | CYC2: =CYA2+1 -> 2338 | CYE2: =CYC2+1 -> 2339 | CYG2: =CYE2+1 -> 2340 | CYI2: =CYG2+1 -> 2341 | CYK2: =CYI2+1 -> 2342 | CYM2: =CYK2+1 -> 2343 | CYO2: =CYM2+1 -> 2344 | CYQ2: =CYO2+1 -> 2345 | CYS2: =CYQ2+1 -> 2346 | CYU2: =CYS2+1 -> 2347 | CYW2: =CYU2+1 -> 2348 | CYY2: =CYW2+1 -> 2349 | CZA2: =CYY2+1 -> 2350 | CZC2: =CZA2+1 -> 2351 | CZE2: =CZC2+1 -> 2352 | CZG2: =CZE2+1 -> 2353 | CZI2: =CZG2+1 -> 2354 | CZK2: =CZI2+1 -> 2355 | CZM2: =CZK2+1 -> 2356 | CZO2: =CZM2+1 -> 2357 | CZQ2: =CZO2+1 -> 2358 | CZS2: =CZQ2+1 -> 2359 | CZU2: =CZS2+1 -> 2360 | CZW2: =CZU2+1 -> 2361 | CZY2: =CZW2+1 -> 2362 | DAA2: =CZY2+1 -> 2363 | DAC2: =DAA2+1 -> 2364 | DAE2: =DAC2+1 -> 2365 | DAG2: =DAE2+1 -> 2366 | DAI2: =DAG2+1 -> 2367 | DAK2: =DAI2+1 -> 2368 | DAM2: =DAK2+1 -> 2369 | DAO2: =DAM2+1 -> 2370 | DAQ2: =DAO2+1 -> 2371 | DAS2: =DAQ2+1 -> 2372 | DAU2: =DAS2+1 -> 2373 | DAW2: =DAU2+1 -> 2374 | DAY2: =DAW2+1 -> 2375 | DBA2: =DAY2+1 -> 2376 | DBC2: =DBA2+1 -> 2377 | DBE2: =DBC2+1 -> 2378 | DBG2: =DBE2+1 -> 2379 | DBI2: =DBG2+1 -> 2380 | DBK2: =DBI2+1 -> 2381 | DBM2: =DBK2+1 -> 2382 | DBO2: =DBM2+1 -> 2383 | DBQ2: =DBO2+1 -> 2384 | DBS2: =DBQ2+1 -> 2385 | DBU2: =DBS2+1 -> 2386 | DBW2: =DBU2+1 -> 2387 | DBY2: =DBW2+1 -> 2388 | DCA2: =DBY2+1 -> 2389 | DCC2: =DCA2+1 -> 2390 | DCE2: =DCC2+1 -> 2391 | DCG2: =DCE2+1 -> 2392 | DCI2: =DCG2+1 -> 2393 | DCK2: =DCI2+1 -> 2394 | DCM2: =DCK2+1 -> 2395 | DCO2: =DCM2+1 -> 2396 | DCQ2: =DCO2+1 -> 2397 | DCS2: =DCQ2+1 -> 2398 | DCU2: =DCS2+1 -> 2399 | DCW2: =DCU2+1 -> 2400 | DCY2: =DCW2+1 -> 2401 | DDA2: =DCY2+1 -> 2402 | DDC2: =DDA2+1 -> 2403 | DDE2: =DDC2+1 -> 2404 | DDG2: =DDE2+1 -> 2405 | DDI2: =DDG2+1 -> 2406 | DDK2: =DDI2+1 -> 2407 | DDM2: =DDK2+1 -> 2408 | DDO2: =DDM2+1 -> 2409 | DDQ2: =DDO2+1 -> 2410 | DDS2: =DDQ2+1 -> 2411 | DDU2: =DDS2+1 -> 2412 | DDW2: =DDU2+1 -> 2413 | DDY2: =DDW2+1 -> 2414 | DEA2: =DDY2+1 -> 2415 | DEC2: =DEA2+1 -> 2416 | DEE2: =DEC2+1 -> 2417 | DEG2: =DEE2+1 -> 2418 | DEI2: =DEG2+1 -> 2419 | DEK2: =DEI2+1 -> 2420 | DEM2: =DEK2+1 -> 2421 | DEO2: =DEM2+1 -> 2422 | DEQ2: =DEO2+1 -> 2423 | DES2: =DEQ2+1 -> 2424 | DEU2: =DES2+1 -> 2425 | DEW2: =DEU2+1 -> 2426 | DEY2: =DEW2+1 -> 2427 | DFA2: =DEY2+1 -> 2428 | DFC2: =DFA2+1 -> 2429 | DFE2: =DFC2+1 -> 2430 | DFG2: =DFE2+1 -> 2431 | DFI2: =DFG2+1 -> 2432 | DFK2: =DFI2+1 -> 2433 | DFM2: =DFK2+1 -> 2434 | DFO2: =DFM2+1 -> 2435 | DFQ2: =DFO2+1 -> 2436 | DFS2: =DFQ2+1 -> 2437 | DFU2: =DFS2+1 -> 2438 | DFW2: =DFU2+1 -> 2439 | DFY2: =DFW2+1 -> 2440 | DGA2: =DFY2+1 -> 2441 | DGC2: =DGA2+1 -> 2442 | DGE2: =DGC2+1 -> 2443 | DGG2: =DGE2+1 -> 2444 | DGI2: =DGG2+1 -> 2445 | DGK2: =DGI2+1 -> 2446 | DGM2: =DGK2+1 -> 2447 | DGO2: =DGM2+1 -> 2448 | DGQ2: =DGO2+1 -> 2449 | DGS2: =DGQ2+1 -> 2450 | DGU2: =DGS2+1 -> 2451 | DGW2: =DGU2+1 -> 2452 | DGY2: =DGW2+1 -> 2453 | DHA2: =DGY2+1 -> 2454 | DHC2: =DHA2+1 -> 2455 | DHE2: =DHC2+1 -> 2456 | DHG2: =DHE2+1 -> 2457 | DHI2: =DHG2+1 -> 2458 | DHK2: =DHI2+1 -> 2459 | DHM2: =DHK2+1 -> 2460 | DHO2: =DHM2+1 -> 2461 | DHQ2: =DHO2+1 -> 2462 | DHS2: =DHQ2+1 -> 2463 | DHU2: =DHS2+1 -> 2464 | DHW2: =DHU2+1 -> 2465 | DHY2: =DHW2+1 -> 2466 | DIA2: =DHY2+1 -> 2467 | DIC2: =DIA2+1 -> 2468 | DIE2: =DIC2+1 -> 2469 | DIG2: =DIE2+1 -> 2470 | DII2: =DIG2+1 -> 2471 | DIK2: =DII2+1 -> 2472 | DIM2: =DIK2+1 -> 2473 | DIO2: =DIM2+1 -> 2474 | DIQ2: =DIO2+1 -> 2475 | DIS2: =DIQ2+1 -> 2476 | DIU2: =DIS2+1 -> 2477 | DIW2: =DIU2+1 -> 2478 | DIY2: =DIW2+1 -> 2479 | DJA2: =DIY2+1 -> 2480 | DJC2: =DJA2+1 -> 2481 | DJE2: =DJC2+1 -> 2482 | DJG2: =DJE2+1 -> 2483 | DJI2: =DJG2+1 -> 2484 | DJK2: =DJI2+1 -> 2485 | DJM2: =DJK2+1 -> 2486 | DJO2: =DJM2+1 -> 2487 | DJQ2: =DJO2+1 -> 2488 | DJS2: =DJQ2+1 -> 2489 | DJU2: =DJS2+1 -> 2490 | DJW2: =DJU2+1 -> 2491 | DJY2: =DJW2+1 -> 2492 | DKA2: =DJY2+1 -> 2493 | DKC2: =DKA2+1 -> 2494 | DKE2: =DKC2+1 -> 2495 | DKG2: =DKE2+1 -> 2496 | DKI2: =DKG2+1 -> 2497 | DKK2: =DKI2+1 -> 2498 | DKM2: =DKK2+1 -> 2499 | DKO2: =DKM2+1 -> 2500 | DKQ2: =DKO2+1 -> 2501 | DKS2: =DKQ2+1 -> 2502 | DKU2: =DKS2+1 -> 2503 | DKW2: =DKU2+1 -> 2504 | DKY2: =DKW2+1 -> 2505 | DLA2: =DKY2+1 -> 2506 | DLC2: =DLA2+1 -> 2507 | DLE2: =DLC2+1 -> 2508 | DLG2: =DLE2+1 -> 2509 | DLI2: =DLG2+1 -> 2510 | DLK2: =DLI2+1 -> 2511 | DLM2: =DLK2+1 -> 2512 | DLO2: =DLM2+1 -> 2513 | DLQ2: =DLO2+1 -> 2514 | DLS2: =DLQ2+1 -> 2515 | DLU2: =DLS2+1 -> 2516 | DLW2: =DLU2+1 -> 2517 | DLY2: =DLW2+1 -> 2518 | DMA2: =DLY2+1 -> 2519 | DMC2: =DMA2+1 -> 2520 | DME2: =DMC2+1 -> 2521 | DMG2: =DME2+1 -> 2522 | DMI2: =DMG2+1 -> 2523 | DMK2: =DMI2+1 -> 2524 | DMM2: =DMK2+1 -> 2525 | DMO2: =DMM2+1 -> 2526 | DMQ2: =DMO2+1 -> 2527 | DMS2: =DMQ2+1 -> 2528 | DMU2: =DMS2+1 -> 2529 | DMW2: =DMU2+1 -> 2530 | DMY2: =DMW2+1 -> 2531 | DNA2: =DMY2+1 -> 2532 | DNC2: =DNA2+1 -> 2533 | DNE2: =DNC2+1 -> 2534 | DNG2: =DNE2+1 -> 2535 | DNI2: =DNG2+1 -> 2536 | DNK2: =DNI2+1 -> 2537 | DNM2: =DNK2+1 -> 2538 | DNO2: =DNM2+1 -> 2539 | DNQ2: =DNO2+1 -> 2540 | DNS2: =DNQ2+1 -> 2541 | DNU2: =DNS2+1 -> 2542 | DNW2: =DNU2+1 -> 2543 | DNY2: =DNW2+1 -> 2544 | DOA2: =DNY2+1 -> 2545 | DOC2: =DOA2+1 -> 2546 | DOE2: =DOC2+1 -> 2547 | DOG2: =DOE2+1 -> 2548 | DOI2: =DOG2+1 -> 2549 | DOK2: =DOI2+1 -> 2550 | DOM2: =DOK2+1 -> 2551 | DOO2: =DOM2+1 -> 2552 | DOQ2: =DOO2+1 -> 2553 | DOS2: =DOQ2+1 -> 2554 | DOU2: =DOS2+1 -> 2555 | DOW2: =DOU2+1 -> 2556 | DOY2: =DOW2+1 -> 2557 | DPA2: =DOY2+1 -> 2558 | DPC2: =DPA2+1 -> 2559 | DPE2: =DPC2+1 -> 2560 | DPG2: =DPE2+1 -> 2561 | DPI2: =DPG2+1 -> 2562 | DPK2: =DPI2+1 -> 2563 | DPM2: =DPK2+1 -> 2564 | DPO2: =DPM2+1 -> 2565 | DPQ2: =DPO2+1 -> 2566 | DPS2: =DPQ2+1 -> 2567 | DPU2: =DPS2+1 -> 2568 | DPW2: =DPU2+1 -> 2569 | DPY2: =DPW2+1 -> 2570 | DQA2: =DPY2+1 -> 2571 | DQC2: =DQA2+1 -> 2572 | DQE2: =DQC2+1 -> 2573 | DQG2: =DQE2+1 -> 2574 | DQI2: =DQG2+1 -> 2575 | DQK2: =DQI2+1 -> 2576 | DQM2: =DQK2+1 -> 2577 | DQO2: =DQM2+1 -> 2578 | DQQ2: =DQO2+1 -> 2579 | DQS2: =DQQ2+1 -> 2580 | DQU2: =DQS2+1 -> 2581 | DQW2: =DQU2+1 -> 2582 | DQY2: =DQW2+1 -> 2583 | DRA2: =DQY2+1 -> 2584 | DRC2: =DRA2+1 -> 2585 | DRE2: =DRC2+1 -> 2586 | DRG2: =DRE2+1 -> 2587 | DRI2: =DRG2+1 -> 2588 | DRK2: =DRI2+1 -> 2589 | DRM2: =DRK2+1 -> 2590 | DRO2: =DRM2+1 -> 2591 | DRQ2: =DRO2+1 -> 2592 | DRS2: =DRQ2+1 -> 2593 | DRU2: =DRS2+1 -> 2594 | DRW2: =DRU2+1 -> 2595 | DRY2: =DRW2+1 -> 2596 | DSA2: =DRY2+1 -> 2597 | DSC2: =DSA2+1 -> 2598 | DSE2: =DSC2+1 -> 2599 | DSG2: =DSE2+1 -> 2600 | DSI2: =DSG2+1 -> 2601 | DSK2: =DSI2+1 -> 2602 | DSM2: =DSK2+1 -> 2603 | DSO2: =DSM2+1 -> 2604 | DSQ2: =DSO2+1 -> 2605 | DSS2: =DSQ2+1 -> 2606 | DSU2: =DSS2+1 -> 2607 | DSW2: =DSU2+1 -> 2608 | DSY2: =DSW2+1 -> 2609 | DTA2: =DSY2+1 -> 2610 | DTC2: =DTA2+1 -> 2611 | DTE2: =DTC2+1 -> 2612 | DTG2: =DTE2+1 -> 2613 | DTI2: =DTG2+1 -> 2614 | DTK2: =DTI2+1 -> 2615 | DTM2: =DTK2+1 -> 2616 | DTO2: =DTM2+1 -> 2617 | DTQ2: =DTO2+1 -> 2618 | DTS2: =DTQ2+1 -> 2619 | DTU2: =DTS2+1 -> 2620 | DTW2: =DTU2+1 -> 2621 | DTY2: =DTW2+1 -> 2622 | DUA2: =DTY2+1 -> 2623 | DUC2: =DUA2+1 -> 2624 | DUE2: =DUC2+1 -> 2625 | DUG2: =DUE2+1 -> 2626 | DUI2: =DUG2+1 -> 2627 | DUK2: =DUI2+1 -> 2628 | DUM2: =DUK2+1 -> 2629 | DUO2: =DUM2+1 -> 2630 | DUQ2: =DUO2+1 -> 2631 | DUS2: =DUQ2+1 -> 2632 | DUU2: =DUS2+1 -> 2633 | DUW2: =DUU2+1 -> 2634 | DUY2: =DUW2+1 -> 2635 | DVA2: =DUY2+1 -> 2636 | DVC2: =DVA2+1 -> 2637 | DVE2: =DVC2+1 -> 2638 | DVG2: =DVE2+1 -> 2639 | DVI2: =DVG2+1 -> 2640 | DVK2: =DVI2+1 -> 2641 | DVM2: =DVK2+1 -> 2642 | DVO2: =DVM2+1 -> 2643 | DVQ2: =DVO2+1 -> 2644 | DVS2: =DVQ2+1 -> 2645 | DVU2: =DVS2+1 -> 2646 | DVW2: =DVU2+1 -> 2647 | DVY2: =DVW2+1 -> 2648 | DWA2: =DVY2+1 -> 2649 | DWC2: =DWA2+1 -> 2650 | DWE2: =DWC2+1 -> 2651 | DWG2: =DWE2+1 -> 2652 | DWI2: =DWG2+1 -> 2653 | DWK2: =DWI2+1 -> 2654 | DWM2: =DWK2+1 -> 2655 | DWO2: =DWM2+1 -> 2656 | DWQ2: =DWO2+1 -> 2657 | DWS2: =DWQ2+1 -> 2658 | DWU2: =DWS2+1 -> 2659 | DWW2: =DWU2+1 -> 2660 | DWY2: =DWW2+1 -> 2661 | DXA2: =DWY2+1 -> 2662 | DXC2: =DXA2+1 -> 2663 | DXE2: =DXC2+1 -> 2664 | DXG2: =DXE2+1 -> 2665 | DXI2: =DXG2+1 -> 2666 | DXK2: =DXI2+1 -> 2667 | DXM2: =DXK2+1 -> 2668 | DXO2: =DXM2+1 -> 2669 | DXQ2: =DXO2+1 -> 2670 | DXS2: =DXQ2+1 -> 2671 | DXU2: =DXS2+1 -> 2672 | DXW2: =DXU2+1 -> 2673 | DXY2: =DXW2+1 -> 2674 | DYA2: =DXY2+1 -> 2675 | DYC2: =DYA2+1 -> 2676 | DYE2: =DYC2+1 -> 2677 | DYG2: =DYE2+1 -> 2678 | DYI2: =DYG2+1 -> 2679 | DYK2: =DYI2+1 -> 2680 | DYM2: =DYK2+1 -> 2681 | DYO2: =DYM2+1 -> 2682 | DYQ2: =DYO2+1 -> 2683 | DYS2: =DYQ2+1 -> 2684 | DYU2: =DYS2+1 -> 2685 | DYW2: =DYU2+1 -> 2686 | DYY2: =DYW2+1 -> 2687 | DZA2: =DYY2+1 -> 2688 | DZC2: =DZA2+1 -> 2689 | DZE2: =DZC2+1 -> 2690 | DZG2: =DZE2+1 -> 2691 | DZI2: =DZG2+1 -> 2692 | DZK2: =DZI2+1 -> 2693 | DZM2: =DZK2+1 -> 2694 | DZO2: =DZM2+1 -> 2695 | DZQ2: =DZO2+1 -> 2696 | DZS2: =DZQ2+1 -> 2697 | DZU2: =DZS2+1 -> 2698 | DZW2: =DZU2+1 -> 2699 | DZY2: =DZW2+1 -> 2700 | EAA2: =DZY2+1 -> 2701 | EAC2: =EAA2+1 -> 2702 | EAE2: =EAC2+1 -> 2703 | EAG2: =EAE2+1 -> 2704 | EAI2: =EAG2+1 -> 2705 | EAK2: =EAI2+1 -> 2706 | EAM2: =EAK2+1 -> 2707 | EAO2: =EAM2+1 -> 2708 | EAQ2: =EAO2+1 -> 2709 | EAS2: =EAQ2+1 -> 2710 | EAU2: =EAS2+1 -> 2711 | EAW2: =EAU2+1 -> 2712 | EAY2: =EAW2+1 -> 2713 | EBA2: =EAY2+1 -> 2714 | EBC2: =EBA2+1 -> 2715 | EBE2: =EBC2+1 -> 2716 | EBG2: =EBE2+1 -> 2717 | EBI2: =EBG2+1 -> 2718 | EBK2: =EBI2+1 -> 2719 | EBM2: =EBK2+1 -> 2720 | EBO2: =EBM2+1 -> 2721 | EBQ2: =EBO2+1 -> 2722 | EBS2: =EBQ2+1 -> 2723 | EBU2: =EBS2+1 -> 2724 | EBW2: =EBU2+1 -> 2725 | EBY2: =EBW2+1 -> 2726 | ECA2: =EBY2+1 -> 2727 | ECC2: =ECA2+1 -> 2728 | ECE2: =ECC2+1 -> 2729 | ECG2: =ECE2+1 -> 2730 | ECI2: =ECG2+1 -> 2731 | ECK2: =ECI2+1 -> 2732 | ECM2: =ECK2+1 -> 2733 | ECO2: =ECM2+1 -> 2734 | ECQ2: =ECO2+1 -> 2735 | ECS2: =ECQ2+1 -> 2736 | ECU2: =ECS2+1 -> 2737 | ECW2: =ECU2+1 -> 2738 | ECY2: =ECW2+1 -> 2739 | EDA2: =ECY2+1 -> 2740 | EDC2: =EDA2+1 -> 2741 | EDE2: =EDC2+1 -> 2742 | EDG2: =EDE2+1 -> 2743 | EDI2: =EDG2+1 -> 2744 | EDK2: =EDI2+1 -> 2745 | EDM2: =EDK2+1 -> 2746 | EDO2: =EDM2+1 -> 2747 | EDQ2: =EDO2+1 -> 2748 | EDS2: =EDQ2+1 -> 2749 | EDU2: =EDS2+1 -> 2750 | EDW2: =EDU2+1 -> 2751 | EDY2: =EDW2+1 -> 2752 | EEA2: =EDY2+1 -> 2753 | EEC2: =EEA2+1 -> 2754 | EEE2: =EEC2+1 -> 2755 | EEG2: =EEE2+1 -> 2756 | EEI2: =EEG2+1 -> 2757 | EEK2: =EEI2+1 -> 2758 | EEM2: =EEK2+1 -> 2759 | EEO2: =EEM2+1 -> 2760 | EEQ2: =EEO2+1 -> 2761 | EES2: =EEQ2+1 -> 2762 | EEU2: =EES2+1 -> 2763 | EEW2: =EEU2+1 -> 2764 | EEY2: =EEW2+1 -> 2765 | EFA2: =EEY2+1 -> 2766 | EFC2: =EFA2+1 -> 2767 | EFE2: =EFC2+1 -> 2768 | EFG2: =EFE2+1 -> 2769 | EFI2: =EFG2+1 -> 2770 | EFK2: =EFI2+1 -> 2771 | EFM2: =EFK2+1 -> 2772 | EFO2: =EFM2+1 -> 2773 | EFQ2: =EFO2+1 -> 2774 | EFS2: =EFQ2+1 -> 2775 | EFU2: =EFS2+1 -> 2776 | EFW2: =EFU2+1 -> 2777 | EFY2: =EFW2+1 -> 2778 | EGA2: =EFY2+1 -> 2779 | EGC2: =EGA2+1 -> 2780 | EGE2: =EGC2+1 -> 2781 | EGG2: =EGE2+1 -> 2782 | EGI2: =EGG2+1 -> 2783 | EGK2: =EGI2+1 -> 2784 | EGM2: =EGK2+1 -> 2785 | EGO2: =EGM2+1 -> 2786 | EGQ2: =EGO2+1 -> 2787 | EGS2: =EGQ2+1 -> 2788 | EGU2: =EGS2+1 -> 2789 | EGW2: =EGU2+1 -> 2790 | EGY2: =EGW2+1 -> 2791 | EHA2: =EGY2+1 -> 2792 | EHC2: =EHA2+1 -> 2793 | EHE2: =EHC2+1 -> 2794 | EHG2: =EHE2+1 -> 2795 | EHI2: =EHG2+1 -> 2796 | EHK2: =EHI2+1 -> 2797 | EHM2: =EHK2+1 -> 2798 | EHO2: =EHM2+1 -> 2799 | EHQ2: =EHO2+1 -> 2800 | EHS2: =EHQ2+1 -> 2801 | EHU2: =EHS2+1 -> 2802 | EHW2: =EHU2+1 -> 2803 | EHY2: =EHW2+1 -> 2804 | EIA2: =EHY2+1 -> 2805 | EIC2: =EIA2+1 -> 2806 | EIE2: =EIC2+1 -> 2807 | EIG2: =EIE2+1 -> 2808 | EII2: =EIG2+1 -> 2809 | EIK2: =EII2+1 -> 2810 | EIM2: =EIK2+1 -> 2811 | EIO2: =EIM2+1 -> 2812 | EIQ2: =EIO2+1 -> 2813 | EIS2: =EIQ2+1 -> 2814 | EIU2: =EIS2+1 -> 2815 | EIW2: =EIU2+1 -> 2816 | EIY2: =EIW2+1 -> 2817 | EJA2: =EIY2+1 -> 2818 | EJC2: =EJA2+1 -> 2819 | EJE2: =EJC2+1 -> 2820 | EJG2: =EJE2+1 -> 2821 | EJI2: =EJG2+1 -> 2822 | EJK2: =EJI2+1 -> 2823 | EJM2: =EJK2+1 -> 2824 | EJO2: =EJM2+1 -> 2825 | EJQ2: =EJO2+1 -> 2826 | EJS2: =EJQ2+1 -> 2827 | EJU2: =EJS2+1 -> 2828 | EJW2: =EJU2+1 -> 2829 | EJY2: =EJW2+1 -> 2830 | EKA2: =EJY2+1 -> 2831 | EKC2: =EKA2+1 -> 2832 | EKE2: =EKC2+1 -> 2833 | EKG2: =EKE2+1 -> 2834 | EKI2: =EKG2+1 -> 2835 | EKK2: =EKI2+1 -> 2836 | EKM2: =EKK2+1 -> 2837 | EKO2: =EKM2+1 -> 2838 | EKQ2: =EKO2+1 -> 2839 | EKS2: =EKQ2+1 -> 2840 | EKU2: =EKS2+1 -> 2841 | EKW2: =EKU2+1 -> 2842 | EKY2: =EKW2+1 -> 2843 | ELA2: =EKY2+1 -> 2844 | ELC2: =ELA2+1 -> 2845 | ELE2: =ELC2+1 -> 2846 | ELG2: =ELE2+1 -> 2847 | ELI2: =ELG2+1 -> 2848 | ELK2: =ELI2+1 -> 2849 | ELM2: =ELK2+1 -> 2850 | ELO2: =ELM2+1 -> 2851 | ELQ2: =ELO2+1 -> 2852 | ELS2: =ELQ2+1 -> 2853 | ELU2: =ELS2+1 -> 2854 | ELW2: =ELU2+1 -> 2855 | ELY2: =ELW2+1 -> 2856 | EMA2: =ELY2+1 -> 2857 | EMC2: =EMA2+1 -> 2858 | EME2: =EMC2+1 -> 2859 | EMG2: =EME2+1 -> 2860 | EMI2: =EMG2+1 -> 2861 | EMK2: =EMI2+1 -> 2862 | EMM2: =EMK2+1 -> 2863 | EMO2: =EMM2+1 -> 2864 | EMQ2: =EMO2+1 -> 2865 | EMS2: =EMQ2+1 -> 2866 | EMU2: =EMS2+1 -> 2867 | EMW2: =EMU2+1 -> 2868 | EMY2: =EMW2+1 -> 2869 | ENA2: =EMY2+1 -> 2870 | ENC2: =ENA2+1 -> 2871 | ENE2: =ENC2+1 -> 2872 | ENG2: =ENE2+1 -> 2873 | ENI2: =ENG2+1 -> 2874 | ENK2: =ENI2+1 -> 2875 | ENM2: =ENK2+1 -> 2876 | ENO2: =ENM2+1 -> 2877 | ENQ2: =ENO2+1 -> 2878 | ENS2: =ENQ2+1 -> 2879 | ENU2: =ENS2+1 -> 2880 | ENW2: =ENU2+1 -> 2881 | ENY2: =ENW2+1 -> 2882 | EOA2: =ENY2+1 -> 2883 | EOC2: =EOA2+1 -> 2884 | EOE2: =EOC2+1 -> 2885 | EOG2: =EOE2+1 -> 2886 | EOI2: =EOG2+1 -> 2887 | EOK2: =EOI2+1 -> 2888 | EOM2: =EOK2+1 -> 2889 | EOO2: =EOM2+1 -> 2890 | EOQ2: =EOO2+1 -> 2891 | EOS2: =EOQ2+1 -> 2892 | EOU2: =EOS2+1 -> 2893 | EOW2: =EOU2+1 -> 2894 | EOY2: =EOW2+1 -> 2895 | EPA2: =EOY2+1 -> 2896 | EPC2: =EPA2+1 -> 2897 | EPE2: =EPC2+1 -> 2898 | EPG2: =EPE2+1 -> 2899 | EPI2: =EPG2+1 -> 2900 | EPK2: =EPI2+1 -> 2901 | EPM2: =EPK2+1 -> 2902 | EPO2: =EPM2+1 -> 2903 | EPQ2: =EPO2+1 -> 2904 | EPS2: =EPQ2+1 -> 2905 | EPU2: =EPS2+1 -> 2906 | EPW2: =EPU2+1 -> 2907 | EPY2: =EPW2+1 -> 2908 | EQA2: =EPY2+1 -> 2909 | EQC2: =EQA2+1 -> 2910 | EQE2: =EQC2+1 -> 2911 | EQG2: =EQE2+1 -> 2912 | EQI2: =EQG2+1 -> 2913 | EQK2: =EQI2+1 -> 2914 | EQM2: =EQK2+1 -> 2915 | EQO2: =EQM2+1 -> 2916 | EQQ2: =EQO2+1 -> 2917 | EQS2: =EQQ2+1 -> 2918 | EQU2: =EQS2+1 -> 2919 | EQW2: =EQU2+1 -> 2920 | EQY2: =EQW2+1 -> 2921 | ERA2: =EQY2+1 -> 2922 | ERC2: =ERA2+1 -> 2923 | ERE2: =ERC2+1 -> 2924 | ERG2: =ERE2+1 -> 2925 | ERI2: =ERG2+1 -> 2926 | ERK2: =ERI2+1 -> 2927 | ERM2: =ERK2+1 -> 2928 | ERO2: =ERM2+1 -> 2929 | ERQ2: =ERO2+1 -> 2930 | ERS2: =ERQ2+1 -> 2931 | ERU2: =ERS2+1 -> 2932 | ERW2: =ERU2+1 -> 2933 | ERY2: =ERW2+1 -> 2934 | ESA2: =ERY2+1 -> 2935 | ESC2: =ESA2+1 -> 2936 | ESE2: =ESC2+1 -> 2937 | ESG2: =ESE2+1 -> 2938 | ESI2: =ESG2+1 -> 2939 | ESK2: =ESI2+1 -> 2940 | ESM2: =ESK2+1 -> 2941 | ESO2: =ESM2+1 -> 2942 | ESQ2: =ESO2+1 -> 2943 | ESS2: =ESQ2+1 -> 2944 | ESU2: =ESS2+1 -> 2945 | ESW2: =ESU2+1 -> 2946 | ESY2: =ESW2+1 -> 2947 | ETA2: =ESY2+1 -> 2948 | ETC2: =ETA2+1 -> 2949 | ETE2: =ETC2+1 -> 2950 | ETG2: =ETE2+1 -> 2951 | ETI2: =ETG2+1 -> 2952 | ETK2: =ETI2+1 -> 2953 | ETM2: =ETK2+1 -> 2954 | ETO2: =ETM2+1 -> 2955 | ETQ2: =ETO2+1 -> 2956 | ETS2: =ETQ2+1 -> 2957 | ETU2: =ETS2+1 -> 2958 | ETW2: =ETU2+1 -> 2959 | ETY2: =ETW2+1 -> 2960 | EUA2: =ETY2+1 -> 2961 | EUC2: =EUA2+1 -> 2962 | EUE2: =EUC2+1 -> 2963 | EUG2: =EUE2+1 -> 2964 | EUI2: =EUG2+1 -> 2965 | EUK2: =EUI2+1 -> 2966 | EUM2: =EUK2+1 -> 2967 | EUO2: =EUM2+1 -> 2968 | EUQ2: =EUO2+1 -> 2969 | EUS2: =EUQ2+1 -> 2970 | EUU2: =EUS2+1 -> 2971 | EUW2: =EUU2+1 -> 2972 | EUY2: =EUW2+1 -> 2973 | EVA2: =EUY2+1 -> 2974 | EVC2: =EVA2+1 -> 2975 | EVE2: =EVC2+1 -> 2976 | EVG2: =EVE2+1 -> 2977 | EVI2: =EVG2+1 -> 2978 | EVK2: =EVI2+1 -> 2979 | EVM2: =EVK2+1 -> 2980 | EVO2: =EVM2+1 -> 2981 | EVQ2: =EVO2+1 -> 2982 | EVS2: =EVQ2+1 -> 2983 | EVU2: =EVS2+1 -> 2984 | EVW2: =EVU2+1 -> 2985 | EVY2: =EVW2+1 -> 2986 | EWA2: =EVY2+1 -> 2987 | EWC2: =EWA2+1 -> 2988 | EWE2: =EWC2+1 -> 2989 | EWG2: =EWE2+1 -> 2990 | EWI2: =EWG2+1 -> 2991 | EWK2: =EWI2+1 -> 2992 | EWM2: =EWK2+1 -> 2993 | EWO2: =EWM2+1 -> 2994 | EWQ2: =EWO2+1 -> 2995 | EWS2: =EWQ2+1 -> 2996 | EWU2: =EWS2+1 -> 2997 | EWW2: =EWU2+1 -> 2998 | EWY2: =EWW2+1 -> 2999 | EXA2: =EWY2+1 -> 3000 | EXC2: =EXA2+1 -> 3001 | EXE2: =EXC2+1 -> 3002 | EXG2: =EXE2+1 -> 3003 | EXI2: =EXG2+1 -> 3004 | EXK2: =EXI2+1 -> 3005 | EXM2: =EXK2+1 -> 3006 | EXO2: =EXM2+1 -> 3007 | EXQ2: =EXO2+1 -> 3008 | EXS2: =EXQ2+1 -> 3009 | EXU2: =EXS2+1 -> 3010 | EXW2: =EXU2+1 -> 3011 | EXY2: =EXW2+1 -> 3012 | EYA2: =EXY2+1 -> 3013 | EYC2: =EYA2+1 -> 3014 | EYE2: =EYC2+1 -> 3015 | EYG2: =EYE2+1 -> 3016 | EYI2: =EYG2+1 -> 3017 | EYK2: =EYI2+1 -> 3018 | EYM2: =EYK2+1 -> 3019 | EYO2: =EYM2+1 -> 3020 | EYQ2: =EYO2+1 -> 3021 | EYS2: =EYQ2+1 -> 3022 | EYU2: =EYS2+1 -> 3023 | EYW2: =EYU2+1 -> 3024 | EYY2: =EYW2+1 -> 3025 | EZA2: =EYY2+1 -> 3026 | EZC2: =EZA2+1 -> 3027 | EZE2: =EZC2+1 -> 3028 | EZG2: =EZE2+1 -> 3029 | EZI2: =EZG2+1 -> 3030 | EZK2: =EZI2+1 -> 3031 | EZM2: =EZK2+1 -> 3032 | EZO2: =EZM2+1 -> 3033 | EZQ2: =EZO2+1 -> 3034 | EZS2: =EZQ2+1 -> 3035 | EZU2: =EZS2+1 -> 3036 | EZW2: =EZU2+1 -> 3037 | EZY2: =EZW2+1 -> 3038 | FAA2: =EZY2+1 -> 3039 | FAC2: =FAA2+1 -> 3040 | FAE2: =FAC2+1 -> 3041 | FAG2: =FAE2+1 -> 3042 | FAI2: =FAG2+1 -> 3043 | FAK2: =FAI2+1 -> 3044 | FAM2: =FAK2+1 -> 3045 | FAO2: =FAM2+1 -> 3046 | FAQ2: =FAO2+1 -> 3047 | FAS2: =FAQ2+1 -> 3048 | FAU2: =FAS2+1 -> 3049 | FAW2: =FAU2+1 -> 3050 | FAY2: =FAW2+1 -> 3051 | FBA2: =FAY2+1 -> 3052 | FBC2: =FBA2+1 -> 3053 | FBE2: =FBC2+1 -> 3054 | FBG2: =FBE2+1 -> 3055 | FBI2: =FBG2+1 -> 3056 | FBK2: =FBI2+1 -> 3057 | FBM2: =FBK2+1 -> 3058 | FBO2: =FBM2+1 -> 3059 | FBQ2: =FBO2+1 -> 3060 | FBS2: =FBQ2+1 -> 3061 | FBU2: =FBS2+1 -> 3062 | FBW2: =FBU2+1 -> 3063 | FBY2: =FBW2+1 -> 3064 | FCA2: =FBY2+1 -> 3065 | FCC2: =FCA2+1 -> 3066 | FCE2: =FCC2+1 -> 3067 | FCG2: =FCE2+1 -> 3068 | FCI2: =FCG2+1 -> 3069 | FCK2: =FCI2+1 -> 3070 | FCM2: =FCK2+1 -> 3071 | FCO2: =FCM2+1 -> 3072 | FCQ2: =FCO2+1 -> 3073 | FCS2: =FCQ2+1 -> 3074 | FCU2: =FCS2+1 -> 3075 | FCW2: =FCU2+1 -> 3076 | FCY2: =FCW2+1 -> 3077 | FDA2: =FCY2+1 -> 3078 | FDC2: =FDA2+1 -> 3079 | FDE2: =FDC2+1 -> 3080 | FDG2: =FDE2+1 -> 3081 | FDI2: =FDG2+1 -> 3082 | FDK2: =FDI2+1 -> 3083 | FDM2: =FDK2+1 -> 3084 | FDO2: =FDM2+1 -> 3085 | FDQ2: =FDO2+1 -> 3086 | FDS2: =FDQ2+1 -> 3087 | FDU2: =FDS2+1 -> 3088 | FDW2: =FDU2+1 -> 3089 | FDY2: =FDW2+1 -> 3090 | FEA2: =FDY2+1 -> 3091 | FEC2: =FEA2+1 -> 3092 | FEE2: =FEC2+1 -> 3093 | FEG2: =FEE2+1 -> 3094 | FEI2: =FEG2+1 -> 3095 | FEK2: =FEI2+1 -> 3096 | FEM2: =FEK2+1 -> 3097 | FEO2: =FEM2+1 -> 3098 | FEQ2: =FEO2+1 -> 3099 | FES2: =FEQ2+1 -> 3100 | FEU2: =FES2+1 -> 3101 | FEW2: =FEU2+1 -> 3102 | FEY2: =FEW2+1 -> 3103 | FFA2: =FEY2+1 -> 3104 | FFC2: =FFA2+1 -> 3105 | FFE2: =FFC2+1 -> 3106 | FFG2: =FFE2+1 -> 3107 | FFI2: =FFG2+1 -> 3108 | FFK2: =FFI2+1 -> 3109 | FFM2: =FFK2+1 -> 3110 | FFO2: =FFM2+1 -> 3111 | FFQ2: =FFO2+1 -> 3112 | FFS2: =FFQ2+1 -> 3113 | FFU2: =FFS2+1 -> 3114 | FFW2: =FFU2+1 -> 3115 | FFY2: =FFW2+1 -> 3116 | FGA2: =FFY2+1 -> 3117 | FGC2: =FGA2+1 -> 3118 | FGE2: =FGC2+1 -> 3119 | FGG2: =FGE2+1 -> 3120 | FGI2: =FGG2+1 -> 3121 | FGK2: =FGI2+1 -> 3122 | FGM2: =FGK2+1 -> 3123 | FGO2: =FGM2+1 -> 3124 | FGQ2: =FGO2+1 -> 3125 | FGS2: =FGQ2+1 -> 3126 | FGU2: =FGS2+1 -> 3127 | FGW2: =FGU2+1 -> 3128 | FGY2: =FGW2+1 -> 3129 | FHA2: =FGY2+1 -> 3130 | FHC2: =FHA2+1 -> 3131 | FHE2: =FHC2+1 -> 3132 | FHG2: =FHE2+1 -> 3133 | FHI2: =FHG2+1 -> 3134 | FHK2: =FHI2+1 -> 3135 | FHM2: =FHK2+1 -> 3136 | FHO2: =FHM2+1 -> 3137 | FHQ2: =FHO2+1 -> 3138 | FHS2: =FHQ2+1 -> 3139 | FHU2: =FHS2+1 -> 3140 | FHW2: =FHU2+1 -> 3141 | FHY2: =FHW2+1 -> 3142 | FIA2: =FHY2+1 -> 3143 | FIC2: =FIA2+1 -> 3144 | FIE2: =FIC2+1 -> 3145 | FIG2: =FIE2+1 -> 3146 | FII2: =FIG2+1 -> 3147 | FIK2: =FII2+1 -> 3148 | FIM2: =FIK2+1 -> 3149 | FIO2: =FIM2+1 -> 3150 | FIQ2: =FIO2+1 -> 3151 | FIS2: =FIQ2+1 -> 3152 | FIU2: =FIS2+1 -> 3153 | FIW2: =FIU2+1 -> 3154 | FIY2: =FIW2+1 -> 3155 | FJA2: =FIY2+1 -> 3156 | FJC2: =FJA2+1 -> 3157 | FJE2: =FJC2+1 -> 3158 | FJG2: =FJE2+1 -> 3159 | FJI2: =FJG2+1 -> 3160 | FJK2: =FJI2+1 -> 3161 | FJM2: =FJK2+1 -> 3162 | FJO2: =FJM2+1 -> 3163 | FJQ2: =FJO2+1 -> 3164 | FJS2: =FJQ2+1 -> 3165 | FJU2: =FJS2+1 -> 3166 | FJW2: =FJU2+1 -> 3167 | FJY2: =FJW2+1 -> 3168 | FKA2: =FJY2+1 -> 3169 | FKC2: =FKA2+1 -> 3170 | FKE2: =FKC2+1 -> 3171 | FKG2: =FKE2+1 -> 3172 | FKI2: =FKG2+1 -> 3173 | FKK2: =FKI2+1 -> 3174 | FKM2: =FKK2+1 -> 3175 | FKO2: =FKM2+1 -> 3176 | FKQ2: =FKO2+1 -> 3177 | FKS2: =FKQ2+1 -> 3178 | FKU2: =FKS2+1 -> 3179 | FKW2: =FKU2+1 -> 3180 | FKY2: =FKW2+1 -> 3181 | FLA2: =FKY2+1 -> 3182 | FLC2: =FLA2+1 -> 3183 | FLE2: =FLC2+1 -> 3184 | FLG2: =FLE2+1 -> 3185 | FLI2: =FLG2+1 -> 3186 | FLK2: =FLI2+1 -> 3187 | FLM2: =FLK2+1 -> 3188 | FLO2: =FLM2+1 -> 3189 | FLQ2: =FLO2+1 -> 3190 | FLS2: =FLQ2+1 -> 3191 | FLU2: =FLS2+1 -> 3192 | FLW2: =FLU2+1 -> 3193 | FLY2: =FLW2+1 -> 3194 | FMA2: =FLY2+1 -> 3195 | FMC2: =FMA2+1 -> 3196 | FME2: =FMC2+1 -> 3197 | FMG2: =FME2+1 -> 3198 | FMI2: =FMG2+1 -> 3199 | FMK2: =FMI2+1 -> 3200 | FMM2: =FMK2+1 -> 3201 | FMO2: =FMM2+1 -> 3202 | FMQ2: =FMO2+1 -> 3203 | FMS2: =FMQ2+1 -> 3204 | FMU2: =FMS2+1 -> 3205 | FMW2: =FMU2+1 -> 3206 | FMY2: =FMW2+1 -> 3207 | FNA2: =FMY2+1 -> 3208 | FNC2: =FNA2+1 -> 3209 | FNE2: =FNC2+1 -> 3210 | FNG2: =FNE2+1 -> 3211 | FNI2: =FNG2+1 -> 3212 | FNK2: =FNI2+1 -> 3213 | FNM2: =FNK2+1 -> 3214 | FNO2: =FNM2+1 -> 3215 | FNQ2: =FNO2+1 -> 3216 | FNS2: =FNQ2+1 -> 3217 | FNU2: =FNS2+1 -> 3218 | FNW2: =FNU2+1 -> 3219 | FNY2: =FNW2+1 -> 3220 | FOA2: =FNY2+1 -> 3221 | FOC2: =FOA2+1 -> 3222 | FOE2: =FOC2+1 -> 3223 | FOG2: =FOE2+1 -> 3224 | FOI2: =FOG2+1 -> 3225 | FOK2: =FOI2+1 -> 3226 | FOM2: =FOK2+1 -> 3227 | FOO2: =FOM2+1 -> 3228 | FOQ2: =FOO2+1 -> 3229 | FOS2: =FOQ2+1 -> 3230 | FOU2: =FOS2+1 -> 3231 | FOW2: =FOU2+1 -> 3232 | FOY2: =FOW2+1 -> 3233 | FPA2: =FOY2+1 -> 3234 | FPC2: =FPA2+1 -> 3235 | FPE2: =FPC2+1 -> 3236 | FPG2: =FPE2+1 -> 3237 | FPI2: =FPG2+1 -> 3238 | FPK2: =FPI2+1 -> 3239 | FPM2: =FPK2+1 -> 3240 | FPO2: =FPM2+1 -> 3241 | FPQ2: =FPO2+1 -> 3242 | FPS2: =FPQ2+1 -> 3243 | FPU2: =FPS2+1 -> 3244 | FPW2: =FPU2+1 -> 3245 | FPY2: =FPW2+1 -> 3246 | FQA2: =FPY2+1 -> 3247 | FQC2: =FQA2+1 -> 3248 | FQE2: =FQC2+1 -> 3249 | FQG2: =FQE2+1 -> 3250 | FQI2: =FQG2+1 -> 3251 | FQK2: =FQI2+1 -> 3252 | FQM2: =FQK2+1 -> 3253 | FQO2: =FQM2+1 -> 3254 | FQQ2: =FQO2+1 -> 3255 | FQS2: =FQQ2+1 -> 3256 | FQU2: =FQS2+1 -> 3257 | FQW2: =FQU2+1 -> 3258 | FQY2: =FQW2+1 -> 3259 | FRA2: =FQY2+1 -> 3260 | FRC2: =FRA2+1 -> 3261 | FRE2: =FRC2+1 -> 3262 | FRG2: =FRE2+1 -> 3263 | FRI2: =FRG2+1 -> 3264 | FRK2: =FRI2+1 -> 3265 | FRM2: =FRK2+1 -> 3266 | FRO2: =FRM2+1 -> 3267 | FRQ2: =FRO2+1 -> 3268 | FRS2: =FRQ2+1 -> 3269 | FRU2: =FRS2+1 -> 3270 | FRW2: =FRU2+1 -> 3271 | FRY2: =FRW2+1 -> 3272 | FSA2: =FRY2+1 -> 3273 | FSC2: =FSA2+1 -> 3274 | FSE2: =FSC2+1 -> 3275 | FSG2: =FSE2+1 -> 3276 | FSI2: =FSG2+1 -> 3277 | FSK2: =FSI2+1 -> 3278 | FSM2: =FSK2+1 -> 3279 | FSO2: =FSM2+1 -> 3280 | FSQ2: =FSO2+1 -> 3281 | FSS2: =FSQ2+1 -> 3282 | FSU2: =FSS2+1 -> 3283 | FSW2: =FSU2+1 -> 3284 | FSY2: =FSW2+1 -> 3285 | FTA2: =FSY2+1 -> 3286 | FTC2: =FTA2+1 -> 3287 | FTE2: =FTC2+1 -> 3288 | FTG2: =FTE2+1 -> 3289 | FTI2: =FTG2+1 -> 3290 | FTK2: =FTI2+1 -> 3291 | FTM2: =FTK2+1 -> 3292 | FTO2: =FTM2+1 -> 3293 | FTQ2: =FTO2+1 -> 3294 | FTS2: =FTQ2+1 -> 3295 | FTU2: =FTS2+1 -> 3296 | FTW2: =FTU2+1 -> 3297 | FTY2: =FTW2+1 -> 3298 | FUA2: =FTY2+1 -> 3299 | FUC2: =FUA2+1 -> 3300 | FUE2: =FUC2+1 -> 3301 | FUG2: =FUE2+1 -> 3302 | FUI2: =FUG2+1 -> 3303 | FUK2: =FUI2+1 -> 3304 | FUM2: =FUK2+1 -> 3305 | FUO2: =FUM2+1 -> 3306 | FUQ2: =FUO2+1 -> 3307 | FUS2: =FUQ2+1 -> 3308 | FUU2: =FUS2+1 -> 3309 | FUW2: =FUU2+1 -> 3310 | FUY2: =FUW2+1 -> 3311 | FVA2: =FUY2+1 -> 3312 | FVC2: =FVA2+1 -> 3313 | FVE2: =FVC2+1 -> 3314 | FVG2: =FVE2+1 -> 3315 | FVI2: =FVG2+1 -> 3316 | FVK2: =FVI2+1 -> 3317 | FVM2: =FVK2+1 -> 3318 | FVO2: =FVM2+1 -> 3319 | FVQ2: =FVO2+1 -> 3320 | FVS2: =FVQ2+1 -> 3321 | FVU2: =FVS2+1 -> 3322 | FVW2: =FVU2+1 -> 3323 | FVY2: =FVW2+1 -> 3324 | FWA2: =FVY2+1 -> 3325 | FWC2: =FWA2+1 -> 3326 | FWE2: =FWC2+1 -> 3327 | FWG2: =FWE2+1 -> 3328 | FWI2: =FWG2+1 -> 3329 | FWK2: =FWI2+1 -> 3330 | FWM2: =FWK2+1 -> 3331 | FWO2: =FWM2+1 -> 3332 | FWQ2: =FWO2+1 -> 3333 | FWS2: =FWQ2+1 -> 3334 | FWU2: =FWS2+1 -> 3335 | FWW2: =FWU2+1 -> 3336 | FWY2: =FWW2+1 -> 3337 | FXA2: =FWY2+1 -> 3338 | FXC2: =FXA2+1 -> 3339 | FXE2: =FXC2+1 -> 3340 | FXG2: =FXE2+1 -> 3341 | FXI2: =FXG2+1 -> 3342 | FXK2: =FXI2+1 -> 3343 | FXM2: =FXK2+1 -> 3344 | FXO2: =FXM2+1 -> 3345 | FXQ2: =FXO2+1 -> 3346 | FXS2: =FXQ2+1 -> 3347 | FXU2: =FXS2+1 -> 3348 | FXW2: =FXU2+1 -> 3349 | FXY2: =FXW2+1 -> 3350 | FYA2: =FXY2+1 -> 3351 | FYC2: =FYA2+1 -> 3352 | FYE2: =FYC2+1 -> 3353 | FYG2: =FYE2+1 -> 3354 | FYI2: =FYG2+1 -> 3355 | FYK2: =FYI2+1 -> 3356 | FYM2: =FYK2+1 -> 3357 | FYO2: =FYM2+1 -> 3358 | FYQ2: =FYO2+1 -> 3359 | FYS2: =FYQ2+1 -> 3360 | FYU2: =FYS2+1 -> 3361 | FYW2: =FYU2+1 -> 3362 | FYY2: =FYW2+1 -> 3363 | FZA2: =FYY2+1 -> 3364 | FZC2: =FZA2+1 -> 3365 | FZE2: =FZC2+1 -> 3366 | FZG2: =FZE2+1 -> 3367 | FZI2: =FZG2+1 -> 3368 | FZK2: =FZI2+1 -> 3369 | FZM2: =FZK2+1 -> 3370 | FZO2: =FZM2+1 -> 3371 | FZQ2: =FZO2+1 -> 3372 | FZS2: =FZQ2+1 -> 3373 | FZU2: =FZS2+1 -> 3374 | FZW2: =FZU2+1 -> 3375 | FZY2: =FZW2+1 -> 3376 | GAA2: =FZY2+1 -> 3377 | GAC2: =GAA2+1 -> 3378 | GAE2: =GAC2+1 -> 3379 | GAG2: =GAE2+1 -> 3380 | GAI2: =GAG2+1 -> 3381 | GAK2: =GAI2+1 -> 3382 | GAM2: =GAK2+1 -> 3383 | GAO2: =GAM2+1 -> 3384 | GAQ2: =GAO2+1 -> 3385 | GAS2: =GAQ2+1 -> 3386 | GAU2: =GAS2+1 -> 3387 | GAW2: =GAU2+1 -> 3388 | GAY2: =GAW2+1 -> 3389 | GBA2: =GAY2+1 -> 3390 | GBC2: =GBA2+1 -> 3391 | GBE2: =GBC2+1 -> 3392 | GBG2: =GBE2+1 -> 3393 | GBI2: =GBG2+1 -> 3394 | GBK2: =GBI2+1 -> 3395 | GBM2: =GBK2+1 -> 3396 | GBO2: =GBM2+1 -> 3397 | GBQ2: =GBO2+1 -> 3398 | GBS2: =GBQ2+1 -> 3399 | GBU2: =GBS2+1 -> 3400 | GBW2: =GBU2+1 -> 3401 | GBY2: =GBW2+1 -> 3402 | GCA2: =GBY2+1 -> 3403 | GCC2: =GCA2+1 -> 3404 | GCE2: =GCC2+1 -> 3405 | GCG2: =GCE2+1 -> 3406 | GCI2: =GCG2+1 -> 3407 | GCK2: =GCI2+1 -> 3408 | GCM2: =GCK2+1 -> 3409 | GCO2: =GCM2+1 -> 3410 | GCQ2: =GCO2+1 -> 3411 | GCS2: =GCQ2+1 -> 3412 | GCU2: =GCS2+1 -> 3413 | GCW2: =GCU2+1 -> 3414 | GCY2: =GCW2+1 -> 3415 | GDA2: =GCY2+1 -> 3416 | GDC2: =GDA2+1 -> 3417 | GDE2: =GDC2+1 -> 3418 | GDG2: =GDE2+1 -> 3419 | GDI2: =GDG2+1 -> 3420 | GDK2: =GDI2+1 -> 3421 | GDM2: =GDK2+1 -> 3422 | GDO2: =GDM2+1 -> 3423 | GDQ2: =GDO2+1 -> 3424 | GDS2: =GDQ2+1 -> 3425 | GDU2: =GDS2+1 -> 3426 | GDW2: =GDU2+1 -> 3427 | GDY2: =GDW2+1 -> 3428 | GEA2: =GDY2+1 -> 3429 | GEC2: =GEA2+1 -> 3430 | GEE2: =GEC2+1 -> 3431 | GEG2: =GEE2+1 -> 3432 | GEI2: =GEG2+1 -> 3433 | GEK2: =GEI2+1 -> 3434 | GEM2: =GEK2+1 -> 3435 | GEO2: =GEM2+1 -> 3436 | GEQ2: =GEO2+1 -> 3437 | GES2: =GEQ2+1 -> 3438 | GEU2: =GES2+1 -> 3439 | GEW2: =GEU2+1 -> 3440 | GEY2: =GEW2+1 -> 3441 | GFA2: =GEY2+1 -> 3442 | GFC2: =GFA2+1 -> 3443 | GFE2: =GFC2+1 -> 3444 | GFG2: =GFE2+1 -> 3445 | GFI2: =GFG2+1 -> 3446 | GFK2: =GFI2+1 -> 3447 | GFM2: =GFK2+1 -> 3448 | GFO2: =GFM2+1 -> 3449 | GFQ2: =GFO2+1 -> 3450 | GFS2: =GFQ2+1 -> 3451 | GFU2: =GFS2+1 -> 3452 | GFW2: =GFU2+1 -> 3453 | GFY2: =GFW2+1 -> 3454 | GGA2: =GFY2+1 -> 3455 | GGC2: =GGA2+1 -> 3456 | GGE2: =GGC2+1 -> 3457 | GGG2: =GGE2+1 -> 3458 | GGI2: =GGG2+1 -> 3459 | GGK2: =GGI2+1 -> 3460 | GGM2: =GGK2+1 -> 3461 | GGO2: =GGM2+1 -> 3462 | GGQ2: =GGO2+1 -> 3463 | GGS2: =GGQ2+1 -> 3464 | GGU2: =GGS2+1 -> 3465 | GGW2: =GGU2+1 -> 3466 | GGY2: =GGW2+1 -> 3467 | GHA2: =GGY2+1 -> 3468 | GHC2: =GHA2+1 -> 3469 | GHE2: =GHC2+1 -> 3470 | GHG2: =GHE2+1 -> 3471 | GHI2: =GHG2+1 -> 3472 | GHK2: =GHI2+1 -> 3473 | GHM2: =GHK2+1 -> 3474 | GHO2: =GHM2+1 -> 3475 | GHQ2: =GHO2+1 -> 3476 | GHS2: =GHQ2+1 -> 3477 | GHU2: =GHS2+1 -> 3478 | GHW2: =GHU2+1 -> 3479 | GHY2: =GHW2+1 -> 3480 | GIA2: =GHY2+1 -> 3481 | GIC2: =GIA2+1 -> 3482 | GIE2: =GIC2+1 -> 3483 | GIG2: =GIE2+1 -> 3484 | GII2: =GIG2+1 -> 3485 | GIK2: =GII2+1 -> 3486 | GIM2: =GIK2+1 -> 3487 | GIO2: =GIM2+1 -> 3488 | GIQ2: =GIO2+1 -> 3489 | GIS2: =GIQ2+1 -> 3490 | GIU2: =GIS2+1 -> 3491 | GIW2: =GIU2+1 -> 3492 | GIY2: =GIW2+1 -> 3493 | GJA2: =GIY2+1 -> 3494 | GJC2: =GJA2+1 -> 3495 | GJE2: =GJC2+1 -> 3496 | GJG2: =GJE2+1 -> 3497 | GJI2: =GJG2+1 -> 3498 | GJK2: =GJI2+1 -> 3499 | GJM2: =GJK2+1 -> 3500 | GJO2: =GJM2+1 -> 3501 | GJQ2: =GJO2+1 -> 3502 | GJS2: =GJQ2+1 -> 3503 | GJU2: =GJS2+1 -> 3504 | GJW2: =GJU2+1 -> 3505 | GJY2: =GJW2+1 -> 3506 | GKA2: =GJY2+1 -> 3507 | GKC2: =GKA2+1 -> 3508 | GKE2: =GKC2+1 -> 3509 | GKG2: =GKE2+1 -> 3510 | GKI2: =GKG2+1 -> 3511 | GKK2: =GKI2+1 -> 3512 | GKM2: =GKK2+1 -> 3513 | GKO2: =GKM2+1 -> 3514 | GKQ2: =GKO2+1 -> 3515 | GKS2: =GKQ2+1 -> 3516 | GKU2: =GKS2+1 -> 3517 | GKW2: =GKU2+1 -> 3518 | GKY2: =GKW2+1 -> 3519 | GLA2: =GKY2+1 -> 3520 | GLC2: =GLA2+1 -> 3521 | GLE2: =GLC2+1 -> 3522 | GLG2: =GLE2+1 -> 3523 | GLI2: =GLG2+1 -> 3524 | GLK2: =GLI2+1 -> 3525 | GLM2: =GLK2+1 -> 3526 | GLO2: =GLM2+1 -> 3527 | GLQ2: =GLO2+1 -> 3528 | GLS2: =GLQ2+1 -> 3529 | GLU2: =GLS2+1 -> 3530 | GLW2: =GLU2+1 -> 3531 | GLY2: =GLW2+1 -> 3532 | GMA2: =GLY2+1 -> 3533 | GMC2: =GMA2+1 -> 3534 | GME2: =GMC2+1 -> 3535 | GMG2: =GME2+1 -> 3536 | GMI2: =GMG2+1 -> 3537 | GMK2: =GMI2+1 -> 3538 | GMM2: =GMK2+1 -> 3539 | GMO2: =GMM2+1 -> 3540 | GMQ2: =GMO2+1 -> 3541 | GMS2: =GMQ2+1 -> 3542 | GMU2: =GMS2+1 -> 3543 | GMW2: =GMU2+1 -> 3544 | GMY2: =GMW2+1 -> 3545 | GNA2: =GMY2+1 -> 3546 | GNC2: =GNA2+1 -> 3547 | GNE2: =GNC2+1 -> 3548 | GNG2: =GNE2+1 -> 3549 | GNI2: =GNG2+1 -> 3550 | GNK2: =GNI2+1 -> 3551 | GNM2: =GNK2+1 -> 3552 | GNO2: =GNM2+1 -> 3553 | GNQ2: =GNO2+1 -> 3554 | GNS2: =GNQ2+1 -> 3555 | GNU2: =GNS2+1 -> 3556 | GNW2: =GNU2+1 -> 3557 | GNY2: =GNW2+1 -> 3558 | GOA2: =GNY2+1 -> 3559 | GOC2: =GOA2+1 -> 3560 | GOE2: =GOC2+1 -> 3561 | GOG2: =GOE2+1 -> 3562 | GOI2: =GOG2+1 -> 3563 | GOK2: =GOI2+1 -> 3564 | GOM2: =GOK2+1 -> 3565 | GOO2: =GOM2+1 -> 3566 | GOQ2: =GOO2+1 -> 3567 | GOS2: =GOQ2+1 -> 3568 | GOU2: =GOS2+1 -> 3569 | GOW2: =GOU2+1 -> 3570 | GOY2: =GOW2+1 -> 3571 | GPA2: =GOY2+1 -> 3572 | GPC2: =GPA2+1 -> 3573 | GPE2: =GPC2+1 -> 3574 | GPG2: =GPE2+1 -> 3575 | GPI2: =GPG2+1 -> 3576 | GPK2: =GPI2+1 -> 3577 | GPM2: =GPK2+1 -> 3578 | GPO2: =GPM2+1 -> 3579 | GPQ2: =GPO2+1 -> 3580 | GPS2: =GPQ2+1 -> 3581 | GPU2: =GPS2+1 -> 3582 | GPW2: =GPU2+1 -> 3583 | GPY2: =GPW2+1 -> 3584 | GQA2: =GPY2+1 -> 3585 | GQC2: =GQA2+1 -> 3586 | GQE2: =GQC2+1 -> 3587 | GQG2: =GQE2+1 -> 3588 | GQI2: =GQG2+1 -> 3589 | GQK2: =GQI2+1 -> 3590 | GQM2: =GQK2+1 -> 3591 | GQO2: =GQM2+1 -> 3592 | GQQ2: =GQO2+1 -> 3593 | GQS2: =GQQ2+1 -> 3594 | GQU2: =GQS2+1 -> 3595 | GQW2: =GQU2+1 -> 3596 | GQY2: =GQW2+1 -> 3597 | GRA2: =GQY2+1 -> 3598 | GRC2: =GRA2+1 -> 3599 | GRE2: =GRC2+1 -> 3600 | GRG2: =GRE2+1 -> 3601 | GRI2: =GRG2+1 -> 3602 | GRK2: =GRI2+1 -> 3603 | GRM2: =GRK2+1 -> 3604 | GRO2: =GRM2+1 -> 3605 | GRQ2: =GRO2+1 -> 3606 | GRS2: =GRQ2+1 -> 3607 | GRU2: =GRS2+1 -> 3608 | GRW2: =GRU2+1 -> 3609 | GRY2: =GRW2+1 -> 3610 | GSA2: =GRY2+1 -> 3611 | GSC2: =GSA2+1 -> 3612 | GSE2: =GSC2+1 -> 3613 | GSG2: =GSE2+1 -> 3614 | GSI2: =GSG2+1 -> 3615 | GSK2: =GSI2+1 -> 3616 | GSM2: =GSK2+1 -> 3617 | GSO2: =GSM2+1 -> 3618 | GSQ2: =GSO2+1 -> 3619 | GSS2: =GSQ2+1 -> 3620 | GSU2: =GSS2+1 -> 3621 | GSW2: =GSU2+1 -> 3622 | GSY2: =GSW2+1 -> 3623 | GTA2: =GSY2+1 -> 3624 | GTC2: =GTA2+1 -> 3625 | GTE2: =GTC2+1 -> 3626 | GTG2: =GTE2+1 -> 3627 | GTI2: =GTG2+1 -> 3628 | GTK2: =GTI2+1 -> 3629 | GTM2: =GTK2+1 -> 3630 | GTO2: =GTM2+1 -> 3631 | GTQ2: =GTO2+1 -> 3632 | GTS2: =GTQ2+1 -> 3633 | GTU2: =GTS2+1 -> 3634 | GTW2: =GTU2+1 -> 3635 | GTY2: =GTW2+1 -> 3636 | GUA2: =GTY2+1 -> 3637 | GUC2: =GUA2+1 -> 3638 | GUE2: =GUC2+1 -> 3639 | GUG2: =GUE2+1 -> 3640 | GUI2: =GUG2+1 -> 3641 | GUK2: =GUI2+1 -> 3642 | GUM2: =GUK2+1 -> 3643 | GUO2: =GUM2+1 -> 3644 | GUQ2: =GUO2+1 -> 3645 | GUS2: =GUQ2+1 -> 3646 | GUU2: =GUS2+1 -> 3647 | GUW2: =GUU2+1 -> 3648 | GUY2: =GUW2+1 -> 3649 | GVA2: =GUY2+1 -> 3650 | GVC2: =GVA2+1 -> 3651 | GVE2: =GVC2+1 -> 3652 | GVG2: =GVE2+1 -> 3653 | GVI2: =GVG2+1 -> 3654 | GVK2: =GVI2+1 -> 3655 | GVM2: =GVK2+1 -> 3656 | GVO2: =GVM2+1 -> 3657 | GVQ2: =GVO2+1 -> 3658 | GVS2: =GVQ2+1 -> 3659 | GVU2: =GVS2+1 -> 3660 | GVW2: =GVU2+1 -> 3661 | GVY2: =GVW2+1 -> 3662 | GWA2: =GVY2+1 -> 3663 | GWC2: =GWA2+1 -> 3664 | GWE2: =GWC2+1 -> 3665 | GWG2: =GWE2+1 -> 3666 | GWI2: =GWG2+1 -> 3667 | GWK2: =GWI2+1 -> 3668 | GWM2: =GWK2+1 -> 3669 | GWO2: =GWM2+1 -> 3670 | GWQ2: =GWO2+1 -> 3671 | GWS2: =GWQ2+1 -> 3672 | GWU2: =GWS2+1 -> 3673 | GWW2: =GWU2+1 -> 3674 | GWY2: =GWW2+1 -> 3675 | GXA2: =GWY2+1 -> 3676 | GXC2: =GXA2+1 -> 3677 | GXE2: =GXC2+1 -> 3678 | GXG2: =GXE2+1 -> 3679 | GXI2: =GXG2+1 -> 3680 | GXK2: =GXI2+1 -> 3681 | GXM2: =GXK2+1 -> 3682 | GXO2: =GXM2+1 -> 3683 | GXQ2: =GXO2+1 -> 3684 | GXS2: =GXQ2+1 -> 3685 | GXU2: =GXS2+1 -> 3686 | GXW2: =GXU2+1 -> 3687 | GXY2: =GXW2+1 -> 3688 | GYA2: =GXY2+1 -> 3689 | GYC2: =GYA2+1 -> 3690 | GYE2: =GYC2+1 -> 3691 | GYG2: =GYE2+1 -> 3692 | GYI2: =GYG2+1 -> 3693 | GYK2: =GYI2+1 -> 3694 | GYM2: =GYK2+1 -> 3695 | GYO2: =GYM2+1 -> 3696 | GYQ2: =GYO2+1 -> 3697 | GYS2: =GYQ2+1 -> 3698 | GYU2: =GYS2+1 -> 3699 | GYW2: =GYU2+1 -> 3700 | GYY2: =GYW2+1 -> 3701 | GZA2: =GYY2+1 -> 3702 | GZC2: =GZA2+1 -> 3703 | GZE2: =GZC2+1 -> 3704 | GZG2: =GZE2+1 -> 3705 | GZI2: =GZG2+1 -> 3706 | GZK2: =GZI2+1 -> 3707 | GZM2: =GZK2+1 -> 3708 | GZO2: =GZM2+1 -> 3709 | GZQ2: =GZO2+1 -> 3710 | GZS2: =GZQ2+1 -> 3711 | GZU2: =GZS2+1 -> 3712 | GZW2: =GZU2+1 -> 3713 | GZY2: =GZW2+1 -> 3714 | HAA2: =GZY2+1 -> 3715 | HAC2: =HAA2+1 -> 3716 | HAE2: =HAC2+1 -> 3717 | HAG2: =HAE2+1 -> 3718 | HAI2: =HAG2+1 -> 3719 | HAK2: =HAI2+1 -> 3720 | HAM2: =HAK2+1 -> 3721 | HAO2: =HAM2+1 -> 3722 | HAQ2: =HAO2+1 -> 3723 | HAS2: =HAQ2+1 -> 3724 | HAU2: =HAS2+1 -> 3725 | HAW2: =HAU2+1 -> 3726 | HAY2: =HAW2+1 -> 3727 | HBA2: =HAY2+1 -> 3728 | HBC2: =HBA2+1 -> 3729 | HBE2: =HBC2+1 -> 3730 | HBG2: =HBE2+1 -> 3731 | HBI2: =HBG2+1 -> 3732 | HBK2: =HBI2+1 -> 3733 | HBM2: =HBK2+1 -> 3734 | HBO2: =HBM2+1 -> 3735 | HBQ2: =HBO2+1 -> 3736 | HBS2: =HBQ2+1 -> 3737 | HBU2: =HBS2+1 -> 3738 | HBW2: =HBU2+1 -> 3739 | HBY2: =HBW2+1 -> 3740 | HCA2: =HBY2+1 -> 3741 | HCC2: =HCA2+1 -> 3742 | HCE2: =HCC2+1 -> 3743 | HCG2: =HCE2+1 -> 3744 | HCI2: =HCG2+1 -> 3745 | HCK2: =HCI2+1 -> 3746 | HCM2: =HCK2+1 -> 3747 | HCO2: =HCM2+1 -> 3748 | HCQ2: =HCO2+1 -> 3749 | HCS2: =HCQ2+1 -> 3750 | HCU2: =HCS2+1 -> 3751 | HCW2: =HCU2+1 -> 3752 | HCY2: =HCW2+1 -> 3753 | HDA2: =HCY2+1 -> 3754 | HDC2: =HDA2+1 -> 3755 | HDE2: =HDC2+1 -> 3756 | HDG2: =HDE2+1 -> 3757 | HDI2: =HDG2+1 -> 3758 | HDK2: =HDI2+1 -> 3759 | HDM2: =HDK2+1 -> 3760 | HDO2: =HDM2+1 -> 3761 | HDQ2: =HDO2+1 -> 3762 | HDS2: =HDQ2+1 -> 3763 | HDU2: =HDS2+1 -> 3764 | HDW2: =HDU2+1 -> 3765 | HDY2: =HDW2+1 -> 3766 | HEA2: =HDY2+1 -> 3767 | HEC2: =HEA2+1 -> 3768 | HEE2: =HEC2+1 -> 3769 | HEG2: =HEE2+1 -> 3770 | HEI2: =HEG2+1 -> 3771 | HEK2: =HEI2+1 -> 3772 | HEM2: =HEK2+1 -> 3773 | HEO2: =HEM2+1 -> 3774 | HEQ2: =HEO2+1 -> 3775 | HES2: =HEQ2+1 -> 3776 | HEU2: =HES2+1 -> 3777 | HEW2: =HEU2+1 -> 3778 | HEY2: =HEW2+1 -> 3779 | HFA2: =HEY2+1 -> 3780 | HFC2: =HFA2+1 -> 3781 | HFE2: =HFC2+1 -> 3782 | HFG2: =HFE2+1 -> 3783 | HFI2: =HFG2+1 -> 3784 | HFK2: =HFI2+1 -> 3785 | HFM2: =HFK2+1 -> 3786 | HFO2: =HFM2+1 -> 3787 | HFQ2: =HFO2+1 -> 3788 | HFS2: =HFQ2+1 -> 3789 | HFU2: =HFS2+1 -> 3790 | HFW2: =HFU2+1 -> 3791 | HFY2: =HFW2+1 -> 3792 | HGA2: =HFY2+1 -> 3793 | HGC2: =HGA2+1 -> 3794 | HGE2: =HGC2+1 -> 3795 | HGG2: =HGE2+1 -> 3796 | HGI2: =HGG2+1 -> 3797 | HGK2: =HGI2+1 -> 3798 | HGM2: =HGK2+1 -> 3799 | HGO2: =HGM2+1 -> 3800 | HGQ2: =HGO2+1 -> 3801 | HGS2: =HGQ2+1 -> 3802 | HGU2: =HGS2+1 -> 3803 | HGW2: =HGU2+1 -> 3804 | HGY2: =HGW2+1 -> 3805 | HHA2: =HGY2+1 -> 3806 | HHC2: =HHA2+1 -> 3807 | HHE2: =HHC2+1 -> 3808 | HHG2: =HHE2+1 -> 3809 | HHI2: =HHG2+1 -> 3810 | HHK2: =HHI2+1 -> 3811 | HHM2: =HHK2+1 -> 3812 | HHO2: =HHM2+1 -> 3813 | HHQ2: =HHO2+1 -> 3814 | HHS2: =HHQ2+1 -> 3815 | HHU2: =HHS2+1 -> 3816 | HHW2: =HHU2+1 -> 3817 | HHY2: =HHW2+1 -> 3818 | HIA2: =HHY2+1 -> 3819 | HIC2: =HIA2+1 -> 3820 | HIE2: =HIC2+1 -> 3821 | HIG2: =HIE2+1 -> 3822 | HII2: =HIG2+1 -> 3823 | HIK2: =HII2+1 -> 3824 | HIM2: =HIK2+1 -> 3825 | HIO2: =HIM2+1 -> 3826 | HIQ2: =HIO2+1 -> 3827 | HIS2: =HIQ2+1 -> 3828 | HIU2: =HIS2+1 -> 3829 | HIW2: =HIU2+1 -> 3830 | HIY2: =HIW2+1 -> 3831 | HJA2: =HIY2+1 -> 3832 | HJC2: =HJA2+1 -> 3833 | HJE2: =HJC2+1 -> 3834 | HJG2: =HJE2+1 -> 3835 | HJI2: =HJG2+1 -> 3836 | HJK2: =HJI2+1 -> 3837 | HJM2: =HJK2+1 -> 3838 | HJO2: =HJM2+1 -> 3839 | HJQ2: =HJO2+1 -> 3840 | HJS2: =HJQ2+1 -> 3841 | HJU2: =HJS2+1 -> 3842 | HJW2: =HJU2+1 -> 3843 | HJY2: =HJW2+1 -> 3844 | HKA2: =HJY2+1 -> 3845 | HKC2: =HKA2+1 -> 3846 | HKE2: =HKC2+1 -> 3847 | HKG2: =HKE2+1 -> 3848 | HKI2: =HKG2+1 -> 3849 | HKK2: =HKI2+1 -> 3850 | HKM2: =HKK2+1 -> 3851 | HKO2: =HKM2+1 -> 3852 | HKQ2: =HKO2+1 -> 3853 | HKS2: =HKQ2+1 -> 3854 | HKU2: =HKS2+1 -> 3855 | HKW2: =HKU2+1 -> 3856 | HKY2: =HKW2+1 -> 3857 | HLA2: =HKY2+1 -> 3858 | HLC2: =HLA2+1 -> 3859 | HLE2: =HLC2+1 -> 3860 | HLG2: =HLE2+1 -> 3861 | HLI2: =HLG2+1 -> 3862 | HLK2: =HLI2+1 -> 3863 | HLM2: =HLK2+1 -> 3864 | HLO2: =HLM2+1 -> 3865 | HLQ2: =HLO2+1 -> 3866 | HLS2: =HLQ2+1 -> 3867 | HLU2: =HLS2+1 -> 3868 | HLW2: =HLU2+1 -> 3869 | HLY2: =HLW2+1 -> 3870 | HMA2: =HLY2+1 -> 3871 | HMC2: =HMA2+1 -> 3872 | HME2: =HMC2+1 -> 3873 | HMG2: =HME2+1 -> 3874 | HMI2: =HMG2+1 -> 3875 | HMK2: =HMI2+1 -> 3876 | HMM2: =HMK2+1 -> 3877 | HMO2: =HMM2+1 -> 3878 | HMQ2: =HMO2+1 -> 3879 | HMS2: =HMQ2+1 -> 3880 | HMU2: =HMS2+1 -> 3881 | HMW2: =HMU2+1 -> 3882 | HMY2: =HMW2+1 -> 3883 | HNA2: =HMY2+1 -> 3884 | HNC2: =HNA2+1 -> 3885 | HNE2: =HNC2+1 -> 3886 | HNG2: =HNE2+1 -> 3887 | HNI2: =HNG2+1 -> 3888 | HNK2: =HNI2+1 -> 3889 | HNM2: =HNK2+1 -> 3890 | HNO2: =HNM2+1 -> 3891 | HNQ2: =HNO2+1 -> 3892 | HNS2: =HNQ2+1 -> 3893 | HNU2: =HNS2+1 -> 3894 | HNW2: =HNU2+1 -> 3895 | HNY2: =HNW2+1 -> 3896 | HOA2: =HNY2+1 -> 3897 | HOC2: =HOA2+1 -> 3898 | HOE2: =HOC2+1 -> 3899 | HOG2: =HOE2+1 -> 3900 | HOI2: =HOG2+1 -> 3901 | HOK2: =HOI2+1 -> 3902 | HOM2: =HOK2+1 -> 3903 | HOO2: =HOM2+1 -> 3904 | HOQ2: =HOO2+1 -> 3905 | HOS2: =HOQ2+1 -> 3906 | HOU2: =HOS2+1 -> 3907 | HOW2: =HOU2+1 -> 3908 | HOY2: =HOW2+1 -> 3909 | HPA2: =HOY2+1 -> 3910 | HPC2: =HPA2+1 -> 3911 | HPE2: =HPC2+1 -> 3912 | HPG2: =HPE2+1 -> 3913 | HPI2: =HPG2+1 -> 3914 | HPK2: =HPI2+1 -> 3915 | HPM2: =HPK2+1 -> 3916 | HPO2: =HPM2+1 -> 3917 | HPQ2: =HPO2+1 -> 3918 | HPS2: =HPQ2+1 -> 3919 | HPU2: =HPS2+1 -> 3920 | HPW2: =HPU2+1 -> 3921 | HPY2: =HPW2+1 -> 3922 | HQA2: =HPY2+1 -> 3923 | HQC2: =HQA2+1 -> 3924 | HQE2: =HQC2+1 -> 3925 | HQG2: =HQE2+1 -> 3926 | HQI2: =HQG2+1 -> 3927 | HQK2: =HQI2+1 -> 3928 | HQM2: =HQK2+1 -> 3929 | HQO2: =HQM2+1 -> 3930 | HQQ2: =HQO2+1 -> 3931 | HQS2: =HQQ2+1 -> 3932 | HQU2: =HQS2+1 -> 3933 | HQW2: =HQU2+1 -> 3934 | HQY2: =HQW2+1 -> 3935 | HRA2: =HQY2+1 -> 3936 | HRC2: =HRA2+1 -> 3937 | HRE2: =HRC2+1 -> 3938 | HRG2: =HRE2+1 -> 3939 | HRI2: =HRG2+1 -> 3940 | HRK2: =HRI2+1 -> 3941 | HRM2: =HRK2+1 -> 3942 | HRO2: =HRM2+1 -> 3943 | HRQ2: =HRO2+1 -> 3944 | HRS2: =HRQ2+1 -> 3945 | HRU2: =HRS2+1 -> 3946 | HRW2: =HRU2+1 -> 3947 | HRY2: =HRW2+1 -> 3948 | HSA2: =HRY2+1 -> 3949 | HSC2: =HSA2+1 -> 3950 | HSE2: =HSC2+1 -> 3951 | HSG2: =HSE2+1 -> 3952 | HSI2: =HSG2+1 -> 3953 | HSK2: =HSI2+1 -> 3954 | HSM2: =HSK2+1 -> 3955 | HSO2: =HSM2+1 -> 3956 | HSQ2: =HSO2+1 -> 3957 | HSS2: =HSQ2+1 -> 3958 | HSU2: =HSS2+1 -> 3959 | HSW2: =HSU2+1 -> 3960 | HSY2: =HSW2+1 -> 3961 | HTA2: =HSY2+1 -> 3962 | HTC2: =HTA2+1 -> 3963 | HTE2: =HTC2+1 -> 3964 | HTG2: =HTE2+1 -> 3965 | HTI2: =HTG2+1 -> 3966 | HTK2: =HTI2+1 -> 3967 | HTM2: =HTK2+1 -> 3968 | HTO2: =HTM2+1 -> 3969 | HTQ2: =HTO2+1 -> 3970 | HTS2: =HTQ2+1 -> 3971 | HTU2: =HTS2+1 -> 3972 | HTW2: =HTU2+1 -> 3973 | HTY2: =HTW2+1 -> 3974 | HUA2: =HTY2+1 -> 3975 | HUC2: =HUA2+1 -> 3976 | HUE2: =HUC2+1 -> 3977 | HUG2: =HUE2+1 -> 3978 | HUI2: =HUG2+1 -> 3979 | HUK2: =HUI2+1 -> 3980 | HUM2: =HUK2+1 -> 3981 | HUO2: =HUM2+1 -> 3982 | HUQ2: =HUO2+1 -> 3983 | HUS2: =HUQ2+1 -> 3984 | HUU2: =HUS2+1 -> 3985 | HUW2: =HUU2+1 -> 3986 | HUY2: =HUW2+1 -> 3987 | HVA2: =HUY2+1 -> 3988 | HVC2: =HVA2+1 -> 3989 | HVE2: =HVC2+1 -> 3990 | HVG2: =HVE2+1 -> 3991 | HVI2: =HVG2+1 -> 3992 | HVK2: =HVI2+1 -> 3993 | HVM2: =HVK2+1 -> 3994 | HVO2: =HVM2+1 -> 3995 | HVQ2: =HVO2+1 -> 3996 | HVS2: =HVQ2+1 -> 3997 | HVU2: =HVS2+1 -> 3998 | HVW2: =HVU2+1 -> 3999 | HVY2: =HVW2+1 -> 4000 | HWA2: =HVY2+1 -> 4001 | HWC2: =HWA2+1 -> 4002 | HWE2: =HWC2+1 -> 4003 | HWG2: =HWE2+1 -> 4004 | HWI2: =HWG2+1 -> 4005 | HWK2: =HWI2+1 -> 4006 | HWM2: =HWK2+1 -> 4007 | HWO2: =HWM2+1 -> 4008 | HWQ2: =HWO2+1 -> 4009 | HWS2: =HWQ2+1 -> 4010 | HWU2: =HWS2+1 -> 4011 | HWW2: =HWU2+1 -> 4012 | HWY2: =HWW2+1 -> 4013 | HXA2: =HWY2+1 -> 4014 | HXC2: =HXA2+1 -> 4015 | HXE2: =HXC2+1 -> 4016 | HXG2: =HXE2+1 -> 4017 | HXI2: =HXG2+1 -> 4018 | HXK2: =HXI2+1 -> 4019 | HXM2: =HXK2+1 -> 4020 | HXO2: =HXM2+1 -> 4021 | HXQ2: =HXO2+1 -> 4022 | HXS2: =HXQ2+1 -> 4023 | HXU2: =HXS2+1 -> 4024 | HXW2: =HXU2+1 -> 4025 | HXY2: =HXW2+1 -> 4026 | HYA2: =HXY2+1 -> 4027 | HYC2: =HYA2+1 -> 4028 | HYE2: =HYC2+1 -> 4029 | HYG2: =HYE2+1 -> 4030 | HYI2: =HYG2+1 -> 4031 | HYK2: =HYI2+1 -> 4032 | HYM2: =HYK2+1 -> 4033 | HYO2: =HYM2+1 -> 4034 | HYQ2: =HYO2+1 -> 4035 | HYS2: =HYQ2+1 -> 4036 | HYU2: =HYS2+1 -> 4037 | HYW2: =HYU2+1 -> 4038 | HYY2: =HYW2+1 -> 4039 | HZA2: =HYY2+1 -> 4040 | HZC2: =HZA2+1 -> 4041 | HZE2: =HZC2+1 -> 4042 | HZG2: =HZE2+1 -> 4043 | HZI2: =HZG2+1 -> 4044 | HZK2: =HZI2+1 -> 4045 | HZM2: =HZK2+1 -> 4046 | HZO2: =HZM2+1 -> 4047 | HZQ2: =HZO2+1 -> 4048 | HZS2: =HZQ2+1 -> 4049 | HZU2: =HZS2+1 -> 4050 | HZW2: =HZU2+1 -> 4051 | HZY2: =HZW2+1 -> 4052 | IAA2: =HZY2+1 -> 4053 | IAC2: =IAA2+1 -> 4054 | IAE2: =IAC2+1 -> 4055 | IAG2: =IAE2+1 -> 4056 | IAI2: =IAG2+1 -> 4057 | IAK2: =IAI2+1 -> 4058 | IAM2: =IAK2+1 -> 4059 | IAO2: =IAM2+1 -> 4060 | IAQ2: =IAO2+1 -> 4061 | IAS2: =IAQ2+1 -> 4062 | IAU2: =IAS2+1 -> 4063 | IAW2: =IAU2+1 -> 4064 | IAY2: =IAW2+1 -> 4065 | IBA2: =IAY2+1 -> 4066 | IBC2: =IBA2+1 -> 4067 | IBE2: =IBC2+1 -> 4068 | IBG2: =IBE2+1 -> 4069 | IBI2: =IBG2+1 -> 4070 | IBK2: =IBI2+1 -> 4071 | IBM2: =IBK2+1 -> 4072 | IBO2: =IBM2+1 -> 4073 | IBQ2: =IBO2+1 -> 4074 | IBS2: =IBQ2+1 -> 4075 | IBU2: =IBS2+1 -> 4076 | IBW2: =IBU2+1 -> 4077 | IBY2: =IBW2+1 -> 4078 | ICA2: =IBY2+1 -> 4079 | ICC2: =ICA2+1 -> 4080 | ICE2: =ICC2+1 -> 4081 | ICG2: =ICE2+1 -> 4082 | ICI2: =ICG2+1 -> 4083 | ICK2: =ICI2+1 -> 4084 | ICM2: =ICK2+1 -> 4085 | ICO2: =ICM2+1 -> 4086 | ICQ2: =ICO2+1 -> 4087 | ICS2: =ICQ2+1 -> 4088 | ICU2: =ICS2+1 -> 4089 | ICW2: =ICU2+1 -> 4090 | ICY2: =ICW2+1 -> 4091 | IDA2: =ICY2+1 -> 4092 | IDC2: =IDA2+1 -> 4093 | IDE2: =IDC2+1 -> 4094 | IDG2: =IDE2+1 -> 4095 | IDI2: =IDG2+1 -> 4096 | IDK2: =IDI2+1 -> 4097 | IDM2: =IDK2+1 -> 4098 | IDO2: =IDM2+1 -> 4099 | IDQ2: =IDO2+1 -> 4100 | IDS2: =IDQ2+1 -> 4101 | IDU2: =IDS2+1 -> 4102 | IDW2: =IDU2+1 -> 4103 | IDY2: =IDW2+1 -> 4104 | IEA2: =IDY2+1 -> 4105 | IEC2: =IEA2+1 -> 4106 | IEE2: =IEC2+1 -> 4107 | IEG2: =IEE2+1 -> 4108 | IEI2: =IEG2+1 -> 4109 | IEK2: =IEI2+1 -> 4110 | IEM2: =IEK2+1 -> 4111 | IEO2: =IEM2+1 -> 4112 | IEQ2: =IEO2+1 -> 4113 | IES2: =IEQ2+1 -> 4114 | IEU2: =IES2+1 -> 4115 | IEW2: =IEU2+1 -> 4116 | IEY2: =IEW2+1 -> 4117 | IFA2: =IEY2+1 -> 4118 | IFC2: =IFA2+1 -> 4119 | IFE2: =IFC2+1 -> 4120 | IFG2: =IFE2+1 -> 4121 | IFI2: =IFG2+1 -> 4122 | IFK2: =IFI2+1 -> 4123 | IFM2: =IFK2+1 -> 4124 | IFO2: =IFM2+1 -> 4125 | IFQ2: =IFO2+1 -> 4126 | IFS2: =IFQ2+1 -> 4127 | IFU2: =IFS2+1 -> 4128 | IFW2: =IFU2+1 -> 4129 | IFY2: =IFW2+1 -> 4130 | IGA2: =IFY2+1 -> 4131 | IGC2: =IGA2+1 -> 4132 | IGE2: =IGC2+1 -> 4133 | IGG2: =IGE2+1 -> 4134 | IGI2: =IGG2+1 -> 4135 | IGK2: =IGI2+1 -> 4136 | IGM2: =IGK2+1 -> 4137 | IGO2: =IGM2+1 -> 4138 | IGQ2: =IGO2+1 -> 4139 | IGS2: =IGQ2+1 -> 4140 | IGU2: =IGS2+1 -> 4141 | IGW2: =IGU2+1 -> 4142 | IGY2: =IGW2+1 -> 4143 | IHA2: =IGY2+1 -> 4144 | IHC2: =IHA2+1 -> 4145 | IHE2: =IHC2+1 -> 4146 | IHG2: =IHE2+1 -> 4147 | IHI2: =IHG2+1 -> 4148 | IHK2: =IHI2+1 -> 4149 | IHM2: =IHK2+1 -> 4150 | IHO2: =IHM2+1 -> 4151 | IHQ2: =IHO2+1 -> 4152 | IHS2: =IHQ2+1 -> 4153 | IHU2: =IHS2+1 -> 4154 | IHW2: =IHU2+1 -> 4155 | IHY2: =IHW2+1 -> 4156 | IIA2: =IHY2+1 -> 4157 | IIC2: =IIA2+1 -> 4158 | IIE2: =IIC2+1 -> 4159 | IIG2: =IIE2+1 -> 4160 | III2: =IIG2+1 -> 4161 | IIK2: =III2+1 -> 4162 | IIM2: =IIK2+1 -> 4163 | IIO2: =IIM2+1 -> 4164 | IIQ2: =IIO2+1 -> 4165 | IIS2: =IIQ2+1 -> 4166 | IIU2: =IIS2+1 -> 4167 | IIW2: =IIU2+1 -> 4168 | IIY2: =IIW2+1 -> 4169 | IJA2: =IIY2+1 -> 4170 | IJC2: =IJA2+1 -> 4171 | IJE2: =IJC2+1 -> 4172 | IJG2: =IJE2+1 -> 4173 | IJI2: =IJG2+1 -> 4174 | IJK2: =IJI2+1 -> 4175 | IJM2: =IJK2+1 -> 4176 | IJO2: =IJM2+1 -> 4177 | IJQ2: =IJO2+1 -> 4178 | IJS2: =IJQ2+1 -> 4179 | IJU2: =IJS2+1 -> 4180 | IJW2: =IJU2+1 -> 4181 | IJY2: =IJW2+1 -> 4182 | IKA2: =IJY2+1 -> 4183 | IKC2: =IKA2+1 -> 4184 | IKE2: =IKC2+1 -> 4185 | IKG2: =IKE2+1 -> 4186 | IKI2: =IKG2+1 -> 4187 | IKK2: =IKI2+1 -> 4188 | IKM2: =IKK2+1 -> 4189 | IKO2: =IKM2+1 -> 4190 | IKQ2: =IKO2+1 -> 4191 | IKS2: =IKQ2+1 -> 4192 | IKU2: =IKS2+1 -> 4193 | IKW2: =IKU2+1 -> 4194 | IKY2: =IKW2+1 -> 4195 | ILA2: =IKY2+1 -> 4196 | ILC2: =ILA2+1 -> 4197 | ILE2: =ILC2+1 -> 4198 | ILG2: =ILE2+1 -> 4199 | ILI2: =ILG2+1 -> 4200 | ILK2: =ILI2+1 -> 4201 | ILM2: =ILK2+1 -> 4202 | ILO2: =ILM2+1 -> 4203 | ILQ2: =ILO2+1 -> 4204 | ILS2: =ILQ2+1 -> 4205 | ILU2: =ILS2+1 -> 4206 | ILW2: =ILU2+1 -> 4207 | ILY2: =ILW2+1 -> 4208 | IMA2: =ILY2+1 -> 4209 | IMC2: =IMA2+1 -> 4210 | IME2: =IMC2+1 -> 4211 | IMG2: =IME2+1 -> 4212 | IMI2: =IMG2+1 -> 4213 | IMK2: =IMI2+1 -> 4214 | IMM2: =IMK2+1 -> 4215 | IMO2: =IMM2+1 -> 4216 | IMQ2: =IMO2+1 -> 4217 | IMS2: =IMQ2+1 -> 4218 | IMU2: =IMS2+1 -> 4219 | IMW2: =IMU2+1 -> 4220 | IMY2: =IMW2+1 -> 4221 | INA2: =IMY2+1 -> 4222 | INC2: =INA2+1 -> 4223 | INE2: =INC2+1 -> 4224 | ING2: =INE2+1 -> 4225 | INI2: =ING2+1 -> 4226 | INK2: =INI2+1 -> 4227 | INM2: =INK2+1 -> 4228 | INO2: =INM2+1 -> 4229 | INQ2: =INO2+1 -> 4230 | INS2: =INQ2+1 -> 4231 | INU2: =INS2+1 -> 4232 | INW2: =INU2+1 -> 4233 | INY2: =INW2+1 -> 4234 | IOA2: =INY2+1 -> 4235 | IOC2: =IOA2+1 -> 4236 | IOE2: =IOC2+1 -> 4237 | IOG2: =IOE2+1 -> 4238 | IOI2: =IOG2+1 -> 4239 | IOK2: =IOI2+1 -> 4240 | IOM2: =IOK2+1 -> 4241 | IOO2: =IOM2+1 -> 4242 | IOQ2: =IOO2+1 -> 4243 | IOS2: =IOQ2+1 -> 4244 | IOU2: =IOS2+1 -> 4245 | IOW2: =IOU2+1 -> 4246 | IOY2: =IOW2+1 -> 4247 | IPA2: =IOY2+1 -> 4248 | IPC2: =IPA2+1 -> 4249 | IPE2: =IPC2+1 -> 4250 | IPG2: =IPE2+1 -> 4251 | IPI2: =IPG2+1 -> 4252 | IPK2: =IPI2+1 -> 4253 | IPM2: =IPK2+1 -> 4254 | IPO2: =IPM2+1 -> 4255 | IPQ2: =IPO2+1 -> 4256 | IPS2: =IPQ2+1 -> 4257 | IPU2: =IPS2+1 -> 4258 | IPW2: =IPU2+1 -> 4259 | IPY2: =IPW2+1 -> 4260 | IQA2: =IPY2+1 -> 4261 | IQC2: =IQA2+1 -> 4262 | IQE2: =IQC2+1 -> 4263 | IQG2: =IQE2+1 -> 4264 | IQI2: =IQG2+1 -> 4265 | IQK2: =IQI2+1 -> 4266 | IQM2: =IQK2+1 -> 4267 | IQO2: =IQM2+1 -> 4268 | IQQ2: =IQO2+1 -> 4269 | IQS2: =IQQ2+1 -> 4270 | IQU2: =IQS2+1 -> 4271 | IQW2: =IQU2+1 -> 4272 | IQY2: =IQW2+1 -> 4273 | IRA2: =IQY2+1 -> 4274 | IRC2: =IRA2+1 -> 4275 | IRE2: =IRC2+1 -> 4276 | IRG2: =IRE2+1 -> 4277 | IRI2: =IRG2+1 -> 4278 | IRK2: =IRI2+1 -> 4279 | IRM2: =IRK2+1 -> 4280 | IRO2: =IRM2+1 -> 4281 | IRQ2: =IRO2+1 -> 4282 | IRS2: =IRQ2+1 -> 4283 | IRU2: =IRS2+1 -> 4284 | IRW2: =IRU2+1 -> 4285 | IRY2: =IRW2+1 -> 4286 | ISA2: =IRY2+1 -> 4287 | ISC2: =ISA2+1 -> 4288 | ISE2: =ISC2+1 -> 4289 | ISG2: =ISE2+1 -> 4290 | ISI2: =ISG2+1 -> 4291 | ISK2: =ISI2+1 -> 4292 | ISM2: =ISK2+1 -> 4293 | ISO2: =ISM2+1 -> 4294 | ISQ2: =ISO2+1 -> 4295 | ISS2: =ISQ2+1 -> 4296 | ISU2: =ISS2+1 -> 4297 | ISW2: =ISU2+1 -> 4298 | ISY2: =ISW2+1 -> 4299 | ITA2: =ISY2+1 -> 4300 | ITC2: =ITA2+1 -> 4301 | ITE2: =ITC2+1 -> 4302 | ITG2: =ITE2+1 -> 4303 | ITI2: =ITG2+1 -> 4304 | ITK2: =ITI2+1 -> 4305 | ITM2: =ITK2+1 -> 4306 | ITO2: =ITM2+1 -> 4307 | ITQ2: =ITO2+1 -> 4308 | ITS2: =ITQ2+1 -> 4309 | ITU2: =ITS2+1 -> 4310 | ITW2: =ITU2+1 -> 4311 | ITY2: =ITW2+1 -> 4312 | IUA2: =ITY2+1 -> 4313 | IUC2: =IUA2+1 -> 4314 | IUE2: =IUC2+1 -> 4315 | IUG2: =IUE2+1 -> 4316 | IUI2: =IUG2+1 -> 4317 | IUK2: =IUI2+1 -> 4318 | IUM2: =IUK2+1 -> 4319 | IUO2: =IUM2+1 -> 4320 | IUQ2: =IUO2+1 -> 4321 | IUS2: =IUQ2+1 -> 4322 | IUU2: =IUS2+1 -> 4323 | IUW2: =IUU2+1 -> 4324 | IUY2: =IUW2+1 -> 4325 | IVA2: =IUY2+1 -> 4326 | IVC2: =IVA2+1 -> 4327 | IVE2: =IVC2+1 -> 4328 | IVG2: =IVE2+1 -> 4329 | IVI2: =IVG2+1 -> 4330 | IVK2: =IVI2+1 -> 4331 | IVM2: =IVK2+1 -> 4332 | IVO2: =IVM2+1 -> 4333 | IVQ2: =IVO2+1 -> 4334 | IVS2: =IVQ2+1 -> 4335 | IVU2: =IVS2+1 -> 4336 | IVW2: =IVU2+1 -> 4337 | IVY2: =IVW2+1 -> 4338 | IWA2: =IVY2+1 -> 4339 | IWC2: =IWA2+1 -> 4340 | IWE2: =IWC2+1 -> 4341 | IWG2: =IWE2+1 -> 4342 | IWI2: =IWG2+1 -> 4343 | IWK2: =IWI2+1 -> 4344 | IWM2: =IWK2+1 -> 4345 | IWO2: =IWM2+1 -> 4346 | IWQ2: =IWO2+1 -> 4347 | IWS2: =IWQ2+1 -> 4348 | IWU2: =IWS2+1 -> 4349 | IWW2: =IWU2+1 -> 4350 | IWY2: =IWW2+1 -> 4351 | IXA2: =IWY2+1 -> 4352 | IXC2: =IXA2+1 -> 4353 | IXE2: =IXC2+1 -> 4354 | IXG2: =IXE2+1 -> 4355 | IXI2: =IXG2+1 -> 4356 | IXK2: =IXI2+1 -> 4357 | IXM2: =IXK2+1 -> 4358 | IXO2: =IXM2+1 -> 4359 | IXQ2: =IXO2+1 -> 4360 | IXS2: =IXQ2+1 -> 4361 | IXU2: =IXS2+1 -> 4362 | IXW2: =IXU2+1 -> 4363 | IXY2: =IXW2+1 -> 4364 | IYA2: =IXY2+1 -> 4365 | IYC2: =IYA2+1 -> 4366 | IYE2: =IYC2+1 -> 4367 | IYG2: =IYE2+1 -> 4368 | IYI2: =IYG2+1 -> 4369 | IYK2: =IYI2+1 -> 4370 | IYM2: =IYK2+1 -> 4371 | IYO2: =IYM2+1 -> 4372 | IYQ2: =IYO2+1 -> 4373 | IYS2: =IYQ2+1 -> 4374 | IYU2: =IYS2+1 -> 4375 | IYW2: =IYU2+1 -> 4376 | IYY2: =IYW2+1 -> 4377 | IZA2: =IYY2+1 -> 4378 | IZC2: =IZA2+1 -> 4379 | IZE2: =IZC2+1 -> 4380 | IZG2: =IZE2+1 -> 4381 | IZI2: =IZG2+1 -> 4382 | IZK2: =IZI2+1 -> 4383 | IZM2: =IZK2+1 -> 4384 | IZO2: =IZM2+1 -> 4385 | IZQ2: =IZO2+1 -> 4386 | IZS2: =IZQ2+1 -> 4387 | IZU2: =IZS2+1 -> 4388 | IZW2: =IZU2+1 -> 4389 | IZY2: =IZW2+1 -> 4390 | JAA2: =IZY2+1 -> 4391 | JAC2: =JAA2+1 -> 4392 | JAE2: =JAC2+1 -> 4393 | JAG2: =JAE2+1 -> 4394 | JAI2: =JAG2+1 -> 4395 | JAK2: =JAI2+1 -> 4396 | JAM2: =JAK2+1 -> 4397 | JAO2: =JAM2+1 -> 4398 | JAQ2: =JAO2+1 -> 4399 | JAS2: =JAQ2+1 -> 4400 | JAU2: =JAS2+1 -> 4401 | JAW2: =JAU2+1 -> 4402 | JAY2: =JAW2+1 -> 4403 | JBA2: =JAY2+1 -> 4404 | JBC2: =JBA2+1 -> 4405 | JBE2: =JBC2+1 -> 4406 | JBG2: =JBE2+1 -> 4407 | JBI2: =JBG2+1 -> 4408 | JBK2: =JBI2+1 -> 4409 | JBM2: =JBK2+1 -> 4410 | JBO2: =JBM2+1 -> 4411 | JBQ2: =JBO2+1 -> 4412 | JBS2: =JBQ2+1 -> 4413 | JBU2: =JBS2+1 -> 4414 | JBW2: =JBU2+1 -> 4415 | JBY2: =JBW2+1 -> 4416 | JCA2: =JBY2+1 -> 4417 | JCC2: =JCA2+1 -> 4418 | JCE2: =JCC2+1 -> 4419 | JCG2: =JCE2+1 -> 4420 | JCI2: =JCG2+1 -> 4421 | JCK2: =JCI2+1 -> 4422 | JCM2: =JCK2+1 -> 4423 | JCO2: =JCM2+1 -> 4424 | JCQ2: =JCO2+1 -> 4425 | JCS2: =JCQ2+1 -> 4426 | JCU2: =JCS2+1 -> 4427 | JCW2: =JCU2+1 -> 4428 | JCY2: =JCW2+1 -> 4429 | JDA2: =JCY2+1 -> 4430 | JDC2: =JDA2+1 -> 4431 | JDE2: =JDC2+1 -> 4432 | JDG2: =JDE2+1 -> 4433 | JDI2: =JDG2+1 -> 4434 | JDK2: =JDI2+1 -> 4435 | JDM2: =JDK2+1 -> 4436 | JDO2: =JDM2+1 -> 4437 | JDQ2: =JDO2+1 -> 4438 | JDS2: =JDQ2+1 -> 4439 | JDU2: =JDS2+1 -> 4440 | JDW2: =JDU2+1 -> 4441 | JDY2: =JDW2+1 -> 4442 | JEA2: =JDY2+1 -> 4443 | JEC2: =JEA2+1 -> 4444 | JEE2: =JEC2+1 -> 4445 | JEG2: =JEE2+1 -> 4446 | JEI2: =JEG2+1 -> 4447 | JEK2: =JEI2+1 -> 4448 | JEM2: =JEK2+1 -> 4449 | JEO2: =JEM2+1 -> 4450 | JEQ2: =JEO2+1 -> 4451 | JES2: =JEQ2+1 -> 4452 | JEU2: =JES2+1 -> 4453 | JEW2: =JEU2+1 -> 4454 | JEY2: =JEW2+1 -> 4455 | JFA2: =JEY2+1 -> 4456 | JFC2: =JFA2+1 -> 4457 | JFE2: =JFC2+1 -> 4458 | JFG2: =JFE2+1 -> 4459 | JFI2: =JFG2+1 -> 4460 | JFK2: =JFI2+1 -> 4461 | JFM2: =JFK2+1 -> 4462 | JFO2: =JFM2+1 -> 4463 | JFQ2: =JFO2+1 -> 4464 | JFS2: =JFQ2+1 -> 4465 | JFU2: =JFS2+1 -> 4466 | JFW2: =JFU2+1 -> 4467 | JFY2: =JFW2+1 -> 4468 | JGA2: =JFY2+1 -> 4469 | JGC2: =JGA2+1 -> 4470 | JGE2: =JGC2+1 -> 4471 | JGG2: =JGE2+1 -> 4472 | JGI2: =JGG2+1 -> 4473 | JGK2: =JGI2+1 -> 4474 | JGM2: =JGK2+1 -> 4475 | JGO2: =JGM2+1 -> 4476 | JGQ2: =JGO2+1 -> 4477 | JGS2: =JGQ2+1 -> 4478 | JGU2: =JGS2+1 -> 4479 | JGW2: =JGU2+1 -> 4480 | JGY2: =JGW2+1 -> 4481 | JHA2: =JGY2+1 -> 4482 | JHC2: =JHA2+1 -> 4483 | JHE2: =JHC2+1 -> 4484 | JHG2: =JHE2+1 -> 4485 | JHI2: =JHG2+1 -> 4486 | JHK2: =JHI2+1 -> 4487 | JHM2: =JHK2+1 -> 4488 | JHO2: =JHM2+1 -> 4489 | JHQ2: =JHO2+1 -> 4490 | JHS2: =JHQ2+1 -> 4491 | JHU2: =JHS2+1 -> 4492 | JHW2: =JHU2+1 -> 4493 | JHY2: =JHW2+1 -> 4494 | JIA2: =JHY2+1 -> 4495 | JIC2: =JIA2+1 -> 4496 | JIE2: =JIC2+1 -> 4497 | JIG2: =JIE2+1 -> 4498 | JII2: =JIG2+1 -> 4499 | JIK2: =JII2+1 -> 4500 | JIM2: =JIK2+1 -> 4501 | JIO2: =JIM2+1 -> 4502 | JIQ2: =JIO2+1 -> 4503 | JIS2: =JIQ2+1 -> 4504 | JIU2: =JIS2+1 -> 4505 | JIW2: =JIU2+1 -> 4506 | JIY2: =JIW2+1 -> 4507 | JJA2: =JIY2+1 -> 4508 | JJC2: =JJA2+1 -> 4509 | JJE2: =JJC2+1 -> 4510 | JJG2: =JJE2+1 -> 4511 | JJI2: =JJG2+1 -> 4512 | JJK2: =JJI2+1 -> 4513 | JJM2: =JJK2+1 -> 4514 | JJO2: =JJM2+1 -> 4515 | JJQ2: =JJO2+1 -> 4516 | JJS2: =JJQ2+1 -> 4517 | JJU2: =JJS2+1 -> 4518 | JJW2: =JJU2+1 -> 4519 | JJY2: =JJW2+1 -> 4520 | JKA2: =JJY2+1 -> 4521 | JKC2: =JKA2+1 -> 4522 | JKE2: =JKC2+1 -> 4523 | JKG2: =JKE2+1 -> 4524 | JKI2: =JKG2+1 -> 4525 | JKK2: =JKI2+1 -> 4526 | JKM2: =JKK2+1 -> 4527 | JKO2: =JKM2+1 -> 4528 | JKQ2: =JKO2+1 -> 4529 | JKS2: =JKQ2+1 -> 4530 | JKU2: =JKS2+1 -> 4531 | JKW2: =JKU2+1 -> 4532 | JKY2: =JKW2+1 -> 4533 | JLA2: =JKY2+1 -> 4534 | JLC2: =JLA2+1 -> 4535 | JLE2: =JLC2+1 -> 4536 | JLG2: =JLE2+1 -> 4537 | JLI2: =JLG2+1 -> 4538 | JLK2: =JLI2+1 -> 4539 | JLM2: =JLK2+1 -> 4540 | JLO2: =JLM2+1 -> 4541 | JLQ2: =JLO2+1 -> 4542 | JLS2: =JLQ2+1 -> 4543 | JLU2: =JLS2+1 -> 4544 | JLW2: =JLU2+1 -> 4545 | JLY2: =JLW2+1 -> 4546 | JMA2: =JLY2+1 -> 4547 | JMC2: =JMA2+1 -> 4548 | JME2: =JMC2+1 -> 4549 | JMG2: =JME2+1 -> 4550 | JMI2: =JMG2+1 -> 4551 | JMK2: =JMI2+1 -> 4552 | JMM2: =JMK2+1 -> 4553 | JMO2: =JMM2+1 -> 4554 | JMQ2: =JMO2+1 -> 4555 | JMS2: =JMQ2+1 -> 4556 | JMU2: =JMS2+1 -> 4557 | JMW2: =JMU2+1 -> 4558 | JMY2: =JMW2+1 -> 4559 | JNA2: =JMY2+1 -> 4560 | JNC2: =JNA2+1 -> 4561 | JNE2: =JNC2+1 -> 4562 | JNG2: =JNE2+1 -> 4563 | JNI2: =JNG2+1 -> 4564 | JNK2: =JNI2+1 -> 4565 | JNM2: =JNK2+1 -> 4566 | JNO2: =JNM2+1 -> 4567 | JNQ2: =JNO2+1 -> 4568 | JNS2: =JNQ2+1 -> 4569 | JNU2: =JNS2+1 -> 4570 | JNW2: =JNU2+1 -> 4571 | JNY2: =JNW2+1 -> 4572 | JOA2: =JNY2+1 -> 4573 | JOC2: =JOA2+1 -> 4574 | JOE2: =JOC2+1 -> 4575 | JOG2: =JOE2+1 -> 4576 | JOI2: =JOG2+1 -> 4577 | JOK2: =JOI2+1 -> 4578 | JOM2: =JOK2+1 -> 4579 | JOO2: =JOM2+1 -> 4580 | JOQ2: =JOO2+1 -> 4581 | JOS2: =JOQ2+1 -> 4582 | JOU2: =JOS2+1 -> 4583 | JOW2: =JOU2+1 -> 4584 | JOY2: =JOW2+1 -> 4585 | JPA2: =JOY2+1 -> 4586 | JPC2: =JPA2+1 -> 4587 | JPE2: =JPC2+1 -> 4588 | JPG2: =JPE2+1 -> 4589 | JPI2: =JPG2+1 -> 4590 | JPK2: =JPI2+1 -> 4591 | JPM2: =JPK2+1 -> 4592 | JPO2: =JPM2+1 -> 4593 | JPQ2: =JPO2+1 -> 4594 | JPS2: =JPQ2+1 -> 4595 | JPU2: =JPS2+1 -> 4596 | JPW2: =JPU2+1 -> 4597 | JPY2: =JPW2+1 -> 4598 | JQA2: =JPY2+1 -> 4599 | JQC2: =JQA2+1 -> 4600 | JQE2: =JQC2+1 -> 4601 | JQG2: =JQE2+1 -> 4602 | JQI2: =JQG2+1 -> 4603 | JQK2: =JQI2+1 -> 4604 | JQM2: =JQK2+1 -> 4605 | JQO2: =JQM2+1 -> 4606 | JQQ2: =JQO2+1 -> 4607 | JQS2: =JQQ2+1 -> 4608 | JQU2: =JQS2+1 -> 4609 | JQW2: =JQU2+1 -> 4610 | JQY2: =JQW2+1 -> 4611 | JRA2: =JQY2+1 -> 4612 | JRC2: =JRA2+1 -> 4613 | JRE2: =JRC2+1 -> 4614 | JRG2: =JRE2+1 -> 4615 | JRI2: =JRG2+1 -> 4616 | JRK2: =JRI2+1 -> 4617 | JRM2: =JRK2+1 -> 4618 | JRO2: =JRM2+1 -> 4619 | JRQ2: =JRO2+1 -> 4620 | JRS2: =JRQ2+1 -> 4621 | JRU2: =JRS2+1 -> 4622 | JRW2: =JRU2+1 -> 4623 | JRY2: =JRW2+1 -> 4624 | JSA2: =JRY2+1 -> 4625 | JSC2: =JSA2+1 -> 4626 | JSE2: =JSC2+1 -> 4627 | JSG2: =JSE2+1 -> 4628 | JSI2: =JSG2+1 -> 4629 | JSK2: =JSI2+1 -> 4630 | JSM2: =JSK2+1 -> 4631 | JSO2: =JSM2+1 -> 4632 | JSQ2: =JSO2+1 -> 4633 | JSS2: =JSQ2+1 -> 4634 | JSU2: =JSS2+1 -> 4635 | JSW2: =JSU2+1 -> 4636 | JSY2: =JSW2+1 -> 4637 | JTA2: =JSY2+1 -> 4638 | JTC2: =JTA2+1 -> 4639 | JTE2: =JTC2+1 -> 4640 | JTG2: =JTE2+1 -> 4641 | JTI2: =JTG2+1 -> 4642 | JTK2: =JTI2+1 -> 4643 | JTM2: =JTK2+1 -> 4644 | JTO2: =JTM2+1 -> 4645 | JTQ2: =JTO2+1 -> 4646 | JTS2: =JTQ2+1 -> 4647 | JTU2: =JTS2+1 -> 4648 | JTW2: =JTU2+1 -> 4649 | JTY2: =JTW2+1 -> 4650 | JUA2: =JTY2+1 -> 4651 | JUC2: =JUA2+1 -> 4652 | JUE2: =JUC2+1 -> 4653 | JUG2: =JUE2+1 -> 4654 | JUI2: =JUG2+1 -> 4655 | JUK2: =JUI2+1 -> 4656 | JUM2: =JUK2+1 -> 4657 | JUO2: =JUM2+1 -> 4658 | JUQ2: =JUO2+1 -> 4659 | JUS2: =JUQ2+1 -> 4660 | JUU2: =JUS2+1 -> 4661 | JUW2: =JUU2+1 -> 4662 | JUY2: =JUW2+1 -> 4663 | JVA2: =JUY2+1 -> 4664 | JVC2: =JVA2+1 -> 4665 | JVE2: =JVC2+1 -> 4666 | JVG2: =JVE2+1 -> 4667 | JVI2: =JVG2+1 -> 4668 | JVK2: =JVI2+1 -> 4669 | JVM2: =JVK2+1 -> 4670 | JVO2: =JVM2+1 -> 4671 | JVQ2: =JVO2+1 -> 4672 | JVS2: =JVQ2+1 -> 4673 | JVU2: =JVS2+1 -> 4674 | JVW2: =JVU2+1 -> 4675 | JVY2: =JVW2+1 -> 4676 | JWA2: =JVY2+1 -> 4677 | JWC2: =JWA2+1 -> 4678 | JWE2: =JWC2+1 -> 4679 | JWG2: =JWE2+1 -> 4680 | JWI2: =JWG2+1 -> 4681 | JWK2: =JWI2+1 -> 4682 | JWM2: =JWK2+1 -> 4683 | JWO2: =JWM2+1 -> 4684 | JWQ2: =JWO2+1 -> 4685 | JWS2: =JWQ2+1 -> 4686 | JWU2: =JWS2+1 -> 4687 | JWW2: =JWU2+1 -> 4688 | JWY2: =JWW2+1 -> 4689 | JXA2: =JWY2+1 -> 4690 | JXC2: =JXA2+1 -> 4691 | JXE2: =JXC2+1 -> 4692 | JXG2: =JXE2+1 -> 4693 | JXI2: =JXG2+1 -> 4694 | JXK2: =JXI2+1 -> 4695 | JXM2: =JXK2+1 -> 4696 | JXO2: =JXM2+1 -> 4697 | JXQ2: =JXO2+1 -> 4698 | JXS2: =JXQ2+1 -> 4699 | JXU2: =JXS2+1 -> 4700 | JXW2: =JXU2+1 -> 4701 | JXY2: =JXW2+1 -> 4702 | JYA2: =JXY2+1 -> 4703 | JYC2: =JYA2+1 -> 4704 | JYE2: =JYC2+1 -> 4705 | JYG2: =JYE2+1 -> 4706 | JYI2: =JYG2+1 -> 4707 | JYK2: =JYI2+1 -> 4708 | JYM2: =JYK2+1 -> 4709 | JYO2: =JYM2+1 -> 4710 | JYQ2: =JYO2+1 -> 4711 | JYS2: =JYQ2+1 -> 4712 | JYU2: =JYS2+1 -> 4713 | JYW2: =JYU2+1 -> 4714 | JYY2: =JYW2+1 -> 4715 | JZA2: =JYY2+1 -> 4716 | JZC2: =JZA2+1 -> 4717 | JZE2: =JZC2+1 -> 4718 | JZG2: =JZE2+1 -> 4719 | JZI2: =JZG2+1 -> 4720 | JZK2: =JZI2+1 -> 4721 | JZM2: =JZK2+1 -> 4722 | JZO2: =JZM2+1 -> 4723 | JZQ2: =JZO2+1 -> 4724 | JZS2: =JZQ2+1 -> 4725 | JZU2: =JZS2+1 -> 4726 | JZW2: =JZU2+1 -> 4727 | JZY2: =JZW2+1 -> 4728 | KAA2: =JZY2+1 -> 4729 | KAC2: =KAA2+1 -> 4730 | KAE2: =KAC2+1 -> 4731 | KAG2: =KAE2+1 -> 4732 | KAI2: =KAG2+1 -> 4733 | KAK2: =KAI2+1 -> 4734 | KAM2: =KAK2+1 -> 4735 | KAO2: =KAM2+1 -> 4736 | KAQ2: =KAO2+1 -> 4737 | KAS2: =KAQ2+1 -> 4738 | KAU2: =KAS2+1 -> 4739 | KAW2: =KAU2+1 -> 4740 | KAY2: =KAW2+1 -> 4741 | KBA2: =KAY2+1 -> 4742 | KBC2: =KBA2+1 -> 4743 | KBE2: =KBC2+1 -> 4744 | KBG2: =KBE2+1 -> 4745 | KBI2: =KBG2+1 -> 4746 | KBK2: =KBI2+1 -> 4747 | KBM2: =KBK2+1 -> 4748 | KBO2: =KBM2+1 -> 4749 | KBQ2: =KBO2+1 -> 4750 | KBS2: =KBQ2+1 -> 4751 | KBU2: =KBS2+1 -> 4752 | KBW2: =KBU2+1 -> 4753 | KBY2: =KBW2+1 -> 4754 | KCA2: =KBY2+1 -> 4755 | KCC2: =KCA2+1 -> 4756 | KCE2: =KCC2+1 -> 4757 | KCG2: =KCE2+1 -> 4758 | KCI2: =KCG2+1 -> 4759 | KCK2: =KCI2+1 -> 4760 | KCM2: =KCK2+1 -> 4761 | KCO2: =KCM2+1 -> 4762 | KCQ2: =KCO2+1 -> 4763 | KCS2: =KCQ2+1 -> 4764 | KCU2: =KCS2+1 -> 4765 | KCW2: =KCU2+1 -> 4766 | KCY2: =KCW2+1 -> 4767 | KDA2: =KCY2+1 -> 4768 | KDC2: =KDA2+1 -> 4769 | KDE2: =KDC2+1 -> 4770 | KDG2: =KDE2+1 -> 4771 | KDI2: =KDG2+1 -> 4772 | KDK2: =KDI2+1 -> 4773 | KDM2: =KDK2+1 -> 4774 | KDO2: =KDM2+1 -> 4775 | KDQ2: =KDO2+1 -> 4776 | KDS2: =KDQ2+1 -> 4777 | KDU2: =KDS2+1 -> 4778 | KDW2: =KDU2+1 -> 4779 | KDY2: =KDW2+1 -> 4780 | KEA2: =KDY2+1 -> 4781 | KEC2: =KEA2+1 -> 4782 | KEE2: =KEC2+1 -> 4783 | KEG2: =KEE2+1 -> 4784 | KEI2: =KEG2+1 -> 4785 | KEK2: =KEI2+1 -> 4786 | KEM2: =KEK2+1 -> 4787 | KEO2: =KEM2+1 -> 4788 | KEQ2: =KEO2+1 -> 4789 | KES2: =KEQ2+1 -> 4790 | KEU2: =KES2+1 -> 4791 | KEW2: =KEU2+1 -> 4792 | KEY2: =KEW2+1 -> 4793 | KFA2: =KEY2+1 -> 4794 | KFC2: =KFA2+1 -> 4795 | KFE2: =KFC2+1 -> 4796 | KFG2: =KFE2+1 -> 4797 | KFI2: =KFG2+1 -> 4798 | KFK2: =KFI2+1 -> 4799 | KFM2: =KFK2+1 -> 4800 | KFO2: =KFM2+1 -> 4801 | KFQ2: =KFO2+1 -> 4802 | KFS2: =KFQ2+1 -> 4803 | KFU2: =KFS2+1 -> 4804 | KFW2: =KFU2+1 -> 4805 | KFY2: =KFW2+1 -> 4806 | KGA2: =KFY2+1 -> 4807 | KGC2: =KGA2+1 -> 4808 | KGE2: =KGC2+1 -> 4809 | KGG2: =KGE2+1 -> 4810 | KGI2: =KGG2+1 -> 4811 | KGK2: =KGI2+1 -> 4812 | KGM2: =KGK2+1 -> 4813 | KGO2: =KGM2+1 -> 4814 | KGQ2: =KGO2+1 -> 4815 | KGS2: =KGQ2+1 -> 4816 | KGU2: =KGS2+1 -> 4817 | KGW2: =KGU2+1 -> 4818 | KGY2: =KGW2+1 -> 4819 | KHA2: =KGY2+1 -> 4820 | KHC2: =KHA2+1 -> 4821 | KHE2: =KHC2+1 -> 4822 | KHG2: =KHE2+1 -> 4823 | KHI2: =KHG2+1 -> 4824 | KHK2: =KHI2+1 -> 4825 | KHM2: =KHK2+1 -> 4826 | KHO2: =KHM2+1 -> 4827 | KHQ2: =KHO2+1 -> 4828 | KHS2: =KHQ2+1 -> 4829 | KHU2: =KHS2+1 -> 4830 | KHW2: =KHU2+1 -> 4831 | KHY2: =KHW2+1 -> 4832 | KIA2: =KHY2+1 -> 4833 | KIC2: =KIA2+1 -> 4834 | KIE2: =KIC2+1 -> 4835 | KIG2: =KIE2+1 -> 4836 | KII2: =KIG2+1 -> 4837 | KIK2: =KII2+1 -> 4838 | KIM2: =KIK2+1 -> 4839 | KIO2: =KIM2+1 -> 4840 | KIQ2: =KIO2+1 -> 4841 | KIS2: =KIQ2+1 -> 4842 | KIU2: =KIS2+1 -> 4843 | KIW2: =KIU2+1 -> 4844 | KIY2: =KIW2+1 -> 4845 | KJA2: =KIY2+1 -> 4846 | KJC2: =KJA2+1 -> 4847 | KJE2: =KJC2+1 -> 4848 | KJG2: =KJE2+1 -> 4849 | KJI2: =KJG2+1 -> 4850 | KJK2: =KJI2+1 -> 4851 | KJM2: =KJK2+1 -> 4852 | KJO2: =KJM2+1 -> 4853 | KJQ2: =KJO2+1 -> 4854 | KJS2: =KJQ2+1 -> 4855 | KJU2: =KJS2+1 -> 4856 | KJW2: =KJU2+1 -> 4857 | KJY2: =KJW2+1 -> 4858 | KKA2: =KJY2+1 -> 4859 | KKC2: =KKA2+1 -> 4860 | KKE2: =KKC2+1 -> 4861 | KKG2: =KKE2+1 -> 4862 | KKI2: =KKG2+1 -> 4863 | KKK2: =KKI2+1 -> 4864 | KKM2: =KKK2+1 -> 4865 | KKO2: =KKM2+1 -> 4866 | KKQ2: =KKO2+1 -> 4867 | KKS2: =KKQ2+1 -> 4868 | KKU2: =KKS2+1 -> 4869 | KKW2: =KKU2+1 -> 4870 | KKY2: =KKW2+1 -> 4871 | KLA2: =KKY2+1 -> 4872 | KLC2: =KLA2+1 -> 4873 | KLE2: =KLC2+1 -> 4874 | KLG2: =KLE2+1 -> 4875 | KLI2: =KLG2+1 -> 4876 | KLK2: =KLI2+1 -> 4877 | KLM2: =KLK2+1 -> 4878 | KLO2: =KLM2+1 -> 4879 | KLQ2: =KLO2+1 -> 4880 | KLS2: =KLQ2+1 -> 4881 | KLU2: =KLS2+1 -> 4882 | KLW2: =KLU2+1 -> 4883 | KLY2: =KLW2+1 -> 4884 | KMA2: =KLY2+1 -> 4885 | KMC2: =KMA2+1 -> 4886 | KME2: =KMC2+1 -> 4887 | KMG2: =KME2+1 -> 4888 | KMI2: =KMG2+1 -> 4889 | KMK2: =KMI2+1 -> 4890 | KMM2: =KMK2+1 -> 4891 | KMO2: =KMM2+1 -> 4892 | KMQ2: =KMO2+1 -> 4893 | KMS2: =KMQ2+1 -> 4894 | KMU2: =KMS2+1 -> 4895 | KMW2: =KMU2+1 -> 4896 | KMY2: =KMW2+1 -> 4897 | KNA2: =KMY2+1 -> 4898 | KNC2: =KNA2+1 -> 4899 | KNE2: =KNC2+1 -> 4900 | KNG2: =KNE2+1 -> 4901 | KNI2: =KNG2+1 -> 4902 | KNK2: =KNI2+1 -> 4903 | KNM2: =KNK2+1 -> 4904 | KNO2: =KNM2+1 -> 4905 | KNQ2: =KNO2+1 -> 4906 | KNS2: =KNQ2+1 -> 4907 | KNU2: =KNS2+1 -> 4908 | KNW2: =KNU2+1 -> 4909 | KNY2: =KNW2+1 -> 4910 | KOA2: =KNY2+1 -> 4911 | KOC2: =KOA2+1 -> 4912 | KOE2: =KOC2+1 -> 4913 | KOG2: =KOE2+1 -> 4914 | KOI2: =KOG2+1 -> 4915 | KOK2: =KOI2+1 -> 4916 | KOM2: =KOK2+1 -> 4917 | KOO2: =KOM2+1 -> 4918 | KOQ2: =KOO2+1 -> 4919 | KOS2: =KOQ2+1 -> 4920 | KOU2: =KOS2+1 -> 4921 | KOW2: =KOU2+1 -> 4922 | KOY2: =KOW2+1 -> 4923 | KPA2: =KOY2+1 -> 4924 | KPC2: =KPA2+1 -> 4925 | KPE2: =KPC2+1 -> 4926 | KPG2: =KPE2+1 -> 4927 | KPI2: =KPG2+1 -> 4928 | KPK2: =KPI2+1 -> 4929 | KPM2: =KPK2+1 -> 4930 | KPO2: =KPM2+1 -> 4931 | KPQ2: =KPO2+1 -> 4932 | KPS2: =KPQ2+1 -> 4933 | KPU2: =KPS2+1 -> 4934 | KPW2: =KPU2+1 -> 4935 | KPY2: =KPW2+1 -> 4936 | KQA2: =KPY2+1 -> 4937 | KQC2: =KQA2+1 -> 4938 | KQE2: =KQC2+1 -> 4939 | KQG2: =KQE2+1 -> 4940 | KQI2: =KQG2+1 -> 4941 | KQK2: =KQI2+1 -> 4942 | KQM2: =KQK2+1 -> 4943 | KQO2: =KQM2+1 -> 4944 | KQQ2: =KQO2+1 -> 4945 | KQS2: =KQQ2+1 -> 4946 | KQU2: =KQS2+1 -> 4947 | KQW2: =KQU2+1 -> 4948 | KQY2: =KQW2+1 -> 4949 | KRA2: =KQY2+1 -> 4950 | KRC2: =KRA2+1 -> 4951 | KRE2: =KRC2+1 -> 4952 | KRG2: =KRE2+1 -> 4953 | KRI2: =KRG2+1 -> 4954 | KRK2: =KRI2+1 -> 4955 | KRM2: =KRK2+1 -> 4956 | KRO2: =KRM2+1 -> 4957 | KRQ2: =KRO2+1 -> 4958 | KRS2: =KRQ2+1 -> 4959 | KRU2: =KRS2+1 -> 4960 | KRW2: =KRU2+1 -> 4961 | KRY2: =KRW2+1 -> 4962 | KSA2: =KRY2+1 -> 4963 | KSC2: =KSA2+1 -> 4964 | KSE2: =KSC2+1 -> 4965 | KSG2: =KSE2+1 -> 4966 | KSI2: =KSG2+1 -> 4967 | KSK2: =KSI2+1 -> 4968 | KSM2: =KSK2+1 -> 4969 | KSO2: =KSM2+1 -> 4970 | KSQ2: =KSO2+1 -> 4971 | KSS2: =KSQ2+1 -> 4972 | KSU2: =KSS2+1 -> 4973 | KSW2: =KSU2+1 -> 4974 | KSY2: =KSW2+1 -> 4975 | KTA2: =KSY2+1 -> 4976 | KTC2: =KTA2+1 -> 4977 | KTE2: =KTC2+1 -> 4978 | KTG2: =KTE2+1 -> 4979 | KTI2: =KTG2+1 -> 4980 | KTK2: =KTI2+1 -> 4981 | KTM2: =KTK2+1 -> 4982 | KTO2: =KTM2+1 -> 4983 | KTQ2: =KTO2+1 -> 4984 | KTS2: =KTQ2+1 -> 4985 | KTU2: =KTS2+1 -> 4986 | KTW2: =KTU2+1 -> 4987 | KTY2: =KTW2+1 -> 4988 | KUA2: =KTY2+1 -> 4989 | KUC2: =KUA2+1 -> 4990 | KUE2: =KUC2+1 -> 4991 | KUG2: =KUE2+1 -> 4992 | KUI2: =KUG2+1 -> 4993 | KUK2: =KUI2+1 -> 4994 | KUM2: =KUK2+1 -> 4995 | KUO2: =KUM2+1 -> 4996 | KUQ2: =KUO2+1 -> 4997 | KUS2: =KUQ2+1 -> 4998 | KUU2: =KUS2+1 -> 4999 | KUW2: =KUU2+1 -> 5000 | KUY2: =KUW2+1 -> 5001 | KVA2: =KUY2+1 -> 5002 | KVC2: =KVA2+1 -> 5003 | KVE2: =KVC2+1 -> 5004 | KVG2: =KVE2+1 -> 5005 | KVI2: =KVG2+1 -> 5006 | KVK2: =KVI2+1 -> 5007 | KVM2: =KVK2+1 -> 5008 | KVO2: =KVM2+1 -> 5009 | KVQ2: =KVO2+1 -> 5010 | KVS2: =KVQ2+1 -> 5011 | KVU2: =KVS2+1 -> 5012 | KVW2: =KVU2+1 -> 5013 | KVY2: =KVW2+1 -> 5014 | KWA2: =KVY2+1 -> 5015 | KWC2: =KWA2+1 -> 5016 | KWE2: =KWC2+1 -> 5017 | KWG2: =KWE2+1 -> 5018 | KWI2: =KWG2+1 -> 5019 | KWK2: =KWI2+1 -> 5020 | KWM2: =KWK2+1 -> 5021 | KWO2: =KWM2+1 -> 5022 | KWQ2: =KWO2+1 -> 5023 | KWS2: =KWQ2+1 -> 5024 | KWU2: =KWS2+1 -> 5025 | KWW2: =KWU2+1 -> 5026 | KWY2: =KWW2+1 -> 5027 | KXA2: =KWY2+1 -> 5028 | KXC2: =KXA2+1 -> 5029 | KXE2: =KXC2+1 -> 5030 | KXG2: =KXE2+1 -> 5031 | KXI2: =KXG2+1 -> 5032 | KXK2: =KXI2+1 -> 5033 | KXM2: =KXK2+1 -> 5034 | KXO2: =KXM2+1 -> 5035 | KXQ2: =KXO2+1 -> 5036 | KXS2: =KXQ2+1 -> 5037 | KXU2: =KXS2+1 -> 5038 | KXW2: =KXU2+1 -> 5039 | KXY2: =KXW2+1 -> 5040 | KYA2: =KXY2+1 -> 5041 | KYC2: =KYA2+1 -> 5042 | KYE2: =KYC2+1 -> 5043 | KYG2: =KYE2+1 -> 5044 | KYI2: =KYG2+1 -> 5045 | KYK2: =KYI2+1 -> 5046 | KYM2: =KYK2+1 -> 5047 | KYO2: =KYM2+1 -> 5048 | KYQ2: =KYO2+1 -> 5049 | KYS2: =KYQ2+1 -> 5050 | KYU2: =KYS2+1 -> 5051 | KYW2: =KYU2+1 -> 5052 | KYY2: =KYW2+1 -> 5053 | KZA2: =KYY2+1 -> 5054 | KZC2: =KZA2+1 -> 5055 | KZE2: =KZC2+1 -> 5056 | KZG2: =KZE2+1 -> 5057 | KZI2: =KZG2+1 -> 5058 | KZK2: =KZI2+1 -> 5059 | KZM2: =KZK2+1 -> 5060 | KZO2: =KZM2+1 -> 5061 | KZQ2: =KZO2+1 -> 5062 | KZS2: =KZQ2+1 -> 5063 | KZU2: =KZS2+1 -> 5064 | KZW2: =KZU2+1 -> 5065 | KZY2: =KZW2+1 -> 5066 | LAA2: =KZY2+1 -> 5067 | LAC2: =LAA2+1 -> 5068 | LAE2: =LAC2+1 -> 5069 | LAG2: =LAE2+1 -> 5070 | LAI2: =LAG2+1 -> 5071 | LAK2: =LAI2+1 -> 5072 | LAM2: =LAK2+1 -> 5073 | LAO2: =LAM2+1 -> 5074 | LAQ2: =LAO2+1 -> 5075 | LAS2: =LAQ2+1 -> 5076 | LAU2: =LAS2+1 -> 5077 | LAW2: =LAU2+1 -> 5078 | LAY2: =LAW2+1 -> 5079 | LBA2: =LAY2+1 -> 5080 | LBC2: =LBA2+1 -> 5081 | LBE2: =LBC2+1 -> 5082 | LBG2: =LBE2+1 -> 5083 | LBI2: =LBG2+1 -> 5084 | LBK2: =LBI2+1 -> 5085 | LBM2: =LBK2+1 -> 5086 | LBO2: =LBM2+1 -> 5087 | LBQ2: =LBO2+1 -> 5088 | LBS2: =LBQ2+1 -> 5089 | LBU2: =LBS2+1 -> 5090 | LBW2: =LBU2+1 -> 5091 | LBY2: =LBW2+1 -> 5092 | LCA2: =LBY2+1 -> 5093 | LCC2: =LCA2+1 -> 5094 | LCE2: =LCC2+1 -> 5095 | LCG2: =LCE2+1 -> 5096 | LCI2: =LCG2+1 -> 5097 | LCK2: =LCI2+1 -> 5098 | LCM2: =LCK2+1 -> 5099 | LCO2: =LCM2+1 -> 5100 | LCQ2: =LCO2+1 -> 5101 | LCS2: =LCQ2+1 -> 5102 | LCU2: =LCS2+1 -> 5103 | LCW2: =LCU2+1 -> 5104 | LCY2: =LCW2+1 -> 5105 | LDA2: =LCY2+1 -> 5106 | LDC2: =LDA2+1 -> 5107 | LDE2: =LDC2+1 -> 5108 | LDG2: =LDE2+1 -> 5109 | LDI2: =LDG2+1 -> 5110 | LDK2: =LDI2+1 -> 5111 | LDM2: =LDK2+1 -> 5112 | LDO2: =LDM2+1 -> 5113 | LDQ2: =LDO2+1 -> 5114 | LDS2: =LDQ2+1 -> 5115 | LDU2: =LDS2+1 -> 5116 | LDW2: =LDU2+1 -> 5117 | LDY2: =LDW2+1 -> 5118 | LEA2: =LDY2+1 -> 5119 | LEC2: =LEA2+1 -> 5120 | LEE2: =LEC2+1 -> 5121 | LEG2: =LEE2+1 -> 5122 | LEI2: =LEG2+1 -> 5123 | LEK2: =LEI2+1 -> 5124 | LEM2: =LEK2+1 -> 5125 | LEO2: =LEM2+1 -> 5126 | LEQ2: =LEO2+1 -> 5127 | LES2: =LEQ2+1 -> 5128 | LEU2: =LES2+1 -> 5129 | LEW2: =LEU2+1 -> 5130 | LEY2: =LEW2+1 -> 5131 | LFA2: =LEY2+1 -> 5132 | LFC2: =LFA2+1 -> 5133 | LFE2: =LFC2+1 -> 5134 | LFG2: =LFE2+1 -> 5135 | LFI2: =LFG2+1 -> 5136 | LFK2: =LFI2+1 -> 5137 | LFM2: =LFK2+1 -> 5138 | LFO2: =LFM2+1 -> 5139 | LFQ2: =LFO2+1 -> 5140 | LFS2: =LFQ2+1 -> 5141 | LFU2: =LFS2+1 -> 5142 | LFW2: =LFU2+1 -> 5143 | LFY2: =LFW2+1 -> 5144 | LGA2: =LFY2+1 -> 5145 | LGC2: =LGA2+1 -> 5146 | LGE2: =LGC2+1 -> 5147 | LGG2: =LGE2+1 -> 5148 | LGI2: =LGG2+1 -> 5149 | LGK2: =LGI2+1 -> 5150 | LGM2: =LGK2+1 -> 5151 | LGO2: =LGM2+1 -> 5152 | LGQ2: =LGO2+1 -> 5153 | LGS2: =LGQ2+1 -> 5154 | LGU2: =LGS2+1 -> 5155 | LGW2: =LGU2+1 -> 5156 | LGY2: =LGW2+1 -> 5157 | LHA2: =LGY2+1 -> 5158 | LHC2: =LHA2+1 -> 5159 | LHE2: =LHC2+1 -> 5160 | LHG2: =LHE2+1 -> 5161 | LHI2: =LHG2+1 -> 5162 | LHK2: =LHI2+1 -> 5163 | LHM2: =LHK2+1 -> 5164 | LHO2: =LHM2+1 -> 5165 | LHQ2: =LHO2+1 -> 5166 | LHS2: =LHQ2+1 -> 5167 | LHU2: =LHS2+1 -> 5168 | LHW2: =LHU2+1 -> 5169 | LHY2: =LHW2+1 -> 5170 | LIA2: =LHY2+1 -> 5171 | LIC2: =LIA2+1 -> 5172 | LIE2: =LIC2+1 -> 5173 | LIG2: =LIE2+1 -> 5174 | LII2: =LIG2+1 -> 5175 | LIK2: =LII2+1 -> 5176 | LIM2: =LIK2+1 -> 5177 | LIO2: =LIM2+1 -> 5178 | LIQ2: =LIO2+1 -> 5179 | LIS2: =LIQ2+1 -> 5180 | LIU2: =LIS2+1 -> 5181 | LIW2: =LIU2+1 -> 5182 | LIY2: =LIW2+1 -> 5183 | LJA2: =LIY2+1 -> 5184 | LJC2: =LJA2+1 -> 5185 | LJE2: =LJC2+1 -> 5186 | LJG2: =LJE2+1 -> 5187 | LJI2: =LJG2+1 -> 5188 | LJK2: =LJI2+1 -> 5189 | LJM2: =LJK2+1 -> 5190 | LJO2: =LJM2+1 -> 5191 | LJQ2: =LJO2+1 -> 5192 | LJS2: =LJQ2+1 -> 5193 | LJU2: =LJS2+1 -> 5194 | LJW2: =LJU2+1 -> 5195 | LJY2: =LJW2+1 -> 5196 | LKA2: =LJY2+1 -> 5197 | LKC2: =LKA2+1 -> 5198 | LKE2: =LKC2+1 -> 5199 | LKG2: =LKE2+1 -> 5200 | LKI2: =LKG2+1 -> 5201 | LKK2: =LKI2+1 -> 5202 | LKM2: =LKK2+1 -> 5203 | LKO2: =LKM2+1 -> 5204 | LKQ2: =LKO2+1 -> 5205 | LKS2: =LKQ2+1 -> 5206 | LKU2: =LKS2+1 -> 5207 | LKW2: =LKU2+1 -> 5208 | LKY2: =LKW2+1 -> 5209 | LLA2: =LKY2+1 -> 5210 | LLC2: =LLA2+1 -> 5211 | LLE2: =LLC2+1 -> 5212 | LLG2: =LLE2+1 -> 5213 | LLI2: =LLG2+1 -> 5214 | LLK2: =LLI2+1 -> 5215 | LLM2: =LLK2+1 -> 5216 | LLO2: =LLM2+1 -> 5217 | LLQ2: =LLO2+1 -> 5218 | LLS2: =LLQ2+1 -> 5219 | LLU2: =LLS2+1 -> 5220 | LLW2: =LLU2+1 -> 5221 | LLY2: =LLW2+1 -> 5222 | LMA2: =LLY2+1 -> 5223 | LMC2: =LMA2+1 -> 5224 | LME2: =LMC2+1 -> 5225 | LMG2: =LME2+1 -> 5226 | LMI2: =LMG2+1 -> 5227 | LMK2: =LMI2+1 -> 5228 | LMM2: =LMK2+1 -> 5229 | LMO2: =LMM2+1 -> 5230 | LMQ2: =LMO2+1 -> 5231 | LMS2: =LMQ2+1 -> 5232 | LMU2: =LMS2+1 -> 5233 | LMW2: =LMU2+1 -> 5234 | LMY2: =LMW2+1 -> 5235 | LNA2: =LMY2+1 -> 5236 | LNC2: =LNA2+1 -> 5237 | LNE2: =LNC2+1 -> 5238 | LNG2: =LNE2+1 -> 5239 | LNI2: =LNG2+1 -> 5240 | LNK2: =LNI2+1 -> 5241 | LNM2: =LNK2+1 -> 5242 | LNO2: =LNM2+1 -> 5243 | LNQ2: =LNO2+1 -> 5244 | LNS2: =LNQ2+1 -> 5245 | LNU2: =LNS2+1 -> 5246 | LNW2: =LNU2+1 -> 5247 | LNY2: =LNW2+1 -> 5248 | LOA2: =LNY2+1 -> 5249 | LOC2: =LOA2+1 -> 5250 | LOE2: =LOC2+1 -> 5251 | LOG2: =LOE2+1 -> 5252 | LOI2: =LOG2+1 -> 5253 | LOK2: =LOI2+1 -> 5254 | LOM2: =LOK2+1 -> 5255 | LOO2: =LOM2+1 -> 5256 | LOQ2: =LOO2+1 -> 5257 | LOS2: =LOQ2+1 -> 5258 | LOU2: =LOS2+1 -> 5259 | LOW2: =LOU2+1 -> 5260 | LOY2: =LOW2+1 -> 5261 | LPA2: =LOY2+1 -> 5262 | LPC2: =LPA2+1 -> 5263 | LPE2: =LPC2+1 -> 5264 | LPG2: =LPE2+1 -> 5265 | LPI2: =LPG2+1 -> 5266 | LPK2: =LPI2+1 -> 5267 | LPM2: =LPK2+1 -> 5268 | LPO2: =LPM2+1 -> 5269 | LPQ2: =LPO2+1 -> 5270 | LPS2: =LPQ2+1 -> 5271 | LPU2: =LPS2+1 -> 5272 | LPW2: =LPU2+1 -> 5273 | LPY2: =LPW2+1 -> 5274 | LQA2: =LPY2+1 -> 5275 | LQC2: =LQA2+1 -> 5276 | LQE2: =LQC2+1 -> 5277 | LQG2: =LQE2+1 -> 5278 | LQI2: =LQG2+1 -> 5279 | LQK2: =LQI2+1 -> 5280 | LQM2: =LQK2+1 -> 5281 | LQO2: =LQM2+1 -> 5282 | LQQ2: =LQO2+1 -> 5283 | LQS2: =LQQ2+1 -> 5284 | LQU2: =LQS2+1 -> 5285 | LQW2: =LQU2+1 -> 5286 | LQY2: =LQW2+1 -> 5287 | LRA2: =LQY2+1 -> 5288 | LRC2: =LRA2+1 -> 5289 | LRE2: =LRC2+1 -> 5290 | LRG2: =LRE2+1 -> 5291 | LRI2: =LRG2+1 -> 5292 | LRK2: =LRI2+1 -> 5293 | LRM2: =LRK2+1 -> 5294 | LRO2: =LRM2+1 -> 5295 | LRQ2: =LRO2+1 -> 5296 | LRS2: =LRQ2+1 -> 5297 | LRU2: =LRS2+1 -> 5298 | LRW2: =LRU2+1 -> 5299 | LRY2: =LRW2+1 -> 5300 | LSA2: =LRY2+1 -> 5301 | LSC2: =LSA2+1 -> 5302 | LSE2: =LSC2+1 -> 5303 | LSG2: =LSE2+1 -> 5304 | LSI2: =LSG2+1 -> 5305 | LSK2: =LSI2+1 -> 5306 | LSM2: =LSK2+1 -> 5307 | LSO2: =LSM2+1 -> 5308 | LSQ2: =LSO2+1 -> 5309 | LSS2: =LSQ2+1 -> 5310 | LSU2: =LSS2+1 -> 5311 | LSW2: =LSU2+1 -> 5312 | LSY2: =LSW2+1 -> 5313 | LTA2: =LSY2+1 -> 5314 | LTC2: =LTA2+1 -> 5315 | LTE2: =LTC2+1 -> 5316 | LTG2: =LTE2+1 -> 5317 | LTI2: =LTG2+1 -> 5318 | LTK2: =LTI2+1 -> 5319 | LTM2: =LTK2+1 -> 5320 | LTO2: =LTM2+1 -> 5321 | LTQ2: =LTO2+1 -> 5322 | LTS2: =LTQ2+1 -> 5323 | LTU2: =LTS2+1 -> 5324 | LTW2: =LTU2+1 -> 5325 | LTY2: =LTW2+1 -> 5326 | LUA2: =LTY2+1 -> 5327 | LUC2: =LUA2+1 -> 5328 | LUE2: =LUC2+1 -> 5329 | LUG2: =LUE2+1 -> 5330 | LUI2: =LUG2+1 -> 5331 | LUK2: =LUI2+1 -> 5332 | LUM2: =LUK2+1 -> 5333 | LUO2: =LUM2+1 -> 5334 | LUQ2: =LUO2+1 -> 5335 | LUS2: =LUQ2+1 -> 5336 | LUU2: =LUS2+1 -> 5337 | LUW2: =LUU2+1 -> 5338 | LUY2: =LUW2+1 -> 5339 | LVA2: =LUY2+1 -> 5340 | LVC2: =LVA2+1 -> 5341 | LVE2: =LVC2+1 -> 5342 | LVG2: =LVE2+1 -> 5343 | LVI2: =LVG2+1 -> 5344 | LVK2: =LVI2+1 -> 5345 | LVM2: =LVK2+1 -> 5346 | LVO2: =LVM2+1 -> 5347 | LVQ2: =LVO2+1 -> 5348 | LVS2: =LVQ2+1 -> 5349 | LVU2: =LVS2+1 -> 5350 | LVW2: =LVU2+1 -> 5351 | LVY2: =LVW2+1 -> 5352 | LWA2: =LVY2+1 -> 5353 | LWC2: =LWA2+1 -> 5354 | LWE2: =LWC2+1 -> 5355 | LWG2: =LWE2+1 -> 5356 | LWI2: =LWG2+1 -> 5357 | LWK2: =LWI2+1 -> 5358 | LWM2: =LWK2+1 -> 5359 | LWO2: =LWM2+1 -> 5360 | LWQ2: =LWO2+1 -> 5361 | LWS2: =LWQ2+1 -> 5362 | LWU2: =LWS2+1 -> 5363 | LWW2: =LWU2+1 -> 5364 | LWY2: =LWW2+1 -> 5365 | LXA2: =LWY2+1 -> 5366 | LXC2: =LXA2+1 -> 5367 | LXE2: =LXC2+1 -> 5368 | LXG2: =LXE2+1 -> 5369 | LXI2: =LXG2+1 -> 5370 | LXK2: =LXI2+1 -> 5371 | LXM2: =LXK2+1 -> 5372 | LXO2: =LXM2+1 -> 5373 | LXQ2: =LXO2+1 -> 5374 | LXS2: =LXQ2+1 -> 5375 | LXU2: =LXS2+1 -> 5376 | LXW2: =LXU2+1 -> 5377 | LXY2: =LXW2+1 -> 5378 | LYA2: =LXY2+1 -> 5379 | LYC2: =LYA2+1 -> 5380 | LYE2: =LYC2+1 -> 5381 | LYG2: =LYE2+1 -> 5382 | LYI2: =LYG2+1 -> 5383 | LYK2: =LYI2+1 -> 5384 | LYM2: =LYK2+1 -> 5385 | LYO2: =LYM2+1 -> 5386 | LYQ2: =LYO2+1 -> 5387 | LYS2: =LYQ2+1 -> 5388 | LYU2: =LYS2+1 -> 5389 | LYW2: =LYU2+1 -> 5390 | LYY2: =LYW2+1 -> 5391 | LZA2: =LYY2+1 -> 5392 | LZC2: =LZA2+1 -> 5393 | LZE2: =LZC2+1 -> 5394 | LZG2: =LZE2+1 -> 5395 | LZI2: =LZG2+1 -> 5396 | LZK2: =LZI2+1 -> 5397 | LZM2: =LZK2+1 -> 5398 | LZO2: =LZM2+1 -> 5399 | LZQ2: =LZO2+1 -> 5400 | LZS2: =LZQ2+1 -> 5401 | LZU2: =LZS2+1 -> 5402 | LZW2: =LZU2+1 -> 5403 | LZY2: =LZW2+1 -> 5404 | MAA2: =LZY2+1 -> 5405 | MAC2: =MAA2+1 -> 5406 | MAE2: =MAC2+1 -> 5407 | MAG2: =MAE2+1 -> 5408 | MAI2: =MAG2+1 -> 5409 | MAK2: =MAI2+1 -> 5410 | MAM2: =MAK2+1 -> 5411 | MAO2: =MAM2+1 -> 5412 | MAQ2: =MAO2+1 -> 5413 | MAS2: =MAQ2+1 -> 5414 | MAU2: =MAS2+1 -> 5415 | MAW2: =MAU2+1 -> 5416 | MAY2: =MAW2+1 -> 5417 | MBA2: =MAY2+1 -> 5418 | MBC2: =MBA2+1 -> 5419 | MBE2: =MBC2+1 -> 5420 | MBG2: =MBE2+1 -> 5421 | MBI2: =MBG2+1 -> 5422 | MBK2: =MBI2+1 -> 5423 | MBM2: =MBK2+1 -> 5424 | MBO2: =MBM2+1 -> 5425 | MBQ2: =MBO2+1 -> 5426 | MBS2: =MBQ2+1 -> 5427 | MBU2: =MBS2+1 -> 5428 | MBW2: =MBU2+1 -> 5429 | MBY2: =MBW2+1 -> 5430 | MCA2: =MBY2+1 -> 5431 | MCC2: =MCA2+1 -> 5432 | MCE2: =MCC2+1 -> 5433 | MCG2: =MCE2+1 -> 5434 | MCI2: =MCG2+1 -> 5435 | MCK2: =MCI2+1 -> 5436 | MCM2: =MCK2+1 -> 5437 | MCO2: =MCM2+1 -> 5438 | MCQ2: =MCO2+1 -> 5439 | MCS2: =MCQ2+1 -> 5440 | MCU2: =MCS2+1 -> 5441 | MCW2: =MCU2+1 -> 5442 | MCY2: =MCW2+1 -> 5443 | MDA2: =MCY2+1 -> 5444 | MDC2: =MDA2+1 -> 5445 | MDE2: =MDC2+1 -> 5446 | MDG2: =MDE2+1 -> 5447 | MDI2: =MDG2+1 -> 5448 | MDK2: =MDI2+1 -> 5449 | MDM2: =MDK2+1 -> 5450 | MDO2: =MDM2+1 -> 5451 | MDQ2: =MDO2+1 -> 5452 | MDS2: =MDQ2+1 -> 5453 | MDU2: =MDS2+1 -> 5454 | MDW2: =MDU2+1 -> 5455 | MDY2: =MDW2+1 -> 5456 | MEA2: =MDY2+1 -> 5457 | MEC2: =MEA2+1 -> 5458 | MEE2: =MEC2+1 -> 5459 | MEG2: =MEE2+1 -> 5460 | MEI2: =MEG2+1 -> 5461 | MEK2: =MEI2+1 -> 5462 | MEM2: =MEK2+1 -> 5463 | MEO2: =MEM2+1 -> 5464 | MEQ2: =MEO2+1 -> 5465 | MES2: =MEQ2+1 -> 5466 | MEU2: =MES2+1 -> 5467 | MEW2: =MEU2+1 -> 5468 | MEY2: =MEW2+1 -> 5469 | MFA2: =MEY2+1 -> 5470 | MFC2: =MFA2+1 -> 5471 | MFE2: =MFC2+1 -> 5472 | MFG2: =MFE2+1 -> 5473 | MFI2: =MFG2+1 -> 5474 | MFK2: =MFI2+1 -> 5475 | MFM2: =MFK2+1 -> 5476 | MFO2: =MFM2+1 -> 5477 | MFQ2: =MFO2+1 -> 5478 | MFS2: =MFQ2+1 -> 5479 | MFU2: =MFS2+1 -> 5480 | MFW2: =MFU2+1 -> 5481 | MFY2: =MFW2+1 -> 5482 | MGA2: =MFY2+1 -> 5483 | MGC2: =MGA2+1 -> 5484 | MGE2: =MGC2+1 -> 5485 | MGG2: =MGE2+1 -> 5486 | MGI2: =MGG2+1 -> 5487 | MGK2: =MGI2+1 -> 5488 | MGM2: =MGK2+1 -> 5489 | MGO2: =MGM2+1 -> 5490 | MGQ2: =MGO2+1 -> 5491 | MGS2: =MGQ2+1 -> 5492 | MGU2: =MGS2+1 -> 5493 | MGW2: =MGU2+1 -> 5494 | MGY2: =MGW2+1 -> 5495 | MHA2: =MGY2+1 -> 5496 | MHC2: =MHA2+1 -> 5497 | MHE2: =MHC2+1 -> 5498 | MHG2: =MHE2+1 -> 5499 | MHI2: =MHG2+1 -> 5500 | MHK2: =MHI2+1 -> 5501 | MHM2: =MHK2+1 -> 5502 | MHO2: =MHM2+1 -> 5503 | MHQ2: =MHO2+1 -> 5504 | MHS2: =MHQ2+1 -> 5505 | MHU2: =MHS2+1 -> 5506 | MHW2: =MHU2+1 -> 5507 | MHY2: =MHW2+1 -> 5508 | MIA2: =MHY2+1 -> 5509 | MIC2: =MIA2+1 -> 5510 | MIE2: =MIC2+1 -> 5511 | MIG2: =MIE2+1 -> 5512 | MII2: =MIG2+1 -> 5513 | MIK2: =MII2+1 -> 5514 | MIM2: =MIK2+1 -> 5515 | MIO2: =MIM2+1 -> 5516 | MIQ2: =MIO2+1 -> 5517 | MIS2: =MIQ2+1 -> 5518 | MIU2: =MIS2+1 -> 5519 | MIW2: =MIU2+1 -> 5520 | MIY2: =MIW2+1 -> 5521 | MJA2: =MIY2+1 -> 5522 | MJC2: =MJA2+1 -> 5523 | MJE2: =MJC2+1 -> 5524 | MJG2: =MJE2+1 -> 5525 | MJI2: =MJG2+1 -> 5526 | MJK2: =MJI2+1 -> 5527 | MJM2: =MJK2+1 -> 5528 | MJO2: =MJM2+1 -> 5529 | MJQ2: =MJO2+1 -> 5530 | MJS2: =MJQ2+1 -> 5531 | MJU2: =MJS2+1 -> 5532 | MJW2: =MJU2+1 -> 5533 | MJY2: =MJW2+1 -> 5534 | MKA2: =MJY2+1 -> 5535 | MKC2: =MKA2+1 -> 5536 | MKE2: =MKC2+1 -> 5537 | MKG2: =MKE2+1 -> 5538 | MKI2: =MKG2+1 -> 5539 | MKK2: =MKI2+1 -> 5540 | MKM2: =MKK2+1 -> 5541 | MKO2: =MKM2+1 -> 5542 | MKQ2: =MKO2+1 -> 5543 | MKS2: =MKQ2+1 -> 5544 | MKU2: =MKS2+1 -> 5545 | MKW2: =MKU2+1 -> 5546 | MKY2: =MKW2+1 -> 5547 | MLA2: =MKY2+1 -> 5548 | MLC2: =MLA2+1 -> 5549 | MLE2: =MLC2+1 -> 5550 | MLG2: =MLE2+1 -> 5551 | MLI2: =MLG2+1 -> 5552 | MLK2: =MLI2+1 -> 5553 | MLM2: =MLK2+1 -> 5554 | MLO2: =MLM2+1 -> 5555 | MLQ2: =MLO2+1 -> 5556 | MLS2: =MLQ2+1 -> 5557 | MLU2: =MLS2+1 -> 5558 | MLW2: =MLU2+1 -> 5559 | MLY2: =MLW2+1 -> 5560 | MMA2: =MLY2+1 -> 5561 | MMC2: =MMA2+1 -> 5562 | MME2: =MMC2+1 -> 5563 | MMG2: =MME2+1 -> 5564 | MMI2: =MMG2+1 -> 5565 | MMK2: =MMI2+1 -> 5566 | MMM2: =MMK2+1 -> 5567 | MMO2: =MMM2+1 -> 5568 | MMQ2: =MMO2+1 -> 5569 | MMS2: =MMQ2+1 -> 5570 | MMU2: =MMS2+1 -> 5571 | MMW2: =MMU2+1 -> 5572 | MMY2: =MMW2+1 -> 5573 | MNA2: =MMY2+1 -> 5574 | MNC2: =MNA2+1 -> 5575 | MNE2: =MNC2+1 -> 5576 | MNG2: =MNE2+1 -> 5577 | MNI2: =MNG2+1 -> 5578 | MNK2: =MNI2+1 -> 5579 | MNM2: =MNK2+1 -> 5580 | MNO2: =MNM2+1 -> 5581 | MNQ2: =MNO2+1 -> 5582 | MNS2: =MNQ2+1 -> 5583 | MNU2: =MNS2+1 -> 5584 | MNW2: =MNU2+1 -> 5585 | MNY2: =MNW2+1 -> 5586 | MOA2: =MNY2+1 -> 5587 | MOC2: =MOA2+1 -> 5588 | MOE2: =MOC2+1 -> 5589 | MOG2: =MOE2+1 -> 5590 | MOI2: =MOG2+1 -> 5591 | MOK2: =MOI2+1 -> 5592 | MOM2: =MOK2+1 -> 5593 | MOO2: =MOM2+1 -> 5594 | MOQ2: =MOO2+1 -> 5595 | MOS2: =MOQ2+1 -> 5596 | MOU2: =MOS2+1 -> 5597 | MOW2: =MOU2+1 -> 5598 | MOY2: =MOW2+1 -> 5599 | MPA2: =MOY2+1 -> 5600 | MPC2: =MPA2+1 -> 5601 | MPE2: =MPC2+1 -> 5602 | MPG2: =MPE2+1 -> 5603 | MPI2: =MPG2+1 -> 5604 | MPK2: =MPI2+1 -> 5605 | MPM2: =MPK2+1 -> 5606 | MPO2: =MPM2+1 -> 5607 | MPQ2: =MPO2+1 -> 5608 | MPS2: =MPQ2+1 -> 5609 | MPU2: =MPS2+1 -> 5610 | MPW2: =MPU2+1 -> 5611 | MPY2: =MPW2+1 -> 5612 | MQA2: =MPY2+1 -> 5613 | MQC2: =MQA2+1 -> 5614 | MQE2: =MQC2+1 -> 5615 | MQG2: =MQE2+1 -> 5616 | MQI2: =MQG2+1 -> 5617 | MQK2: =MQI2+1 -> 5618 | MQM2: =MQK2+1 -> 5619 | MQO2: =MQM2+1 -> 5620 | MQQ2: =MQO2+1 -> 5621 | MQS2: =MQQ2+1 -> 5622 | MQU2: =MQS2+1 -> 5623 | MQW2: =MQU2+1 -> 5624 | MQY2: =MQW2+1 -> 5625 | MRA2: =MQY2+1 -> 5626 | MRC2: =MRA2+1 -> 5627 | MRE2: =MRC2+1 -> 5628 | MRG2: =MRE2+1 -> 5629 | MRI2: =MRG2+1 -> 5630 | MRK2: =MRI2+1 -> 5631 | MRM2: =MRK2+1 -> 5632 | MRO2: =MRM2+1 -> 5633 | MRQ2: =MRO2+1 -> 5634 | MRS2: =MRQ2+1 -> 5635 | MRU2: =MRS2+1 -> 5636 | MRW2: =MRU2+1 -> 5637 | MRY2: =MRW2+1 -> 5638 | MSA2: =MRY2+1 -> 5639 | MSC2: =MSA2+1 -> 5640 | MSE2: =MSC2+1 -> 5641 | MSG2: =MSE2+1 -> 5642 | MSI2: =MSG2+1 -> 5643 | MSK2: =MSI2+1 -> 5644 | MSM2: =MSK2+1 -> 5645 | MSO2: =MSM2+1 -> 5646 | MSQ2: =MSO2+1 -> 5647 | MSS2: =MSQ2+1 -> 5648 | MSU2: =MSS2+1 -> 5649 | MSW2: =MSU2+1 -> 5650 | MSY2: =MSW2+1 -> 5651 | MTA2: =MSY2+1 -> 5652 | MTC2: =MTA2+1 -> 5653 | MTE2: =MTC2+1 -> 5654 | MTG2: =MTE2+1 -> 5655 | MTI2: =MTG2+1 -> 5656 | MTK2: =MTI2+1 -> 5657 | MTM2: =MTK2+1 -> 5658 | MTO2: =MTM2+1 -> 5659 | MTQ2: =MTO2+1 -> 5660 | MTS2: =MTQ2+1 -> 5661 | MTU2: =MTS2+1 -> 5662 | MTW2: =MTU2+1 -> 5663 | MTY2: =MTW2+1 -> 5664 | MUA2: =MTY2+1 -> 5665 | MUC2: =MUA2+1 -> 5666 | MUE2: =MUC2+1 -> 5667 | MUG2: =MUE2+1 -> 5668 | MUI2: =MUG2+1 -> 5669 | MUK2: =MUI2+1 -> 5670 | MUM2: =MUK2+1 -> 5671 | MUO2: =MUM2+1 -> 5672 | MUQ2: =MUO2+1 -> 5673 | MUS2: =MUQ2+1 -> 5674 | MUU2: =MUS2+1 -> 5675 | MUW2: =MUU2+1 -> 5676 | MUY2: =MUW2+1 -> 5677 | MVA2: =MUY2+1 -> 5678 | MVC2: =MVA2+1 -> 5679 | MVE2: =MVC2+1 -> 5680 | MVG2: =MVE2+1 -> 5681 | MVI2: =MVG2+1 -> 5682 | MVK2: =MVI2+1 -> 5683 | MVM2: =MVK2+1 -> 5684 | MVO2: =MVM2+1 -> 5685 | MVQ2: =MVO2+1 -> 5686 | MVS2: =MVQ2+1 -> 5687 | MVU2: =MVS2+1 -> 5688 | MVW2: =MVU2+1 -> 5689 | MVY2: =MVW2+1 -> 5690 | MWA2: =MVY2+1 -> 5691 | MWC2: =MWA2+1 -> 5692 | MWE2: =MWC2+1 -> 5693 | MWG2: =MWE2+1 -> 5694 | MWI2: =MWG2+1 -> 5695 | MWK2: =MWI2+1 -> 5696 | MWM2: =MWK2+1 -> 5697 | MWO2: =MWM2+1 -> 5698 | MWQ2: =MWO2+1 -> 5699 | MWS2: =MWQ2+1 -> 5700 | MWU2: =MWS2+1 -> 5701 | MWW2: =MWU2+1 -> 5702 | MWY2: =MWW2+1 -> 5703 | MXA2: =MWY2+1 -> 5704 | MXC2: =MXA2+1 -> 5705 | MXE2: =MXC2+1 -> 5706 | MXG2: =MXE2+1 -> 5707 | MXI2: =MXG2+1 -> 5708 | MXK2: =MXI2+1 -> 5709 | MXM2: =MXK2+1 -> 5710 | MXO2: =MXM2+1 -> 5711 | MXQ2: =MXO2+1 -> 5712 | MXS2: =MXQ2+1 -> 5713 | MXU2: =MXS2+1 -> 5714 | MXW2: =MXU2+1 -> 5715 | MXY2: =MXW2+1 -> 5716 | MYA2: =MXY2+1 -> 5717 | MYC2: =MYA2+1 -> 5718 | MYE2: =MYC2+1 -> 5719 | MYG2: =MYE2+1 -> 5720 | MYI2: =MYG2+1 -> 5721 | MYK2: =MYI2+1 -> 5722 | MYM2: =MYK2+1 -> 5723 | MYO2: =MYM2+1 -> 5724 | MYQ2: =MYO2+1 -> 5725 | MYS2: =MYQ2+1 -> 5726 | MYU2: =MYS2+1 -> 5727 | MYW2: =MYU2+1 -> 5728 | MYY2: =MYW2+1 -> 5729 | MZA2: =MYY2+1 -> 5730 | MZC2: =MZA2+1 -> 5731 | MZE2: =MZC2+1 -> 5732 | MZG2: =MZE2+1 -> 5733 | MZI2: =MZG2+1 -> 5734 | MZK2: =MZI2+1 -> 5735 | MZM2: =MZK2+1 -> 5736 | MZO2: =MZM2+1 -> 5737 | MZQ2: =MZO2+1 -> 5738 | MZS2: =MZQ2+1 -> 5739 | MZU2: =MZS2+1 -> 5740 | MZW2: =MZU2+1 -> 5741 | MZY2: =MZW2+1 -> 5742 | NAA2: =MZY2+1 -> 5743 | NAC2: =NAA2+1 -> 5744 | NAE2: =NAC2+1 -> 5745 | NAG2: =NAE2+1 -> 5746 | NAI2: =NAG2+1 -> 5747 | NAK2: =NAI2+1 -> 5748 | NAM2: =NAK2+1 -> 5749 | NAO2: =NAM2+1 -> 5750 | NAQ2: =NAO2+1 -> 5751 | NAS2: =NAQ2+1 -> 5752 | NAU2: =NAS2+1 -> 5753 | NAW2: =NAU2+1 -> 5754 | NAY2: =NAW2+1 -> 5755 | NBA2: =NAY2+1 -> 5756 | NBC2: =NBA2+1 -> 5757 | NBE2: =NBC2+1 -> 5758 | NBG2: =NBE2+1 -> 5759 | NBI2: =NBG2+1 -> 5760 | NBK2: =NBI2+1 -> 5761 | NBM2: =NBK2+1 -> 5762 | NBO2: =NBM2+1 -> 5763 | NBQ2: =NBO2+1 -> 5764 | NBS2: =NBQ2+1 -> 5765 | NBU2: =NBS2+1 -> 5766 | NBW2: =NBU2+1 -> 5767 | NBY2: =NBW2+1 -> 5768 | NCA2: =NBY2+1 -> 5769 | NCC2: =NCA2+1 -> 5770 | NCE2: =NCC2+1 -> 5771 | NCG2: =NCE2+1 -> 5772 | NCI2: =NCG2+1 -> 5773 | NCK2: =NCI2+1 -> 5774 | NCM2: =NCK2+1 -> 5775 | NCO2: =NCM2+1 -> 5776 | NCQ2: =NCO2+1 -> 5777 | NCS2: =NCQ2+1 -> 5778 | NCU2: =NCS2+1 -> 5779 | NCW2: =NCU2+1 -> 5780 | NCY2: =NCW2+1 -> 5781 | NDA2: =NCY2+1 -> 5782 | NDC2: =NDA2+1 -> 5783 | NDE2: =NDC2+1 -> 5784 | NDG2: =NDE2+1 -> 5785 | NDI2: =NDG2+1 -> 5786 | NDK2: =NDI2+1 -> 5787 | NDM2: =NDK2+1 -> 5788 | NDO2: =NDM2+1 -> 5789 | NDQ2: =NDO2+1 -> 5790 | NDS2: =NDQ2+1 -> 5791 | NDU2: =NDS2+1 -> 5792 | NDW2: =NDU2+1 -> 5793 | NDY2: =NDW2+1 -> 5794 | NEA2: =NDY2+1 -> 5795 | NEC2: =NEA2+1 -> 5796 | NEE2: =NEC2+1 -> 5797 | NEG2: =NEE2+1 -> 5798 | NEI2: =NEG2+1 -> 5799 | NEK2: =NEI2+1 -> 5800 | NEM2: =NEK2+1 -> 5801 | NEO2: =NEM2+1 -> 5802 | NEQ2: =NEO2+1 -> 5803 | NES2: =NEQ2+1 -> 5804 | NEU2: =NES2+1 -> 5805 | NEW2: =NEU2+1 -> 5806 | NEY2: =NEW2+1 -> 5807 | NFA2: =NEY2+1 -> 5808 | NFC2: =NFA2+1 -> 5809 | NFE2: =NFC2+1 -> 5810 | NFG2: =NFE2+1 -> 5811 | NFI2: =NFG2+1 -> 5812 | NFK2: =NFI2+1 -> 5813 | NFM2: =NFK2+1 -> 5814 | NFO2: =NFM2+1 -> 5815 | NFQ2: =NFO2+1 -> 5816 | NFS2: =NFQ2+1 -> 5817 | NFU2: =NFS2+1 -> 5818 | NFW2: =NFU2+1 -> 5819 | NFY2: =NFW2+1 -> 5820 | NGA2: =NFY2+1 -> 5821 | NGC2: =NGA2+1 -> 5822 | NGE2: =NGC2+1 -> 5823 | NGG2: =NGE2+1 -> 5824 | NGI2: =NGG2+1 -> 5825 | NGK2: =NGI2+1 -> 5826 | NGM2: =NGK2+1 -> 5827 | NGO2: =NGM2+1 -> 5828 | NGQ2: =NGO2+1 -> 5829 | NGS2: =NGQ2+1 -> 5830 | NGU2: =NGS2+1 -> 5831 | NGW2: =NGU2+1 -> 5832 | NGY2: =NGW2+1 -> 5833 | NHA2: =NGY2+1 -> 5834 | NHC2: =NHA2+1 -> 5835 | NHE2: =NHC2+1 -> 5836 | NHG2: =NHE2+1 -> 5837 | NHI2: =NHG2+1 -> 5838 | NHK2: =NHI2+1 -> 5839 | NHM2: =NHK2+1 -> 5840 | NHO2: =NHM2+1 -> 5841 | NHQ2: =NHO2+1 -> 5842 | NHS2: =NHQ2+1 -> 5843 | NHU2: =NHS2+1 -> 5844 | NHW2: =NHU2+1 -> 5845 | NHY2: =NHW2+1 -> 5846 | NIA2: =NHY2+1 -> 5847 | NIC2: =NIA2+1 -> 5848 | NIE2: =NIC2+1 -> 5849 | NIG2: =NIE2+1 -> 5850 | NII2: =NIG2+1 -> 5851 | NIK2: =NII2+1 -> 5852 | NIM2: =NIK2+1 -> 5853 | NIO2: =NIM2+1 -> 5854 | NIQ2: =NIO2+1 -> 5855 | NIS2: =NIQ2+1 -> 5856 | NIU2: =NIS2+1 -> 5857 | NIW2: =NIU2+1 -> 5858 | NIY2: =NIW2+1 -> 5859 | NJA2: =NIY2+1 -> 5860 | NJC2: =NJA2+1 -> 5861 | NJE2: =NJC2+1 -> 5862 | NJG2: =NJE2+1 -> 5863 | NJI2: =NJG2+1 -> 5864 | NJK2: =NJI2+1 -> 5865 | NJM2: =NJK2+1 -> 5866 | NJO2: =NJM2+1 -> 5867 | NJQ2: =NJO2+1 -> 5868 | NJS2: =NJQ2+1 -> 5869 | NJU2: =NJS2+1 -> 5870 | NJW2: =NJU2+1 -> 5871 | NJY2: =NJW2+1 -> 5872 | NKA2: =NJY2+1 -> 5873 | NKC2: =NKA2+1 -> 5874 | NKE2: =NKC2+1 -> 5875 | NKG2: =NKE2+1 -> 5876 | NKI2: =NKG2+1 -> 5877 | NKK2: =NKI2+1 -> 5878 | NKM2: =NKK2+1 -> 5879 | NKO2: =NKM2+1 -> 5880 | NKQ2: =NKO2+1 -> 5881 | NKS2: =NKQ2+1 -> 5882 | NKU2: =NKS2+1 -> 5883 | NKW2: =NKU2+1 -> 5884 | NKY2: =NKW2+1 -> 5885 | NLA2: =NKY2+1 -> 5886 | NLC2: =NLA2+1 -> 5887 | NLE2: =NLC2+1 -> 5888 | NLG2: =NLE2+1 -> 5889 | NLI2: =NLG2+1 -> 5890 | NLK2: =NLI2+1 -> 5891 | NLM2: =NLK2+1 -> 5892 | NLO2: =NLM2+1 -> 5893 | NLQ2: =NLO2+1 -> 5894 | NLS2: =NLQ2+1 -> 5895 | NLU2: =NLS2+1 -> 5896 | NLW2: =NLU2+1 -> 5897 | NLY2: =NLW2+1 -> 5898 | NMA2: =NLY2+1 -> 5899 | NMC2: =NMA2+1 -> 5900 | NME2: =NMC2+1 -> 5901 | NMG2: =NME2+1 -> 5902 | NMI2: =NMG2+1 -> 5903 | NMK2: =NMI2+1 -> 5904 | NMM2: =NMK2+1 -> 5905 | NMO2: =NMM2+1 -> 5906 | NMQ2: =NMO2+1 -> 5907 | NMS2: =NMQ2+1 -> 5908 | NMU2: =NMS2+1 -> 5909 | NMW2: =NMU2+1 -> 5910 | NMY2: =NMW2+1 -> 5911 | NNA2: =NMY2+1 -> 5912 | NNC2: =NNA2+1 -> 5913 | NNE2: =NNC2+1 -> 5914 | NNG2: =NNE2+1 -> 5915 | NNI2: =NNG2+1 -> 5916 | NNK2: =NNI2+1 -> 5917 | NNM2: =NNK2+1 -> 5918 | NNO2: =NNM2+1 -> 5919 | NNQ2: =NNO2+1 -> 5920 | NNS2: =NNQ2+1 -> 5921 | NNU2: =NNS2+1 -> 5922 | NNW2: =NNU2+1 -> 5923 | NNY2: =NNW2+1 -> 5924 | NOA2: =NNY2+1 -> 5925 | NOC2: =NOA2+1 -> 5926 | NOE2: =NOC2+1 -> 5927 | NOG2: =NOE2+1 -> 5928 | NOI2: =NOG2+1 -> 5929 | NOK2: =NOI2+1 -> 5930 | NOM2: =NOK2+1 -> 5931 | NOO2: =NOM2+1 -> 5932 | NOQ2: =NOO2+1 -> 5933 | NOS2: =NOQ2+1 -> 5934 | NOU2: =NOS2+1 -> 5935 | NOW2: =NOU2+1 -> 5936 | NOY2: =NOW2+1 -> 5937 | NPA2: =NOY2+1 -> 5938 | NPC2: =NPA2+1 -> 5939 | NPE2: =NPC2+1 -> 5940 | NPG2: =NPE2+1 -> 5941 | NPI2: =NPG2+1 -> 5942 | NPK2: =NPI2+1 -> 5943 | NPM2: =NPK2+1 -> 5944 | NPO2: =NPM2+1 -> 5945 | NPQ2: =NPO2+1 -> 5946 | NPS2: =NPQ2+1 -> 5947 | NPU2: =NPS2+1 -> 5948 | NPW2: =NPU2+1 -> 5949 | NPY2: =NPW2+1 -> 5950 | NQA2: =NPY2+1 -> 5951 | NQC2: =NQA2+1 -> 5952 | NQE2: =NQC2+1 -> 5953 | NQG2: =NQE2+1 -> 5954 | NQI2: =NQG2+1 -> 5955 | NQK2: =NQI2+1 -> 5956 | NQM2: =NQK2+1 -> 5957 | NQO2: =NQM2+1 -> 5958 | NQQ2: =NQO2+1 -> 5959 | NQS2: =NQQ2+1 -> 5960 | NQU2: =NQS2+1 -> 5961 | NQW2: =NQU2+1 -> 5962 | NQY2: =NQW2+1 -> 5963 | NRA2: =NQY2+1 -> 5964 | NRC2: =NRA2+1 -> 5965 | NRE2: =NRC2+1 -> 5966 | NRG2: =NRE2+1 -> 5967 | NRI2: =NRG2+1 -> 5968 | NRK2: =NRI2+1 -> 5969 | NRM2: =NRK2+1 -> 5970 | NRO2: =NRM2+1 -> 5971 | NRQ2: =NRO2+1 -> 5972 | NRS2: =NRQ2+1 -> 5973 | NRU2: =NRS2+1 -> 5974 | NRW2: =NRU2+1 -> 5975 | NRY2: =NRW2+1 -> 5976 | NSA2: =NRY2+1 -> 5977 | NSC2: =NSA2+1 -> 5978 | NSE2: =NSC2+1 -> 5979 | NSG2: =NSE2+1 -> 5980 | NSI2: =NSG2+1 -> 5981 | NSK2: =NSI2+1 -> 5982 | NSM2: =NSK2+1 -> 5983 | NSO2: =NSM2+1 -> 5984 | NSQ2: =NSO2+1 -> 5985 | NSS2: =NSQ2+1 -> 5986 | NSU2: =NSS2+1 -> 5987 | NSW2: =NSU2+1 -> 5988 | NSY2: =NSW2+1 -> 5989 | NTA2: =NSY2+1 -> 5990 | NTC2: =NTA2+1 -> 5991 | NTE2: =NTC2+1 -> 5992 | NTG2: =NTE2+1 -> 5993 | NTI2: =NTG2+1 -> 5994 | NTK2: =NTI2+1 -> 5995 | NTM2: =NTK2+1 -> 5996 | NTO2: =NTM2+1 -> 5997 | NTQ2: =NTO2+1 -> 5998 | NTS2: =NTQ2+1 -> 5999 | NTU2: =NTS2+1 -> 6000 | NTW2: =NTU2+1 -> 6001 | NTY2: =NTW2+1 -> 6002 | NUA2: =NTY2+1 -> 6003 | NUC2: =NUA2+1 -> 6004 | NUE2: =NUC2+1 -> 6005 | NUG2: =NUE2+1 -> 6006 | NUI2: =NUG2+1 -> 6007 | NUK2: =NUI2+1 -> 6008 | NUM2: =NUK2+1 -> 6009 | NUO2: =NUM2+1 -> 6010 | NUQ2: =NUO2+1 -> 6011 | NUS2: =NUQ2+1 -> 6012 | NUU2: =NUS2+1 -> 6013 | NUW2: =NUU2+1 -> 6014 | NUY2: =NUW2+1 -> 6015 | NVA2: =NUY2+1 -> 6016 | NVC2: =NVA2+1 -> 6017 | NVE2: =NVC2+1 -> 6018 | NVG2: =NVE2+1 -> 6019 | NVI2: =NVG2+1 -> 6020 | NVK2: =NVI2+1 -> 6021 | NVM2: =NVK2+1 -> 6022 | NVO2: =NVM2+1 -> 6023 | NVQ2: =NVO2+1 -> 6024 | NVS2: =NVQ2+1 -> 6025 | NVU2: =NVS2+1 -> 6026 | NVW2: =NVU2+1 -> 6027 | NVY2: =NVW2+1 -> 6028 | NWA2: =NVY2+1 -> 6029 | NWC2: =NWA2+1 -> 6030 | NWE2: =NWC2+1 -> 6031 | NWG2: =NWE2+1 -> 6032 | NWI2: =NWG2+1 -> 6033 | NWK2: =NWI2+1 -> 6034 | NWM2: =NWK2+1 -> 6035 | NWO2: =NWM2+1 -> 6036 | NWQ2: =NWO2+1 -> 6037 | NWS2: =NWQ2+1 -> 6038 | NWU2: =NWS2+1 -> 6039 | NWW2: =NWU2+1 -> 6040 | NWY2: =NWW2+1 -> 6041 | NXA2: =NWY2+1 -> 6042 | NXC2: =NXA2+1 -> 6043 | NXE2: =NXC2+1 -> 6044 | NXG2: =NXE2+1 -> 6045 | NXI2: =NXG2+1 -> 6046 | NXK2: =NXI2+1 -> 6047 | NXM2: =NXK2+1 -> 6048 | NXO2: =NXM2+1 -> 6049 | NXQ2: =NXO2+1 -> 6050 | NXS2: =NXQ2+1 -> 6051 | NXU2: =NXS2+1 -> 6052 | NXW2: =NXU2+1 -> 6053 | NXY2: =NXW2+1 -> 6054 | NYA2: =NXY2+1 -> 6055 | NYC2: =NYA2+1 -> 6056 | NYE2: =NYC2+1 -> 6057 | NYG2: =NYE2+1 -> 6058 | NYI2: =NYG2+1 -> 6059 | NYK2: =NYI2+1 -> 6060 | NYM2: =NYK2+1 -> 6061 | NYO2: =NYM2+1 -> 6062 | NYQ2: =NYO2+1 -> 6063 | NYS2: =NYQ2+1 -> 6064 | NYU2: =NYS2+1 -> 6065 | NYW2: =NYU2+1 -> 6066 | NYY2: =NYW2+1 -> 6067 | NZA2: =NYY2+1 -> 6068 | NZC2: =NZA2+1 -> 6069 | NZE2: =NZC2+1 -> 6070 | NZG2: =NZE2+1 -> 6071 | NZI2: =NZG2+1 -> 6072 | NZK2: =NZI2+1 -> 6073 | NZM2: =NZK2+1 -> 6074 | NZO2: =NZM2+1 -> 6075 | NZQ2: =NZO2+1 -> 6076 | NZS2: =NZQ2+1 -> 6077 | NZU2: =NZS2+1 -> 6078 | NZW2: =NZU2+1 -> 6079 | NZY2: =NZW2+1 -> 6080 | OAA2: =NZY2+1 -> 6081 | OAC2: =OAA2+1 -> 6082 | OAE2: =OAC2+1 -> 6083 | OAG2: =OAE2+1 -> 6084 | OAI2: =OAG2+1 -> 6085 | OAK2: =OAI2+1 -> 6086 | OAM2: =OAK2+1 -> 6087 | OAO2: =OAM2+1 -> 6088 | OAQ2: =OAO2+1 -> 6089 | OAS2: =OAQ2+1 -> 6090 | OAU2: =OAS2+1 -> 6091 | OAW2: =OAU2+1 -> 6092 | OAY2: =OAW2+1 -> 6093 | OBA2: =OAY2+1 -> 6094 | OBC2: =OBA2+1 -> 6095 | OBE2: =OBC2+1 -> 6096 | OBG2: =OBE2+1 -> 6097 | OBI2: =OBG2+1 -> 6098 | OBK2: =OBI2+1 -> 6099 | OBM2: =OBK2+1 -> 6100 | OBO2: =OBM2+1 -> 6101 | OBQ2: =OBO2+1 -> 6102 | OBS2: =OBQ2+1 -> 6103 | OBU2: =OBS2+1 -> 6104 | OBW2: =OBU2+1 -> 6105 | OBY2: =OBW2+1 -> 6106 | OCA2: =OBY2+1 -> 6107 | OCC2: =OCA2+1 -> 6108 | OCE2: =OCC2+1 -> 6109 | OCG2: =OCE2+1 -> 6110 | OCI2: =OCG2+1 -> 6111 | OCK2: =OCI2+1 -> 6112 | OCM2: =OCK2+1 -> 6113 | OCO2: =OCM2+1 -> 6114 | OCQ2: =OCO2+1 -> 6115 | OCS2: =OCQ2+1 -> 6116 | OCU2: =OCS2+1 -> 6117 | OCW2: =OCU2+1 -> 6118 | OCY2: =OCW2+1 -> 6119 | ODA2: =OCY2+1 -> 6120 | ODC2: =ODA2+1 -> 6121 | ODE2: =ODC2+1 -> 6122 | ODG2: =ODE2+1 -> 6123 | ODI2: =ODG2+1 -> 6124 | ODK2: =ODI2+1 -> 6125 | ODM2: =ODK2+1 -> 6126 | ODO2: =ODM2+1 -> 6127 | ODQ2: =ODO2+1 -> 6128 | ODS2: =ODQ2+1 -> 6129 | ODU2: =ODS2+1 -> 6130 | ODW2: =ODU2+1 -> 6131 | ODY2: =ODW2+1 -> 6132 | OEA2: =ODY2+1 -> 6133 | OEC2: =OEA2+1 -> 6134 | OEE2: =OEC2+1 -> 6135 | OEG2: =OEE2+1 -> 6136 | OEI2: =OEG2+1 -> 6137 | OEK2: =OEI2+1 -> 6138 | OEM2: =OEK2+1 -> 6139 | OEO2: =OEM2+1 -> 6140 | OEQ2: =OEO2+1 -> 6141 | OES2: =OEQ2+1 -> 6142 | OEU2: =OES2+1 -> 6143 | OEW2: =OEU2+1 -> 6144 | OEY2: =OEW2+1 -> 6145 | OFA2: =OEY2+1 -> 6146 | OFC2: =OFA2+1 -> 6147 | OFE2: =OFC2+1 -> 6148 | OFG2: =OFE2+1 -> 6149 | OFI2: =OFG2+1 -> 6150 | OFK2: =OFI2+1 -> 6151 | OFM2: =OFK2+1 -> 6152 | OFO2: =OFM2+1 -> 6153 | OFQ2: =OFO2+1 -> 6154 | OFS2: =OFQ2+1 -> 6155 | OFU2: =OFS2+1 -> 6156 | OFW2: =OFU2+1 -> 6157 | OFY2: =OFW2+1 -> 6158 | OGA2: =OFY2+1 -> 6159 | OGC2: =OGA2+1 -> 6160 | OGE2: =OGC2+1 -> 6161 | OGG2: =OGE2+1 -> 6162 | OGI2: =OGG2+1 -> 6163 | OGK2: =OGI2+1 -> 6164 | OGM2: =OGK2+1 -> 6165 | OGO2: =OGM2+1 -> 6166 | OGQ2: =OGO2+1 -> 6167 | OGS2: =OGQ2+1 -> 6168 | OGU2: =OGS2+1 -> 6169 | OGW2: =OGU2+1 -> 6170 | OGY2: =OGW2+1 -> 6171 | OHA2: =OGY2+1 -> 6172 | OHC2: =OHA2+1 -> 6173 | OHE2: =OHC2+1 -> 6174 | OHG2: =OHE2+1 -> 6175 | OHI2: =OHG2+1 -> 6176 | OHK2: =OHI2+1 -> 6177 | OHM2: =OHK2+1 -> 6178 | OHO2: =OHM2+1 -> 6179 | OHQ2: =OHO2+1 -> 6180 | OHS2: =OHQ2+1 -> 6181 | OHU2: =OHS2+1 -> 6182 | OHW2: =OHU2+1 -> 6183 | OHY2: =OHW2+1 -> 6184 | OIA2: =OHY2+1 -> 6185 | OIC2: =OIA2+1 -> 6186 | OIE2: =OIC2+1 -> 6187 | OIG2: =OIE2+1 -> 6188 | OII2: =OIG2+1 -> 6189 | OIK2: =OII2+1 -> 6190 | OIM2: =OIK2+1 -> 6191 | OIO2: =OIM2+1 -> 6192 | OIQ2: =OIO2+1 -> 6193 | OIS2: =OIQ2+1 -> 6194 | OIU2: =OIS2+1 -> 6195 | OIW2: =OIU2+1 -> 6196 | OIY2: =OIW2+1 -> 6197 | OJA2: =OIY2+1 -> 6198 | OJC2: =OJA2+1 -> 6199 | OJE2: =OJC2+1 -> 6200 | OJG2: =OJE2+1 -> 6201 | OJI2: =OJG2+1 -> 6202 | OJK2: =OJI2+1 -> 6203 | OJM2: =OJK2+1 -> 6204 | OJO2: =OJM2+1 -> 6205 | OJQ2: =OJO2+1 -> 6206 | OJS2: =OJQ2+1 -> 6207 | OJU2: =OJS2+1 -> 6208 | OJW2: =OJU2+1 -> 6209 | OJY2: =OJW2+1 -> 6210 | OKA2: =OJY2+1 -> 6211 | OKC2: =OKA2+1 -> 6212 | OKE2: =OKC2+1 -> 6213 | OKG2: =OKE2+1 -> 6214 | OKI2: =OKG2+1 -> 6215 | OKK2: =OKI2+1 -> 6216 | OKM2: =OKK2+1 -> 6217 | OKO2: =OKM2+1 -> 6218 | OKQ2: =OKO2+1 -> 6219 | OKS2: =OKQ2+1 -> 6220 | OKU2: =OKS2+1 -> 6221 | OKW2: =OKU2+1 -> 6222 | OKY2: =OKW2+1 -> 6223 | OLA2: =OKY2+1 -> 6224 | OLC2: =OLA2+1 -> 6225 | OLE2: =OLC2+1 -> 6226 | OLG2: =OLE2+1 -> 6227 | OLI2: =OLG2+1 -> 6228 | OLK2: =OLI2+1 -> 6229 | OLM2: =OLK2+1 -> 6230 | OLO2: =OLM2+1 -> 6231 | OLQ2: =OLO2+1 -> 6232 | OLS2: =OLQ2+1 -> 6233 | OLU2: =OLS2+1 -> 6234 | OLW2: =OLU2+1 -> 6235 | OLY2: =OLW2+1 -> 6236 | OMA2: =OLY2+1 -> 6237 | OMC2: =OMA2+1 -> 6238 | OME2: =OMC2+1 -> 6239 | OMG2: =OME2+1 -> 6240 | OMI2: =OMG2+1 -> 6241 | OMK2: =OMI2+1 -> 6242 | OMM2: =OMK2+1 -> 6243 | OMO2: =OMM2+1 -> 6244 | OMQ2: =OMO2+1 -> 6245 | OMS2: =OMQ2+1 -> 6246 | OMU2: =OMS2+1 -> 6247 | OMW2: =OMU2+1 -> 6248 | OMY2: =OMW2+1 -> 6249 | ONA2: =OMY2+1 -> 6250 | ONC2: =ONA2+1 -> 6251 | ONE2: =ONC2+1 -> 6252 | ONG2: =ONE2+1 -> 6253 | ONI2: =ONG2+1 -> 6254 | ONK2: =ONI2+1 -> 6255 | ONM2: =ONK2+1 -> 6256 | ONO2: =ONM2+1 -> 6257 | ONQ2: =ONO2+1 -> 6258 | ONS2: =ONQ2+1 -> 6259 | ONU2: =ONS2+1 -> 6260 | ONW2: =ONU2+1 -> 6261 | ONY2: =ONW2+1 -> 6262 | OOA2: =ONY2+1 -> 6263 | OOC2: =OOA2+1 -> 6264 | OOE2: =OOC2+1 -> 6265 | OOG2: =OOE2+1 -> 6266 | OOI2: =OOG2+1 -> 6267 | OOK2: =OOI2+1 -> 6268 | OOM2: =OOK2+1 -> 6269 | OOO2: =OOM2+1 -> 6270 | OOQ2: =OOO2+1 -> 6271 | OOS2: =OOQ2+1 -> 6272 | OOU2: =OOS2+1 -> 6273 | OOW2: =OOU2+1 -> 6274 | OOY2: =OOW2+1 -> 6275 | OPA2: =OOY2+1 -> 6276 | OPC2: =OPA2+1 -> 6277 | OPE2: =OPC2+1 -> 6278 | OPG2: =OPE2+1 -> 6279 | OPI2: =OPG2+1 -> 6280 | OPK2: =OPI2+1 -> 6281 | OPM2: =OPK2+1 -> 6282 | OPO2: =OPM2+1 -> 6283 | OPQ2: =OPO2+1 -> 6284 | OPS2: =OPQ2+1 -> 6285 | OPU2: =OPS2+1 -> 6286 | OPW2: =OPU2+1 -> 6287 | OPY2: =OPW2+1 -> 6288 | OQA2: =OPY2+1 -> 6289 | OQC2: =OQA2+1 -> 6290 | OQE2: =OQC2+1 -> 6291 | OQG2: =OQE2+1 -> 6292 | OQI2: =OQG2+1 -> 6293 | OQK2: =OQI2+1 -> 6294 | OQM2: =OQK2+1 -> 6295 | OQO2: =OQM2+1 -> 6296 | OQQ2: =OQO2+1 -> 6297 | OQS2: =OQQ2+1 -> 6298 | OQU2: =OQS2+1 -> 6299 | OQW2: =OQU2+1 -> 6300 | OQY2: =OQW2+1 -> 6301 | ORA2: =OQY2+1 -> 6302 | ORC2: =ORA2+1 -> 6303 | ORE2: =ORC2+1 -> 6304 | ORG2: =ORE2+1 -> 6305 | ORI2: =ORG2+1 -> 6306 | ORK2: =ORI2+1 -> 6307 | ORM2: =ORK2+1 -> 6308 | ORO2: =ORM2+1 -> 6309 | ORQ2: =ORO2+1 -> 6310 | ORS2: =ORQ2+1 -> 6311 | ORU2: =ORS2+1 -> 6312 | ORW2: =ORU2+1 -> 6313 | ORY2: =ORW2+1 -> 6314 | OSA2: =ORY2+1 -> 6315 | OSC2: =OSA2+1 -> 6316 | OSE2: =OSC2+1 -> 6317 | OSG2: =OSE2+1 -> 6318 | OSI2: =OSG2+1 -> 6319 | OSK2: =OSI2+1 -> 6320 | OSM2: =OSK2+1 -> 6321 | OSO2: =OSM2+1 -> 6322 | OSQ2: =OSO2+1 -> 6323 | OSS2: =OSQ2+1 -> 6324 | OSU2: =OSS2+1 -> 6325 | OSW2: =OSU2+1 -> 6326 | OSY2: =OSW2+1 -> 6327 | OTA2: =OSY2+1 -> 6328 | OTC2: =OTA2+1 -> 6329 | OTE2: =OTC2+1 -> 6330 | OTG2: =OTE2+1 -> 6331 | OTI2: =OTG2+1 -> 6332 | OTK2: =OTI2+1 -> 6333 | OTM2: =OTK2+1 -> 6334 | OTO2: =OTM2+1 -> 6335 | OTQ2: =OTO2+1 -> 6336 | OTS2: =OTQ2+1 -> 6337 | OTU2: =OTS2+1 -> 6338 | OTW2: =OTU2+1 -> 6339 | OTY2: =OTW2+1 -> 6340 | OUA2: =OTY2+1 -> 6341 | OUC2: =OUA2+1 -> 6342 | OUE2: =OUC2+1 -> 6343 | OUG2: =OUE2+1 -> 6344 | OUI2: =OUG2+1 -> 6345 | OUK2: =OUI2+1 -> 6346 | OUM2: =OUK2+1 -> 6347 | OUO2: =OUM2+1 -> 6348 | OUQ2: =OUO2+1 -> 6349 | OUS2: =OUQ2+1 -> 6350 | OUU2: =OUS2+1 -> 6351 | OUW2: =OUU2+1 -> 6352 | OUY2: =OUW2+1 -> 6353 | OVA2: =OUY2+1 -> 6354 | OVC2: =OVA2+1 -> 6355 | OVE2: =OVC2+1 -> 6356 | OVG2: =OVE2+1 -> 6357 | OVI2: =OVG2+1 -> 6358 | OVK2: =OVI2+1 -> 6359 | OVM2: =OVK2+1 -> 6360 | OVO2: =OVM2+1 -> 6361 | OVQ2: =OVO2+1 -> 6362 | OVS2: =OVQ2+1 -> 6363 | OVU2: =OVS2+1 -> 6364 | OVW2: =OVU2+1 -> 6365 | OVY2: =OVW2+1 -> 6366 | OWA2: =OVY2+1 -> 6367 | OWC2: =OWA2+1 -> 6368 | OWE2: =OWC2+1 -> 6369 | OWG2: =OWE2+1 -> 6370 | OWI2: =OWG2+1 -> 6371 | OWK2: =OWI2+1 -> 6372 | OWM2: =OWK2+1 -> 6373 | OWO2: =OWM2+1 -> 6374 | OWQ2: =OWO2+1 -> 6375 | OWS2: =OWQ2+1 -> 6376 | OWU2: =OWS2+1 -> 6377 | OWW2: =OWU2+1 -> 6378 | OWY2: =OWW2+1 -> 6379 | OXA2: =OWY2+1 -> 6380 | OXC2: =OXA2+1 -> 6381 | OXE2: =OXC2+1 -> 6382 | OXG2: =OXE2+1 -> 6383 | OXI2: =OXG2+1 -> 6384 | OXK2: =OXI2+1 -> 6385 | OXM2: =OXK2+1 -> 6386 | OXO2: =OXM2+1 -> 6387 | OXQ2: =OXO2+1 -> 6388 | OXS2: =OXQ2+1 -> 6389 | OXU2: =OXS2+1 -> 6390 | OXW2: =OXU2+1 -> 6391 | OXY2: =OXW2+1 -> 6392 | OYA2: =OXY2+1 -> 6393 | OYC2: =OYA2+1 -> 6394 | OYE2: =OYC2+1 -> 6395 | OYG2: =OYE2+1 -> 6396 | OYI2: =OYG2+1 -> 6397 | OYK2: =OYI2+1 -> 6398 | OYM2: =OYK2+1 -> 6399 | OYO2: =OYM2+1 -> 6400 | OYQ2: =OYO2+1 -> 6401 | OYS2: =OYQ2+1 -> 6402 | OYU2: =OYS2+1 -> 6403 | OYW2: =OYU2+1 -> 6404 | OYY2: =OYW2+1 -> 6405 | OZA2: =OYY2+1 -> 6406 | OZC2: =OZA2+1 -> 6407 | OZE2: =OZC2+1 -> 6408 | OZG2: =OZE2+1 -> 6409 | OZI2: =OZG2+1 -> 6410 | OZK2: =OZI2+1 -> 6411 | OZM2: =OZK2+1 -> 6412 | OZO2: =OZM2+1 -> 6413 | OZQ2: =OZO2+1 -> 6414 | OZS2: =OZQ2+1 -> 6415 | OZU2: =OZS2+1 -> 6416 | OZW2: =OZU2+1 -> 6417 | OZY2: =OZW2+1 -> 6418 | PAA2: =OZY2+1 -> 6419 | PAC2: =PAA2+1 -> 6420 | PAE2: =PAC2+1 -> 6421 | PAG2: =PAE2+1 -> 6422 | PAI2: =PAG2+1 -> 6423 | PAK2: =PAI2+1 -> 6424 | PAM2: =PAK2+1 -> 6425 | PAO2: =PAM2+1 -> 6426 | PAQ2: =PAO2+1 -> 6427 | PAS2: =PAQ2+1 -> 6428 | PAU2: =PAS2+1 -> 6429 | PAW2: =PAU2+1 -> 6430 | PAY2: =PAW2+1 -> 6431 | PBA2: =PAY2+1 -> 6432 | PBC2: =PBA2+1 -> 6433 | PBE2: =PBC2+1 -> 6434 | PBG2: =PBE2+1 -> 6435 | PBI2: =PBG2+1 -> 6436 | PBK2: =PBI2+1 -> 6437 | PBM2: =PBK2+1 -> 6438 | PBO2: =PBM2+1 -> 6439 | PBQ2: =PBO2+1 -> 6440 | PBS2: =PBQ2+1 -> 6441 | PBU2: =PBS2+1 -> 6442 | PBW2: =PBU2+1 -> 6443 | PBY2: =PBW2+1 -> 6444 | PCA2: =PBY2+1 -> 6445 | PCC2: =PCA2+1 -> 6446 | PCE2: =PCC2+1 -> 6447 | PCG2: =PCE2+1 -> 6448 | PCI2: =PCG2+1 -> 6449 | PCK2: =PCI2+1 -> 6450 | PCM2: =PCK2+1 -> 6451 | PCO2: =PCM2+1 -> 6452 | PCQ2: =PCO2+1 -> 6453 | PCS2: =PCQ2+1 -> 6454 | PCU2: =PCS2+1 -> 6455 | PCW2: =PCU2+1 -> 6456 | PCY2: =PCW2+1 -> 6457 | PDA2: =PCY2+1 -> 6458 | PDC2: =PDA2+1 -> 6459 | PDE2: =PDC2+1 -> 6460 | PDG2: =PDE2+1 -> 6461 | PDI2: =PDG2+1 -> 6462 | PDK2: =PDI2+1 -> 6463 | PDM2: =PDK2+1 -> 6464 | PDO2: =PDM2+1 -> 6465 | PDQ2: =PDO2+1 -> 6466 | PDS2: =PDQ2+1 -> 6467 | PDU2: =PDS2+1 -> 6468 | PDW2: =PDU2+1 -> 6469 | PDY2: =PDW2+1 -> 6470 | PEA2: =PDY2+1 -> 6471 | PEC2: =PEA2+1 -> 6472 | PEE2: =PEC2+1 -> 6473 | PEG2: =PEE2+1 -> 6474 | PEI2: =PEG2+1 -> 6475 | PEK2: =PEI2+1 -> 6476 | PEM2: =PEK2+1 -> 6477 | PEO2: =PEM2+1 -> 6478 | PEQ2: =PEO2+1 -> 6479 | PES2: =PEQ2+1 -> 6480 | PEU2: =PES2+1 -> 6481 | PEW2: =PEU2+1 -> 6482 | PEY2: =PEW2+1 -> 6483 | PFA2: =PEY2+1 -> 6484 | PFC2: =PFA2+1 -> 6485 | PFE2: =PFC2+1 -> 6486 | PFG2: =PFE2+1 -> 6487 | PFI2: =PFG2+1 -> 6488 | PFK2: =PFI2+1 -> 6489 | PFM2: =PFK2+1 -> 6490 | PFO2: =PFM2+1 -> 6491 | PFQ2: =PFO2+1 -> 6492 | PFS2: =PFQ2+1 -> 6493 | PFU2: =PFS2+1 -> 6494 | PFW2: =PFU2+1 -> 6495 | PFY2: =PFW2+1 -> 6496 | PGA2: =PFY2+1 -> 6497 | PGC2: =PGA2+1 -> 6498 | PGE2: =PGC2+1 -> 6499 | PGG2: =PGE2+1 -> 6500 | PGI2: =PGG2+1 -> 6501 | PGK2: =PGI2+1 -> 6502 | PGM2: =PGK2+1 -> 6503 | PGO2: =PGM2+1 -> 6504 | PGQ2: =PGO2+1 -> 6505 | PGS2: =PGQ2+1 -> 6506 | PGU2: =PGS2+1 -> 6507 | PGW2: =PGU2+1 -> 6508 | PGY2: =PGW2+1 -> 6509 | PHA2: =PGY2+1 -> 6510 | PHC2: =PHA2+1 -> 6511 | PHE2: =PHC2+1 -> 6512 | PHG2: =PHE2+1 -> 6513 | PHI2: =PHG2+1 -> 6514 | PHK2: =PHI2+1 -> 6515 | PHM2: =PHK2+1 -> 6516 | PHO2: =PHM2+1 -> 6517 | PHQ2: =PHO2+1 -> 6518 | PHS2: =PHQ2+1 -> 6519 | PHU2: =PHS2+1 -> 6520 | PHW2: =PHU2+1 -> 6521 | PHY2: =PHW2+1 -> 6522 | PIA2: =PHY2+1 -> 6523 | PIC2: =PIA2+1 -> 6524 | PIE2: =PIC2+1 -> 6525 | PIG2: =PIE2+1 -> 6526 | PII2: =PIG2+1 -> 6527 | PIK2: =PII2+1 -> 6528 | PIM2: =PIK2+1 -> 6529 | PIO2: =PIM2+1 -> 6530 | PIQ2: =PIO2+1 -> 6531 | PIS2: =PIQ2+1 -> 6532 | PIU2: =PIS2+1 -> 6533 | PIW2: =PIU2+1 -> 6534 | PIY2: =PIW2+1 -> 6535 | PJA2: =PIY2+1 -> 6536 | PJC2: =PJA2+1 -> 6537 | PJE2: =PJC2+1 -> 6538 | PJG2: =PJE2+1 -> 6539 | PJI2: =PJG2+1 -> 6540 | PJK2: =PJI2+1 -> 6541 | PJM2: =PJK2+1 -> 6542 | PJO2: =PJM2+1 -> 6543 | PJQ2: =PJO2+1 -> 6544 | PJS2: =PJQ2+1 -> 6545 | PJU2: =PJS2+1 -> 6546 | PJW2: =PJU2+1 -> 6547 | PJY2: =PJW2+1 -> 6548 | PKA2: =PJY2+1 -> 6549 | PKC2: =PKA2+1 -> 6550 | PKE2: =PKC2+1 -> 6551 | PKG2: =PKE2+1 -> 6552 | PKI2: =PKG2+1 -> 6553 | PKK2: =PKI2+1 -> 6554 | PKM2: =PKK2+1 -> 6555 | PKO2: =PKM2+1 -> 6556 | PKQ2: =PKO2+1 -> 6557 | PKS2: =PKQ2+1 -> 6558 | PKU2: =PKS2+1 -> 6559 | PKW2: =PKU2+1 -> 6560 | PKY2: =PKW2+1 -> 6561 | PLA2: =PKY2+1 -> 6562 | PLC2: =PLA2+1 -> 6563 | PLE2: =PLC2+1 -> 6564 | PLG2: =PLE2+1 -> 6565 | PLI2: =PLG2+1 -> 6566 | PLK2: =PLI2+1 -> 6567 | PLM2: =PLK2+1 -> 6568 | PLO2: =PLM2+1 -> 6569 | PLQ2: =PLO2+1 -> 6570 | PLS2: =PLQ2+1 -> 6571 | PLU2: =PLS2+1 -> 6572 | PLW2: =PLU2+1 -> 6573 | PLY2: =PLW2+1 -> 6574 | PMA2: =PLY2+1 -> 6575 | PMC2: =PMA2+1 -> 6576 | PME2: =PMC2+1 -> 6577 | PMG2: =PME2+1 -> 6578 | PMI2: =PMG2+1 -> 6579 | PMK2: =PMI2+1 -> 6580 | PMM2: =PMK2+1 -> 6581 | PMO2: =PMM2+1 -> 6582 | PMQ2: =PMO2+1 -> 6583 | PMS2: =PMQ2+1 -> 6584 | PMU2: =PMS2+1 -> 6585 | PMW2: =PMU2+1 -> 6586 | PMY2: =PMW2+1 -> 6587 | PNA2: =PMY2+1 -> 6588 | PNC2: =PNA2+1 -> 6589 | PNE2: =PNC2+1 -> 6590 | PNG2: =PNE2+1 -> 6591 | PNI2: =PNG2+1 -> 6592 | PNK2: =PNI2+1 -> 6593 | PNM2: =PNK2+1 -> 6594 | PNO2: =PNM2+1 -> 6595 | PNQ2: =PNO2+1 -> 6596 | PNS2: =PNQ2+1 -> 6597 | PNU2: =PNS2+1 -> 6598 | PNW2: =PNU2+1 -> 6599 | PNY2: =PNW2+1 -> 6600 | POA2: =PNY2+1 -> 6601 | POC2: =POA2+1 -> 6602 | POE2: =POC2+1 -> 6603 | POG2: =POE2+1 -> 6604 | POI2: =POG2+1 -> 6605 | POK2: =POI2+1 -> 6606 | POM2: =POK2+1 -> 6607 | POO2: =POM2+1 -> 6608 | POQ2: =POO2+1 -> 6609 | POS2: =POQ2+1 -> 6610 | POU2: =POS2+1 -> 6611 | POW2: =POU2+1 -> 6612 | POY2: =POW2+1 -> 6613 | PPA2: =POY2+1 -> 6614 | PPC2: =PPA2+1 -> 6615 | PPE2: =PPC2+1 -> 6616 | PPG2: =PPE2+1 -> 6617 | PPI2: =PPG2+1 -> 6618 | PPK2: =PPI2+1 -> 6619 | PPM2: =PPK2+1 -> 6620 | PPO2: =PPM2+1 -> 6621 | PPQ2: =PPO2+1 -> 6622 | PPS2: =PPQ2+1 -> 6623 | PPU2: =PPS2+1 -> 6624 | PPW2: =PPU2+1 -> 6625 | PPY2: =PPW2+1 -> 6626 | PQA2: =PPY2+1 -> 6627 | PQC2: =PQA2+1 -> 6628 | PQE2: =PQC2+1 -> 6629 | PQG2: =PQE2+1 -> 6630 | PQI2: =PQG2+1 -> 6631 | PQK2: =PQI2+1 -> 6632 | PQM2: =PQK2+1 -> 6633 | PQO2: =PQM2+1 -> 6634 | PQQ2: =PQO2+1 -> 6635 | PQS2: =PQQ2+1 -> 6636 | PQU2: =PQS2+1 -> 6637 | PQW2: =PQU2+1 -> 6638 | PQY2: =PQW2+1 -> 6639 | PRA2: =PQY2+1 -> 6640 | PRC2: =PRA2+1 -> 6641 | PRE2: =PRC2+1 -> 6642 | PRG2: =PRE2+1 -> 6643 | PRI2: =PRG2+1 -> 6644 | PRK2: =PRI2+1 -> 6645 | PRM2: =PRK2+1 -> 6646 | PRO2: =PRM2+1 -> 6647 | PRQ2: =PRO2+1 -> 6648 | PRS2: =PRQ2+1 -> 6649 | PRU2: =PRS2+1 -> 6650 | PRW2: =PRU2+1 -> 6651 | PRY2: =PRW2+1 -> 6652 | PSA2: =PRY2+1 -> 6653 | PSC2: =PSA2+1 -> 6654 | PSE2: =PSC2+1 -> 6655 | PSG2: =PSE2+1 -> 6656 | PSI2: =PSG2+1 -> 6657 | PSK2: =PSI2+1 -> 6658 | PSM2: =PSK2+1 -> 6659 | PSO2: =PSM2+1 -> 6660 | PSQ2: =PSO2+1 -> 6661 | PSS2: =PSQ2+1 -> 6662 | PSU2: =PSS2+1 -> 6663 | PSW2: =PSU2+1 -> 6664 | PSY2: =PSW2+1 -> 6665 | PTA2: =PSY2+1 -> 6666 | PTC2: =PTA2+1 -> 6667 | PTE2: =PTC2+1 -> 6668 | PTG2: =PTE2+1 -> 6669 | PTI2: =PTG2+1 -> 6670 | PTK2: =PTI2+1 -> 6671 | PTM2: =PTK2+1 -> 6672 | PTO2: =PTM2+1 -> 6673 | PTQ2: =PTO2+1 -> 6674 | PTS2: =PTQ2+1 -> 6675 | PTU2: =PTS2+1 -> 6676 | PTW2: =PTU2+1 -> 6677 | PTY2: =PTW2+1 -> 6678 | PUA2: =PTY2+1 -> 6679 | PUC2: =PUA2+1 -> 6680 | PUE2: =PUC2+1 -> 6681 | PUG2: =PUE2+1 -> 6682 | PUI2: =PUG2+1 -> 6683 | PUK2: =PUI2+1 -> 6684 | PUM2: =PUK2+1 -> 6685 | PUO2: =PUM2+1 -> 6686 | PUQ2: =PUO2+1 -> 6687 | PUS2: =PUQ2+1 -> 6688 | PUU2: =PUS2+1 -> 6689 | PUW2: =PUU2+1 -> 6690 | PUY2: =PUW2+1 -> 6691 | PVA2: =PUY2+1 -> 6692 | PVC2: =PVA2+1 -> 6693 | PVE2: =PVC2+1 -> 6694 | PVG2: =PVE2+1 -> 6695 | PVI2: =PVG2+1 -> 6696 | PVK2: =PVI2+1 -> 6697 | PVM2: =PVK2+1 -> 6698 | PVO2: =PVM2+1 -> 6699 | PVQ2: =PVO2+1 -> 6700 | PVS2: =PVQ2+1 -> 6701 | PVU2: =PVS2+1 -> 6702 | PVW2: =PVU2+1 -> 6703 | PVY2: =PVW2+1 -> 6704 | PWA2: =PVY2+1 -> 6705 | PWC2: =PWA2+1 -> 6706 | PWE2: =PWC2+1 -> 6707 | PWG2: =PWE2+1 -> 6708 | PWI2: =PWG2+1 -> 6709 | PWK2: =PWI2+1 -> 6710 | PWM2: =PWK2+1 -> 6711 | PWO2: =PWM2+1 -> 6712 | PWQ2: =PWO2+1 -> 6713 | PWS2: =PWQ2+1 -> 6714 | PWU2: =PWS2+1 -> 6715 | PWW2: =PWU2+1 -> 6716 | PWY2: =PWW2+1 -> 6717 | PXA2: =PWY2+1 -> 6718 | PXC2: =PXA2+1 -> 6719 | PXE2: =PXC2+1 -> 6720 | PXG2: =PXE2+1 -> 6721 | PXI2: =PXG2+1 -> 6722 | PXK2: =PXI2+1 -> 6723 | PXM2: =PXK2+1 -> 6724 | PXO2: =PXM2+1 -> 6725 | PXQ2: =PXO2+1 -> 6726 | PXS2: =PXQ2+1 -> 6727 | PXU2: =PXS2+1 -> 6728 | PXW2: =PXU2+1 -> 6729 | PXY2: =PXW2+1 -> 6730 | PYA2: =PXY2+1 -> 6731 | PYC2: =PYA2+1 -> 6732 | PYE2: =PYC2+1 -> 6733 | PYG2: =PYE2+1 -> 6734 | PYI2: =PYG2+1 -> 6735 | PYK2: =PYI2+1 -> 6736 | PYM2: =PYK2+1 -> 6737 | PYO2: =PYM2+1 -> 6738 | PYQ2: =PYO2+1 -> 6739 | PYS2: =PYQ2+1 -> 6740 | PYU2: =PYS2+1 -> 6741 | PYW2: =PYU2+1 -> 6742 | PYY2: =PYW2+1 -> 6743 | PZA2: =PYY2+1 -> 6744 | PZC2: =PZA2+1 -> 6745 | PZE2: =PZC2+1 -> 6746 | PZG2: =PZE2+1 -> 6747 | PZI2: =PZG2+1 -> 6748 | PZK2: =PZI2+1 -> 6749 | PZM2: =PZK2+1 -> 6750 | PZO2: =PZM2+1 -> 6751 | PZQ2: =PZO2+1 -> 6752 | PZS2: =PZQ2+1 -> 6753 | PZU2: =PZS2+1 -> 6754 | PZW2: =PZU2+1 -> 6755 | PZY2: =PZW2+1 -> 6756 | QAA2: =PZY2+1 -> 6757 | QAC2: =QAA2+1 -> 6758 | QAE2: =QAC2+1 -> 6759 | QAG2: =QAE2+1 -> 6760 | QAI2: =QAG2+1 -> 6761 | QAK2: =QAI2+1 -> 6762 | QAM2: =QAK2+1 -> 6763 | QAO2: =QAM2+1 -> 6764 | QAQ2: =QAO2+1 -> 6765 | QAS2: =QAQ2+1 -> 6766 | QAU2: =QAS2+1 -> 6767 | QAW2: =QAU2+1 -> 6768 | QAY2: =QAW2+1 -> 6769 | QBA2: =QAY2+1 -> 6770 | QBC2: =QBA2+1 -> 6771 | QBE2: =QBC2+1 -> 6772 | QBG2: =QBE2+1 -> 6773 | QBI2: =QBG2+1 -> 6774 | QBK2: =QBI2+1 -> 6775 | QBM2: =QBK2+1 -> 6776 | QBO2: =QBM2+1 -> 6777 | QBQ2: =QBO2+1 -> 6778 | QBS2: =QBQ2+1 -> 6779 | QBU2: =QBS2+1 -> 6780 | QBW2: =QBU2+1 -> 6781 | QBY2: =QBW2+1 -> 6782 | QCA2: =QBY2+1 -> 6783 | QCC2: =QCA2+1 -> 6784 | QCE2: =QCC2+1 -> 6785 | QCG2: =QCE2+1 -> 6786 | QCI2: =QCG2+1 -> 6787 | QCK2: =QCI2+1 -> 6788 | QCM2: =QCK2+1 -> 6789 | QCO2: =QCM2+1 -> 6790 | QCQ2: =QCO2+1 -> 6791 | QCS2: =QCQ2+1 -> 6792 | QCU2: =QCS2+1 -> 6793 | QCW2: =QCU2+1 -> 6794 | QCY2: =QCW2+1 -> 6795 | QDA2: =QCY2+1 -> 6796 | QDC2: =QDA2+1 -> 6797 | QDE2: =QDC2+1 -> 6798 | QDG2: =QDE2+1 -> 6799 | QDI2: =QDG2+1 -> 6800 | QDK2: =QDI2+1 -> 6801 | QDM2: =QDK2+1 -> 6802 | QDO2: =QDM2+1 -> 6803 | QDQ2: =QDO2+1 -> 6804 | QDS2: =QDQ2+1 -> 6805 | QDU2: =QDS2+1 -> 6806 | QDW2: =QDU2+1 -> 6807 | QDY2: =QDW2+1 -> 6808 | QEA2: =QDY2+1 -> 6809 | QEC2: =QEA2+1 -> 6810 | QEE2: =QEC2+1 -> 6811 | QEG2: =QEE2+1 -> 6812 | QEI2: =QEG2+1 -> 6813 | QEK2: =QEI2+1 -> 6814 | QEM2: =QEK2+1 -> 6815 | QEO2: =QEM2+1 -> 6816 | QEQ2: =QEO2+1 -> 6817 | QES2: =QEQ2+1 -> 6818 | QEU2: =QES2+1 -> 6819 | QEW2: =QEU2+1 -> 6820 | QEY2: =QEW2+1 -> 6821 | QFA2: =QEY2+1 -> 6822 | QFC2: =QFA2+1 -> 6823 | QFE2: =QFC2+1 -> 6824 | QFG2: =QFE2+1 -> 6825 | QFI2: =QFG2+1 -> 6826 | QFK2: =QFI2+1 -> 6827 | QFM2: =QFK2+1 -> 6828 | QFO2: =QFM2+1 -> 6829 | QFQ2: =QFO2+1 -> 6830 | QFS2: =QFQ2+1 -> 6831 | QFU2: =QFS2+1 -> 6832 | QFW2: =QFU2+1 -> 6833 | QFY2: =QFW2+1 -> 6834 | QGA2: =QFY2+1 -> 6835 | QGC2: =QGA2+1 -> 6836 | QGE2: =QGC2+1 -> 6837 | QGG2: =QGE2+1 -> 6838 | QGI2: =QGG2+1 -> 6839 | QGK2: =QGI2+1 -> 6840 | QGM2: =QGK2+1 -> 6841 | QGO2: =QGM2+1 -> 6842 | QGQ2: =QGO2+1 -> 6843 | QGS2: =QGQ2+1 -> 6844 | QGU2: =QGS2+1 -> 6845 | QGW2: =QGU2+1 -> 6846 | QGY2: =QGW2+1 -> 6847 | QHA2: =QGY2+1 -> 6848 | QHC2: =QHA2+1 -> 6849 | QHE2: =QHC2+1 -> 6850 | QHG2: =QHE2+1 -> 6851 | QHI2: =QHG2+1 -> 6852 | QHK2: =QHI2+1 -> 6853 | QHM2: =QHK2+1 -> 6854 | QHO2: =QHM2+1 -> 6855 | QHQ2: =QHO2+1 -> 6856 | QHS2: =QHQ2+1 -> 6857 | QHU2: =QHS2+1 -> 6858 | QHW2: =QHU2+1 -> 6859 | QHY2: =QHW2+1 -> 6860 | QIA2: =QHY2+1 -> 6861 | QIC2: =QIA2+1 -> 6862 | QIE2: =QIC2+1 -> 6863 | QIG2: =QIE2+1 -> 6864 | QII2: =QIG2+1 -> 6865 | QIK2: =QII2+1 -> 6866 | QIM2: =QIK2+1 -> 6867 | QIO2: =QIM2+1 -> 6868 | QIQ2: =QIO2+1 -> 6869 | QIS2: =QIQ2+1 -> 6870 | QIU2: =QIS2+1 -> 6871 | QIW2: =QIU2+1 -> 6872 | QIY2: =QIW2+1 -> 6873 | QJA2: =QIY2+1 -> 6874 | QJC2: =QJA2+1 -> 6875 | QJE2: =QJC2+1 -> 6876 | QJG2: =QJE2+1 -> 6877 | QJI2: =QJG2+1 -> 6878 | QJK2: =QJI2+1 -> 6879 | QJM2: =QJK2+1 -> 6880 | QJO2: =QJM2+1 -> 6881 | QJQ2: =QJO2+1 -> 6882 | QJS2: =QJQ2+1 -> 6883 | QJU2: =QJS2+1 -> 6884 | QJW2: =QJU2+1 -> 6885 | QJY2: =QJW2+1 -> 6886 | QKA2: =QJY2+1 -> 6887 | QKC2: =QKA2+1 -> 6888 | QKE2: =QKC2+1 -> 6889 | QKG2: =QKE2+1 -> 6890 | QKI2: =QKG2+1 -> 6891 | QKK2: =QKI2+1 -> 6892 | QKM2: =QKK2+1 -> 6893 | QKO2: =QKM2+1 -> 6894 | QKQ2: =QKO2+1 -> 6895 | QKS2: =QKQ2+1 -> 6896 | QKU2: =QKS2+1 -> 6897 | QKW2: =QKU2+1 -> 6898 | QKY2: =QKW2+1 -> 6899 | QLA2: =QKY2+1 -> 6900 | QLC2: =QLA2+1 -> 6901 | QLE2: =QLC2+1 -> 6902 | QLG2: =QLE2+1 -> 6903 | QLI2: =QLG2+1 -> 6904 | QLK2: =QLI2+1 -> 6905 | QLM2: =QLK2+1 -> 6906 | QLO2: =QLM2+1 -> 6907 | QLQ2: =QLO2+1 -> 6908 | QLS2: =QLQ2+1 -> 6909 | QLU2: =QLS2+1 -> 6910 | QLW2: =QLU2+1 -> 6911 | QLY2: =QLW2+1 -> 6912 | QMA2: =QLY2+1 -> 6913 | QMC2: =QMA2+1 -> 6914 | QME2: =QMC2+1 -> 6915 | QMG2: =QME2+1 -> 6916 | QMI2: =QMG2+1 -> 6917 | QMK2: =QMI2+1 -> 6918 | QMM2: =QMK2+1 -> 6919 | QMO2: =QMM2+1 -> 6920 | QMQ2: =QMO2+1 -> 6921 | QMS2: =QMQ2+1 -> 6922 | QMU2: =QMS2+1 -> 6923 | QMW2: =QMU2+1 -> 6924 | QMY2: =QMW2+1 -> 6925 | QNA2: =QMY2+1 -> 6926 | QNC2: =QNA2+1 -> 6927 | QNE2: =QNC2+1 -> 6928 | QNG2: =QNE2+1 -> 6929 | QNI2: =QNG2+1 -> 6930 | QNK2: =QNI2+1 -> 6931 | QNM2: =QNK2+1 -> 6932 | QNO2: =QNM2+1 -> 6933 | QNQ2: =QNO2+1 -> 6934 | QNS2: =QNQ2+1 -> 6935 | QNU2: =QNS2+1 -> 6936 | QNW2: =QNU2+1 -> 6937 | QNY2: =QNW2+1 -> 6938 | QOA2: =QNY2+1 -> 6939 | QOC2: =QOA2+1 -> 6940 | QOE2: =QOC2+1 -> 6941 | QOG2: =QOE2+1 -> 6942 | QOI2: =QOG2+1 -> 6943 | QOK2: =QOI2+1 -> 6944 | QOM2: =QOK2+1 -> 6945 | QOO2: =QOM2+1 -> 6946 | QOQ2: =QOO2+1 -> 6947 | QOS2: =QOQ2+1 -> 6948 | QOU2: =QOS2+1 -> 6949 | QOW2: =QOU2+1 -> 6950 | QOY2: =QOW2+1 -> 6951 | QPA2: =QOY2+1 -> 6952 | QPC2: =QPA2+1 -> 6953 | QPE2: =QPC2+1 -> 6954 | QPG2: =QPE2+1 -> 6955 | QPI2: =QPG2+1 -> 6956 | QPK2: =QPI2+1 -> 6957 | QPM2: =QPK2+1 -> 6958 | QPO2: =QPM2+1 -> 6959 | QPQ2: =QPO2+1 -> 6960 | QPS2: =QPQ2+1 -> 6961 | QPU2: =QPS2+1 -> 6962 | QPW2: =QPU2+1 -> 6963 | QPY2: =QPW2+1 -> 6964 | QQA2: =QPY2+1 -> 6965 | QQC2: =QQA2+1 -> 6966 | QQE2: =QQC2+1 -> 6967 | QQG2: =QQE2+1 -> 6968 | QQI2: =QQG2+1 -> 6969 | QQK2: =QQI2+1 -> 6970 | QQM2: =QQK2+1 -> 6971 | QQO2: =QQM2+1 -> 6972 | QQQ2: =QQO2+1 -> 6973 | QQS2: =QQQ2+1 -> 6974 | QQU2: =QQS2+1 -> 6975 | QQW2: =QQU2+1 -> 6976 | QQY2: =QQW2+1 -> 6977 | QRA2: =QQY2+1 -> 6978 | QRC2: =QRA2+1 -> 6979 | QRE2: =QRC2+1 -> 6980 | QRG2: =QRE2+1 -> 6981 | QRI2: =QRG2+1 -> 6982 | QRK2: =QRI2+1 -> 6983 | QRM2: =QRK2+1 -> 6984 | QRO2: =QRM2+1 -> 6985 | QRQ2: =QRO2+1 -> 6986 | QRS2: =QRQ2+1 -> 6987 | QRU2: =QRS2+1 -> 6988 | QRW2: =QRU2+1 -> 6989 | QRY2: =QRW2+1 -> 6990 | QSA2: =QRY2+1 -> 6991 | QSC2: =QSA2+1 -> 6992 | QSE2: =QSC2+1 -> 6993 | QSG2: =QSE2+1 -> 6994 | QSI2: =QSG2+1 -> 6995 | QSK2: =QSI2+1 -> 6996 | QSM2: =QSK2+1 -> 6997 | QSO2: =QSM2+1 -> 6998 | QSQ2: =QSO2+1 -> 6999 | QSS2: =QSQ2+1 -> 7000 | QSU2: =QSS2+1 -> 7001 | QSW2: =QSU2+1 -> 7002 | QSY2: =QSW2+1 -> 7003 | QTA2: =QSY2+1 -> 7004 | QTC2: =QTA2+1 -> 7005 | QTE2: =QTC2+1 -> 7006 | QTG2: =QTE2+1 -> 7007 | QTI2: =QTG2+1 -> 7008 | QTK2: =QTI2+1 -> 7009 | QTM2: =QTK2+1 -> 7010 | QTO2: =QTM2+1 -> 7011 | QTQ2: =QTO2+1 -> 7012 | QTS2: =QTQ2+1 -> 7013 | QTU2: =QTS2+1 -> 7014 | QTW2: =QTU2+1 -> 7015 | QTY2: =QTW2+1 -> 7016 | QUA2: =QTY2+1 -> 7017 | QUC2: =QUA2+1 -> 7018 | QUE2: =QUC2+1 -> 7019 | QUG2: =QUE2+1 -> 7020 | QUI2: =QUG2+1 -> 7021 | QUK2: =QUI2+1 -> 7022 | QUM2: =QUK2+1 -> 7023 | QUO2: =QUM2+1 -> 7024 | QUQ2: =QUO2+1 -> 7025 | QUS2: =QUQ2+1 -> 7026 | QUU2: =QUS2+1 -> 7027 | QUW2: =QUU2+1 -> 7028 | QUY2: =QUW2+1 -> 7029 | QVA2: =QUY2+1 -> 7030 | QVC2: =QVA2+1 -> 7031 | QVE2: =QVC2+1 -> 7032 | QVG2: =QVE2+1 -> 7033 | QVI2: =QVG2+1 -> 7034 | QVK2: =QVI2+1 -> 7035 | QVM2: =QVK2+1 -> 7036 | QVO2: =QVM2+1 -> 7037 | QVQ2: =QVO2+1 -> 7038 | QVS2: =QVQ2+1 -> 7039 | QVU2: =QVS2+1 -> 7040 | QVW2: =QVU2+1 -> 7041 | QVY2: =QVW2+1 -> 7042 | QWA2: =QVY2+1 -> 7043 | QWC2: =QWA2+1 -> 7044 | QWE2: =QWC2+1 -> 7045 | QWG2: =QWE2+1 -> 7046 | QWI2: =QWG2+1 -> 7047 | QWK2: =QWI2+1 -> 7048 | QWM2: =QWK2+1 -> 7049 | QWO2: =QWM2+1 -> 7050 | QWQ2: =QWO2+1 -> 7051 | QWS2: =QWQ2+1 -> 7052 | QWU2: =QWS2+1 -> 7053 | QWW2: =QWU2+1 -> 7054 | QWY2: =QWW2+1 -> 7055 | QXA2: =QWY2+1 -> 7056 | QXC2: =QXA2+1 -> 7057 | QXE2: =QXC2+1 -> 7058 | QXG2: =QXE2+1 -> 7059 | QXI2: =QXG2+1 -> 7060 | QXK2: =QXI2+1 -> 7061 | QXM2: =QXK2+1 -> 7062 | QXO2: =QXM2+1 -> 7063 | QXQ2: =QXO2+1 -> 7064 | QXS2: =QXQ2+1 -> 7065 | QXU2: =QXS2+1 -> 7066 | QXW2: =QXU2+1 -> 7067 | QXY2: =QXW2+1 -> 7068 | QYA2: =QXY2+1 -> 7069 | QYC2: =QYA2+1 -> 7070 | QYE2: =QYC2+1 -> 7071 | QYG2: =QYE2+1 -> 7072 | QYI2: =QYG2+1 -> 7073 | QYK2: =QYI2+1 -> 7074 | QYM2: =QYK2+1 -> 7075 | QYO2: =QYM2+1 -> 7076 | QYQ2: =QYO2+1 -> 7077 | QYS2: =QYQ2+1 -> 7078 | QYU2: =QYS2+1 -> 7079 | QYW2: =QYU2+1 -> 7080 | QYY2: =QYW2+1 -> 7081 | QZA2: =QYY2+1 -> 7082 | QZC2: =QZA2+1 -> 7083 | QZE2: =QZC2+1 -> 7084 | QZG2: =QZE2+1 -> 7085 | QZI2: =QZG2+1 -> 7086 | QZK2: =QZI2+1 -> 7087 | QZM2: =QZK2+1 -> 7088 | QZO2: =QZM2+1 -> 7089 | QZQ2: =QZO2+1 -> 7090 | QZS2: =QZQ2+1 -> 7091 | QZU2: =QZS2+1 -> 7092 | QZW2: =QZU2+1 -> 7093 | QZY2: =QZW2+1 -> 7094 | RAA2: =QZY2+1 -> 7095 | RAC2: =RAA2+1 -> 7096 | RAE2: =RAC2+1 -> 7097 | RAG2: =RAE2+1 -> 7098 | RAI2: =RAG2+1 -> 7099 | RAK2: =RAI2+1 -> 7100 | RAM2: =RAK2+1 -> 7101 | RAO2: =RAM2+1 -> 7102 | RAQ2: =RAO2+1 -> 7103 | RAS2: =RAQ2+1 -> 7104 | RAU2: =RAS2+1 -> 7105 | RAW2: =RAU2+1 -> 7106 | RAY2: =RAW2+1 -> 7107 | RBA2: =RAY2+1 -> 7108 | RBC2: =RBA2+1 -> 7109 | RBE2: =RBC2+1 -> 7110 | RBG2: =RBE2+1 -> 7111 | RBI2: =RBG2+1 -> 7112 | RBK2: =RBI2+1 -> 7113 | RBM2: =RBK2+1 -> 7114 | RBO2: =RBM2+1 -> 7115 | RBQ2: =RBO2+1 -> 7116 | RBS2: =RBQ2+1 -> 7117 | RBU2: =RBS2+1 -> 7118 | RBW2: =RBU2+1 -> 7119 | RBY2: =RBW2+1 -> 7120 | RCA2: =RBY2+1 -> 7121 | RCC2: =RCA2+1 -> 7122 | RCE2: =RCC2+1 -> 7123 | RCG2: =RCE2+1 -> 7124 | RCI2: =RCG2+1 -> 7125 | RCK2: =RCI2+1 -> 7126 | RCM2: =RCK2+1 -> 7127 | RCO2: =RCM2+1 -> 7128 | RCQ2: =RCO2+1 -> 7129 | RCS2: =RCQ2+1 -> 7130 | RCU2: =RCS2+1 -> 7131 | RCW2: =RCU2+1 -> 7132 | RCY2: =RCW2+1 -> 7133 | RDA2: =RCY2+1 -> 7134 | RDC2: =RDA2+1 -> 7135 | RDE2: =RDC2+1 -> 7136 | RDG2: =RDE2+1 -> 7137 | RDI2: =RDG2+1 -> 7138 | RDK2: =RDI2+1 -> 7139 | RDM2: =RDK2+1 -> 7140 | RDO2: =RDM2+1 -> 7141 | RDQ2: =RDO2+1 -> 7142 | RDS2: =RDQ2+1 -> 7143 | RDU2: =RDS2+1 -> 7144 | RDW2: =RDU2+1 -> 7145 | RDY2: =RDW2+1 -> 7146 | REA2: =RDY2+1 -> 7147 | REC2: =REA2+1 -> 7148 | REE2: =REC2+1 -> 7149 | REG2: =REE2+1 -> 7150 | REI2: =REG2+1 -> 7151 | REK2: =REI2+1 -> 7152 | REM2: =REK2+1 -> 7153 | REO2: =REM2+1 -> 7154 | REQ2: =REO2+1 -> 7155 | RES2: =REQ2+1 -> 7156 | REU2: =RES2+1 -> 7157 | REW2: =REU2+1 -> 7158 | REY2: =REW2+1 -> 7159 | RFA2: =REY2+1 -> 7160 | RFC2: =RFA2+1 -> 7161 | RFE2: =RFC2+1 -> 7162 | RFG2: =RFE2+1 -> 7163 | RFI2: =RFG2+1 -> 7164 | RFK2: =RFI2+1 -> 7165 | RFM2: =RFK2+1 -> 7166 | RFO2: =RFM2+1 -> 7167 | RFQ2: =RFO2+1 -> 7168 | RFS2: =RFQ2+1 -> 7169 | RFU2: =RFS2+1 -> 7170 | RFW2: =RFU2+1 -> 7171 | RFY2: =RFW2+1 -> 7172 | RGA2: =RFY2+1 -> 7173 | RGC2: =RGA2+1 -> 7174 | RGE2: =RGC2+1 -> 7175 | RGG2: =RGE2+1 -> 7176 | RGI2: =RGG2+1 -> 7177 | RGK2: =RGI2+1 -> 7178 | RGM2: =RGK2+1 -> 7179 | RGO2: =RGM2+1 -> 7180 | RGQ2: =RGO2+1 -> 7181 | RGS2: =RGQ2+1 -> 7182 | RGU2: =RGS2+1 -> 7183 | RGW2: =RGU2+1 -> 7184 | RGY2: =RGW2+1 -> 7185 | RHA2: =RGY2+1 -> 7186 | RHC2: =RHA2+1 -> 7187 | RHE2: =RHC2+1 -> 7188 | RHG2: =RHE2+1 -> 7189 | RHI2: =RHG2+1 -> 7190 | RHK2: =RHI2+1 -> 7191 | RHM2: =RHK2+1 -> 7192 | RHO2: =RHM2+1 -> 7193 | RHQ2: =RHO2+1 -> 7194 | RHS2: =RHQ2+1 -> 7195 | RHU2: =RHS2+1 -> 7196 | RHW2: =RHU2+1 -> 7197 | RHY2: =RHW2+1 -> 7198 | RIA2: =RHY2+1 -> 7199 | RIC2: =RIA2+1 -> 7200 | RIE2: =RIC2+1 -> 7201 | RIG2: =RIE2+1 -> 7202 | RII2: =RIG2+1 -> 7203 | RIK2: =RII2+1 -> 7204 | RIM2: =RIK2+1 -> 7205 | RIO2: =RIM2+1 -> 7206 | RIQ2: =RIO2+1 -> 7207 | RIS2: =RIQ2+1 -> 7208 | RIU2: =RIS2+1 -> 7209 | RIW2: =RIU2+1 -> 7210 | RIY2: =RIW2+1 -> 7211 | RJA2: =RIY2+1 -> 7212 | RJC2: =RJA2+1 -> 7213 | RJE2: =RJC2+1 -> 7214 | RJG2: =RJE2+1 -> 7215 | RJI2: =RJG2+1 -> 7216 | RJK2: =RJI2+1 -> 7217 | RJM2: =RJK2+1 -> 7218 | RJO2: =RJM2+1 -> 7219 | RJQ2: =RJO2+1 -> 7220 | RJS2: =RJQ2+1 -> 7221 | RJU2: =RJS2+1 -> 7222 | RJW2: =RJU2+1 -> 7223 | RJY2: =RJW2+1 -> 7224 | RKA2: =RJY2+1 -> 7225 | RKC2: =RKA2+1 -> 7226 | RKE2: =RKC2+1 -> 7227 | RKG2: =RKE2+1 -> 7228 | RKI2: =RKG2+1 -> 7229 | RKK2: =RKI2+1 -> 7230 | RKM2: =RKK2+1 -> 7231 | RKO2: =RKM2+1 -> 7232 | RKQ2: =RKO2+1 -> 7233 | RKS2: =RKQ2+1 -> 7234 | RKU2: =RKS2+1 -> 7235 | RKW2: =RKU2+1 -> 7236 | RKY2: =RKW2+1 -> 7237 | RLA2: =RKY2+1 -> 7238 | RLC2: =RLA2+1 -> 7239 | RLE2: =RLC2+1 -> 7240 | RLG2: =RLE2+1 -> 7241 | RLI2: =RLG2+1 -> 7242 | RLK2: =RLI2+1 -> 7243 | RLM2: =RLK2+1 -> 7244 | RLO2: =RLM2+1 -> 7245 | RLQ2: =RLO2+1 -> 7246 | RLS2: =RLQ2+1 -> 7247 | RLU2: =RLS2+1 -> 7248 | RLW2: =RLU2+1 -> 7249 | RLY2: =RLW2+1 -> 7250 | RMA2: =RLY2+1 -> 7251 | RMC2: =RMA2+1 -> 7252 | RME2: =RMC2+1 -> 7253 | RMG2: =RME2+1 -> 7254 | RMI2: =RMG2+1 -> 7255 | RMK2: =RMI2+1 -> 7256 | RMM2: =RMK2+1 -> 7257 | RMO2: =RMM2+1 -> 7258 | RMQ2: =RMO2+1 -> 7259 | RMS2: =RMQ2+1 -> 7260 | RMU2: =RMS2+1 -> 7261 | RMW2: =RMU2+1 -> 7262 | RMY2: =RMW2+1 -> 7263 | RNA2: =RMY2+1 -> 7264 | RNC2: =RNA2+1 -> 7265 | RNE2: =RNC2+1 -> 7266 | RNG2: =RNE2+1 -> 7267 | RNI2: =RNG2+1 -> 7268 | RNK2: =RNI2+1 -> 7269 | RNM2: =RNK2+1 -> 7270 | RNO2: =RNM2+1 -> 7271 | RNQ2: =RNO2+1 -> 7272 | RNS2: =RNQ2+1 -> 7273 | RNU2: =RNS2+1 -> 7274 | RNW2: =RNU2+1 -> 7275 | RNY2: =RNW2+1 -> 7276 | ROA2: =RNY2+1 -> 7277 | ROC2: =ROA2+1 -> 7278 | ROE2: =ROC2+1 -> 7279 | ROG2: =ROE2+1 -> 7280 | ROI2: =ROG2+1 -> 7281 | ROK2: =ROI2+1 -> 7282 | ROM2: =ROK2+1 -> 7283 | ROO2: =ROM2+1 -> 7284 | ROQ2: =ROO2+1 -> 7285 | ROS2: =ROQ2+1 -> 7286 | ROU2: =ROS2+1 -> 7287 | ROW2: =ROU2+1 -> 7288 | ROY2: =ROW2+1 -> 7289 | RPA2: =ROY2+1 -> 7290 | RPC2: =RPA2+1 -> 7291 | RPE2: =RPC2+1 -> 7292 | RPG2: =RPE2+1 -> 7293 | RPI2: =RPG2+1 -> 7294 | RPK2: =RPI2+1 -> 7295 | RPM2: =RPK2+1 -> 7296 | RPO2: =RPM2+1 -> 7297 | RPQ2: =RPO2+1 -> 7298 | RPS2: =RPQ2+1 -> 7299 | RPU2: =RPS2+1 -> 7300 | RPW2: =RPU2+1 -> 7301 | RPY2: =RPW2+1 -> 7302 | RQA2: =RPY2+1 -> 7303 | RQC2: =RQA2+1 -> 7304 | RQE2: =RQC2+1 -> 7305 | RQG2: =RQE2+1 -> 7306 | RQI2: =RQG2+1 -> 7307 | RQK2: =RQI2+1 -> 7308 | RQM2: =RQK2+1 -> 7309 | RQO2: =RQM2+1 -> 7310 | RQQ2: =RQO2+1 -> 7311 | RQS2: =RQQ2+1 -> 7312 | RQU2: =RQS2+1 -> 7313 | RQW2: =RQU2+1 -> 7314 | RQY2: =RQW2+1 -> 7315 | RRA2: =RQY2+1 -> 7316 | RRC2: =RRA2+1 -> 7317 | RRE2: =RRC2+1 -> 7318 | RRG2: =RRE2+1 -> 7319 | RRI2: =RRG2+1 -> 7320 | RRK2: =RRI2+1 -> 7321 | RRM2: =RRK2+1 -> 7322 | RRO2: =RRM2+1 -> 7323 | RRQ2: =RRO2+1 -> 7324 | RRS2: =RRQ2+1 -> 7325 | RRU2: =RRS2+1 -> 7326 | RRW2: =RRU2+1 -> 7327 | RRY2: =RRW2+1 -> 7328 | RSA2: =RRY2+1 -> 7329 | RSC2: =RSA2+1 -> 7330 | RSE2: =RSC2+1 -> 7331 | RSG2: =RSE2+1 -> 7332 | RSI2: =RSG2+1 -> 7333 | RSK2: =RSI2+1 -> 7334 | RSM2: =RSK2+1 -> 7335 | RSO2: =RSM2+1 -> 7336 | RSQ2: =RSO2+1 -> 7337 | RSS2: =RSQ2+1 -> 7338 | RSU2: =RSS2+1 -> 7339 | RSW2: =RSU2+1 -> 7340 | RSY2: =RSW2+1 -> 7341 | RTA2: =RSY2+1 -> 7342 | RTC2: =RTA2+1 -> 7343 | RTE2: =RTC2+1 -> 7344 | RTG2: =RTE2+1 -> 7345 | RTI2: =RTG2+1 -> 7346 | RTK2: =RTI2+1 -> 7347 | RTM2: =RTK2+1 -> 7348 | RTO2: =RTM2+1 -> 7349 | RTQ2: =RTO2+1 -> 7350 | RTS2: =RTQ2+1 -> 7351 | RTU2: =RTS2+1 -> 7352 | RTW2: =RTU2+1 -> 7353 | RTY2: =RTW2+1 -> 7354 | RUA2: =RTY2+1 -> 7355 | RUC2: =RUA2+1 -> 7356 | RUE2: =RUC2+1 -> 7357 | RUG2: =RUE2+1 -> 7358 | RUI2: =RUG2+1 -> 7359 | RUK2: =RUI2+1 -> 7360 | RUM2: =RUK2+1 -> 7361 | RUO2: =RUM2+1 -> 7362 | RUQ2: =RUO2+1 -> 7363 | RUS2: =RUQ2+1 -> 7364 | RUU2: =RUS2+1 -> 7365 | RUW2: =RUU2+1 -> 7366 | RUY2: =RUW2+1 -> 7367 | RVA2: =RUY2+1 -> 7368 | RVC2: =RVA2+1 -> 7369 | RVE2: =RVC2+1 -> 7370 | RVG2: =RVE2+1 -> 7371 | RVI2: =RVG2+1 -> 7372 | RVK2: =RVI2+1 -> 7373 | RVM2: =RVK2+1 -> 7374 | RVO2: =RVM2+1 -> 7375 | RVQ2: =RVO2+1 -> 7376 | RVS2: =RVQ2+1 -> 7377 | RVU2: =RVS2+1 -> 7378 | RVW2: =RVU2+1 -> 7379 | RVY2: =RVW2+1 -> 7380 | RWA2: =RVY2+1 -> 7381 | RWC2: =RWA2+1 -> 7382 | RWE2: =RWC2+1 -> 7383 | RWG2: =RWE2+1 -> 7384 | RWI2: =RWG2+1 -> 7385 | RWK2: =RWI2+1 -> 7386 | RWM2: =RWK2+1 -> 7387 | RWO2: =RWM2+1 -> 7388 | RWQ2: =RWO2+1 -> 7389 | RWS2: =RWQ2+1 -> 7390 | RWU2: =RWS2+1 -> 7391 | RWW2: =RWU2+1 -> 7392 | RWY2: =RWW2+1 -> 7393 | RXA2: =RWY2+1 -> 7394 | RXC2: =RXA2+1 -> 7395 | RXE2: =RXC2+1 -> 7396 | RXG2: =RXE2+1 -> 7397 | RXI2: =RXG2+1 -> 7398 | RXK2: =RXI2+1 -> 7399 | RXM2: =RXK2+1 -> 7400 | RXO2: =RXM2+1 -> 7401 | RXQ2: =RXO2+1 -> 7402 | RXS2: =RXQ2+1 -> 7403 | RXU2: =RXS2+1 -> 7404 | RXW2: =RXU2+1 -> 7405 | RXY2: =RXW2+1 -> 7406 | RYA2: =RXY2+1 -> 7407 | RYC2: =RYA2+1 -> 7408 | RYE2: =RYC2+1 -> 7409 | RYG2: =RYE2+1 -> 7410 | RYI2: =RYG2+1 -> 7411 | RYK2: =RYI2+1 -> 7412 | RYM2: =RYK2+1 -> 7413 | RYO2: =RYM2+1 -> 7414 | RYQ2: =RYO2+1 -> 7415 | RYS2: =RYQ2+1 -> 7416 | RYU2: =RYS2+1 -> 7417 | RYW2: =RYU2+1 -> 7418 | RYY2: =RYW2+1 -> 7419 | RZA2: =RYY2+1 -> 7420 | RZC2: =RZA2+1 -> 7421 | RZE2: =RZC2+1 -> 7422 | RZG2: =RZE2+1 -> 7423 | RZI2: =RZG2+1 -> 7424 | RZK2: =RZI2+1 -> 7425 | RZM2: =RZK2+1 -> 7426 | RZO2: =RZM2+1 -> 7427 | RZQ2: =RZO2+1 -> 7428 | RZS2: =RZQ2+1 -> 7429 | RZU2: =RZS2+1 -> 7430 | RZW2: =RZU2+1 -> 7431 | RZY2: =RZW2+1 -> 7432 | SAA2: =RZY2+1 -> 7433 | SAC2: =SAA2+1 -> 7434 | SAE2: =SAC2+1 -> 7435 | SAG2: =SAE2+1 -> 7436 | SAI2: =SAG2+1 -> 7437 | SAK2: =SAI2+1 -> 7438 | SAM2: =SAK2+1 -> 7439 | SAO2: =SAM2+1 -> 7440 | SAQ2: =SAO2+1 -> 7441 | SAS2: =SAQ2+1 -> 7442 | SAU2: =SAS2+1 -> 7443 | SAW2: =SAU2+1 -> 7444 | SAY2: =SAW2+1 -> 7445 | SBA2: =SAY2+1 -> 7446 | SBC2: =SBA2+1 -> 7447 | SBE2: =SBC2+1 -> 7448 | SBG2: =SBE2+1 -> 7449 | SBI2: =SBG2+1 -> 7450 | SBK2: =SBI2+1 -> 7451 | SBM2: =SBK2+1 -> 7452 | SBO2: =SBM2+1 -> 7453 | SBQ2: =SBO2+1 -> 7454 | SBS2: =SBQ2+1 -> 7455 | SBU2: =SBS2+1 -> 7456 | SBW2: =SBU2+1 -> 7457 | SBY2: =SBW2+1 -> 7458 | SCA2: =SBY2+1 -> 7459 | SCC2: =SCA2+1 -> 7460 | SCE2: =SCC2+1 -> 7461 | SCG2: =SCE2+1 -> 7462 | SCI2: =SCG2+1 -> 7463 | SCK2: =SCI2+1 -> 7464 | SCM2: =SCK2+1 -> 7465 | SCO2: =SCM2+1 -> 7466 | SCQ2: =SCO2+1 -> 7467 | SCS2: =SCQ2+1 -> 7468 | SCU2: =SCS2+1 -> 7469 | SCW2: =SCU2+1 -> 7470 | SCY2: =SCW2+1 -> 7471 | SDA2: =SCY2+1 -> 7472 | SDC2: =SDA2+1 -> 7473 | SDE2: =SDC2+1 -> 7474 | SDG2: =SDE2+1 -> 7475 | SDI2: =SDG2+1 -> 7476 | SDK2: =SDI2+1 -> 7477 | SDM2: =SDK2+1 -> 7478 | SDO2: =SDM2+1 -> 7479 | SDQ2: =SDO2+1 -> 7480 | SDS2: =SDQ2+1 -> 7481 | SDU2: =SDS2+1 -> 7482 | SDW2: =SDU2+1 -> 7483 | SDY2: =SDW2+1 -> 7484 | SEA2: =SDY2+1 -> 7485 | SEC2: =SEA2+1 -> 7486 | SEE2: =SEC2+1 -> 7487 | SEG2: =SEE2+1 -> 7488 | SEI2: =SEG2+1 -> 7489 | SEK2: =SEI2+1 -> 7490 | SEM2: =SEK2+1 -> 7491 | SEO2: =SEM2+1 -> 7492 | SEQ2: =SEO2+1 -> 7493 | SES2: =SEQ2+1 -> 7494 | SEU2: =SES2+1 -> 7495 | SEW2: =SEU2+1 -> 7496 | SEY2: =SEW2+1 -> 7497 | SFA2: =SEY2+1 -> 7498 | SFC2: =SFA2+1 -> 7499 | SFE2: =SFC2+1 -> 7500 | SFG2: =SFE2+1 -> 7501 | SFI2: =SFG2+1 -> 7502 | SFK2: =SFI2+1 -> 7503 | SFM2: =SFK2+1 -> 7504 | SFO2: =SFM2+1 -> 7505 | SFQ2: =SFO2+1 -> 7506 | SFS2: =SFQ2+1 -> 7507 | SFU2: =SFS2+1 -> 7508 | SFW2: =SFU2+1 -> 7509 | SFY2: =SFW2+1 -> 7510 | SGA2: =SFY2+1 -> 7511 | SGC2: =SGA2+1 -> 7512 | SGE2: =SGC2+1 -> 7513 | SGG2: =SGE2+1 -> 7514 | SGI2: =SGG2+1 -> 7515 | SGK2: =SGI2+1 -> 7516 | SGM2: =SGK2+1 -> 7517 | SGO2: =SGM2+1 -> 7518 | SGQ2: =SGO2+1 -> 7519 | SGS2: =SGQ2+1 -> 7520 | SGU2: =SGS2+1 -> 7521 | SGW2: =SGU2+1 -> 7522 | SGY2: =SGW2+1 -> 7523 | SHA2: =SGY2+1 -> 7524 | SHC2: =SHA2+1 -> 7525 | SHE2: =SHC2+1 -> 7526 | SHG2: =SHE2+1 -> 7527 | SHI2: =SHG2+1 -> 7528 | SHK2: =SHI2+1 -> 7529 | SHM2: =SHK2+1 -> 7530 | SHO2: =SHM2+1 -> 7531 | SHQ2: =SHO2+1 -> 7532 | SHS2: =SHQ2+1 -> 7533 | SHU2: =SHS2+1 -> 7534 | SHW2: =SHU2+1 -> 7535 | SHY2: =SHW2+1 -> 7536 | SIA2: =SHY2+1 -> 7537 | SIC2: =SIA2+1 -> 7538 | SIE2: =SIC2+1 -> 7539 | SIG2: =SIE2+1 -> 7540 | SII2: =SIG2+1 -> 7541 | SIK2: =SII2+1 -> 7542 | SIM2: =SIK2+1 -> 7543 | SIO2: =SIM2+1 -> 7544 | SIQ2: =SIO2+1 -> 7545 | SIS2: =SIQ2+1 -> 7546 | SIU2: =SIS2+1 -> 7547 | SIW2: =SIU2+1 -> 7548 | SIY2: =SIW2+1 -> 7549 | SJA2: =SIY2+1 -> 7550 | SJC2: =SJA2+1 -> 7551 | SJE2: =SJC2+1 -> 7552 | SJG2: =SJE2+1 -> 7553 | SJI2: =SJG2+1 -> 7554 | SJK2: =SJI2+1 -> 7555 | SJM2: =SJK2+1 -> 7556 | SJO2: =SJM2+1 -> 7557 | SJQ2: =SJO2+1 -> 7558 | SJS2: =SJQ2+1 -> 7559 | SJU2: =SJS2+1 -> 7560 | SJW2: =SJU2+1 -> 7561 | SJY2: =SJW2+1 -> 7562 | SKA2: =SJY2+1 -> 7563 | SKC2: =SKA2+1 -> 7564 | SKE2: =SKC2+1 -> 7565 | SKG2: =SKE2+1 -> 7566 | SKI2: =SKG2+1 -> 7567 | SKK2: =SKI2+1 -> 7568 | SKM2: =SKK2+1 -> 7569 | SKO2: =SKM2+1 -> 7570 | SKQ2: =SKO2+1 -> 7571 | SKS2: =SKQ2+1 -> 7572 | SKU2: =SKS2+1 -> 7573 | SKW2: =SKU2+1 -> 7574 | SKY2: =SKW2+1 -> 7575 | SLA2: =SKY2+1 -> 7576 | SLC2: =SLA2+1 -> 7577 | SLE2: =SLC2+1 -> 7578 | SLG2: =SLE2+1 -> 7579 | SLI2: =SLG2+1 -> 7580 | SLK2: =SLI2+1 -> 7581 | SLM2: =SLK2+1 -> 7582 | SLO2: =SLM2+1 -> 7583 | SLQ2: =SLO2+1 -> 7584 | SLS2: =SLQ2+1 -> 7585 | SLU2: =SLS2+1 -> 7586 | SLW2: =SLU2+1 -> 7587 | SLY2: =SLW2+1 -> 7588 | SMA2: =SLY2+1 -> 7589 | SMC2: =SMA2+1 -> 7590 | SME2: =SMC2+1 -> 7591 | SMG2: =SME2+1 -> 7592 | SMI2: =SMG2+1 -> 7593 | SMK2: =SMI2+1 -> 7594 | SMM2: =SMK2+1 -> 7595 | SMO2: =SMM2+1 -> 7596 | SMQ2: =SMO2+1 -> 7597 | SMS2: =SMQ2+1 -> 7598 | SMU2: =SMS2+1 -> 7599 | SMW2: =SMU2+1 -> 7600 | SMY2: =SMW2+1 -> 7601 | SNA2: =SMY2+1 -> 7602 | SNC2: =SNA2+1 -> 7603 | SNE2: =SNC2+1 -> 7604 | SNG2: =SNE2+1 -> 7605 | SNI2: =SNG2+1 -> 7606 | SNK2: =SNI2+1 -> 7607 | SNM2: =SNK2+1 -> 7608 | SNO2: =SNM2+1 -> 7609 | SNQ2: =SNO2+1 -> 7610 | SNS2: =SNQ2+1 -> 7611 | SNU2: =SNS2+1 -> 7612 | SNW2: =SNU2+1 -> 7613 | SNY2: =SNW2+1 -> 7614 | SOA2: =SNY2+1 -> 7615 | SOC2: =SOA2+1 -> 7616 | SOE2: =SOC2+1 -> 7617 | SOG2: =SOE2+1 -> 7618 | SOI2: =SOG2+1 -> 7619 | SOK2: =SOI2+1 -> 7620 | SOM2: =SOK2+1 -> 7621 | SOO2: =SOM2+1 -> 7622 | SOQ2: =SOO2+1 -> 7623 | SOS2: =SOQ2+1 -> 7624 | SOU2: =SOS2+1 -> 7625 | SOW2: =SOU2+1 -> 7626 | SOY2: =SOW2+1 -> 7627 | SPA2: =SOY2+1 -> 7628 | SPC2: =SPA2+1 -> 7629 | SPE2: =SPC2+1 -> 7630 | SPG2: =SPE2+1 -> 7631 | SPI2: =SPG2+1 -> 7632 | SPK2: =SPI2+1 -> 7633 | SPM2: =SPK2+1 -> 7634 | SPO2: =SPM2+1 -> 7635 | SPQ2: =SPO2+1 -> 7636 | SPS2: =SPQ2+1 -> 7637 | SPU2: =SPS2+1 -> 7638 | SPW2: =SPU2+1 -> 7639 | SPY2: =SPW2+1 -> 7640 | SQA2: =SPY2+1 -> 7641 | SQC2: =SQA2+1 -> 7642 | SQE2: =SQC2+1 -> 7643 | SQG2: =SQE2+1 -> 7644 | SQI2: =SQG2+1 -> 7645 | SQK2: =SQI2+1 -> 7646 | SQM2: =SQK2+1 -> 7647 | SQO2: =SQM2+1 -> 7648 | SQQ2: =SQO2+1 -> 7649 | SQS2: =SQQ2+1 -> 7650 | SQU2: =SQS2+1 -> 7651 | SQW2: =SQU2+1 -> 7652 | SQY2: =SQW2+1 -> 7653 | SRA2: =SQY2+1 -> 7654 | SRC2: =SRA2+1 -> 7655 | SRE2: =SRC2+1 -> 7656 | SRG2: =SRE2+1 -> 7657 | SRI2: =SRG2+1 -> 7658 | SRK2: =SRI2+1 -> 7659 | SRM2: =SRK2+1 -> 7660 | SRO2: =SRM2+1 -> 7661 | SRQ2: =SRO2+1 -> 7662 | SRS2: =SRQ2+1 -> 7663 | SRU2: =SRS2+1 -> 7664 | SRW2: =SRU2+1 -> 7665 | SRY2: =SRW2+1 -> 7666 | SSA2: =SRY2+1 -> 7667 | SSC2: =SSA2+1 -> 7668 | SSE2: =SSC2+1 -> 7669 | SSG2: =SSE2+1 -> 7670 | SSI2: =SSG2+1 -> 7671 | SSK2: =SSI2+1 -> 7672 | SSM2: =SSK2+1 -> 7673 | SSO2: =SSM2+1 -> 7674 | SSQ2: =SSO2+1 -> 7675 | SSS2: =SSQ2+1 -> 7676 | SSU2: =SSS2+1 -> 7677 | SSW2: =SSU2+1 -> 7678 | SSY2: =SSW2+1 -> 7679 | STA2: =SSY2+1 -> 7680 | STC2: =STA2+1 -> 7681 | STE2: =STC2+1 -> 7682 | STG2: =STE2+1 -> 7683 | STI2: =STG2+1 -> 7684 | STK2: =STI2+1 -> 7685 | STM2: =STK2+1 -> 7686 | STO2: =STM2+1 -> 7687 | STQ2: =STO2+1 -> 7688 | STS2: =STQ2+1 -> 7689 | STU2: =STS2+1 -> 7690 | STW2: =STU2+1 -> 7691 | STY2: =STW2+1 -> 7692 | SUA2: =STY2+1 -> 7693 | SUC2: =SUA2+1 -> 7694 | SUE2: =SUC2+1 -> 7695 | SUG2: =SUE2+1 -> 7696 | SUI2: =SUG2+1 -> 7697 | SUK2: =SUI2+1 -> 7698 | SUM2: =SUK2+1 -> 7699 | SUO2: =SUM2+1 -> 7700 | SUQ2: =SUO2+1 -> 7701 | SUS2: =SUQ2+1 -> 7702 | SUU2: =SUS2+1 -> 7703 | SUW2: =SUU2+1 -> 7704 | SUY2: =SUW2+1 -> 7705 | SVA2: =SUY2+1 -> 7706 | SVC2: =SVA2+1 -> 7707 | SVE2: =SVC2+1 -> 7708 | SVG2: =SVE2+1 -> 7709 | SVI2: =SVG2+1 -> 7710 | SVK2: =SVI2+1 -> 7711 | SVM2: =SVK2+1 -> 7712 | SVO2: =SVM2+1 -> 7713 | SVQ2: =SVO2+1 -> 7714 | SVS2: =SVQ2+1 -> 7715 | SVU2: =SVS2+1 -> 7716 | SVW2: =SVU2+1 -> 7717 | SVY2: =SVW2+1 -> 7718 | SWA2: =SVY2+1 -> 7719 | SWC2: =SWA2+1 -> 7720 | SWE2: =SWC2+1 -> 7721 | SWG2: =SWE2+1 -> 7722 | SWI2: =SWG2+1 -> 7723 | SWK2: =SWI2+1 -> 7724 | SWM2: =SWK2+1 -> 7725 | SWO2: =SWM2+1 -> 7726 | SWQ2: =SWO2+1 -> 7727 | SWS2: =SWQ2+1 -> 7728 | SWU2: =SWS2+1 -> 7729 | SWW2: =SWU2+1 -> 7730 | SWY2: =SWW2+1 -> 7731 | SXA2: =SWY2+1 -> 7732 | SXC2: =SXA2+1 -> 7733 | SXE2: =SXC2+1 -> 7734 | SXG2: =SXE2+1 -> 7735 | SXI2: =SXG2+1 -> 7736 | SXK2: =SXI2+1 -> 7737 | SXM2: =SXK2+1 -> 7738 | SXO2: =SXM2+1 -> 7739 | SXQ2: =SXO2+1 -> 7740 | SXS2: =SXQ2+1 -> 7741 | SXU2: =SXS2+1 -> 7742 | SXW2: =SXU2+1 -> 7743 | SXY2: =SXW2+1 -> 7744 | SYA2: =SXY2+1 -> 7745 | SYC2: =SYA2+1 -> 7746 | SYE2: =SYC2+1 -> 7747 | SYG2: =SYE2+1 -> 7748 | SYI2: =SYG2+1 -> 7749 | SYK2: =SYI2+1 -> 7750 | SYM2: =SYK2+1 -> 7751 | SYO2: =SYM2+1 -> 7752 | SYQ2: =SYO2+1 -> 7753 | SYS2: =SYQ2+1 -> 7754 | SYU2: =SYS2+1 -> 7755 | SYW2: =SYU2+1 -> 7756 | SYY2: =SYW2+1 -> 7757 | SZA2: =SYY2+1 -> 7758 | SZC2: =SZA2+1 -> 7759 | SZE2: =SZC2+1 -> 7760 | SZG2: =SZE2+1 -> 7761 | SZI2: =SZG2+1 -> 7762 | SZK2: =SZI2+1 -> 7763 | SZM2: =SZK2+1 -> 7764 | SZO2: =SZM2+1 -> 7765 | SZQ2: =SZO2+1 -> 7766 | SZS2: =SZQ2+1 -> 7767 | SZU2: =SZS2+1 -> 7768 | SZW2: =SZU2+1 -> 7769 | SZY2: =SZW2+1 -> 7770 | TAA2: =SZY2+1 -> 7771 | TAC2: =TAA2+1 -> 7772 | TAE2: =TAC2+1 -> 7773 | TAG2: =TAE2+1 -> 7774 | TAI2: =TAG2+1 -> 7775 | TAK2: =TAI2+1 -> 7776 | TAM2: =TAK2+1 -> 7777 | TAO2: =TAM2+1 -> 7778 | TAQ2: =TAO2+1 -> 7779 | TAS2: =TAQ2+1 -> 7780 | TAU2: =TAS2+1 -> 7781 | TAW2: =TAU2+1 -> 7782 | TAY2: =TAW2+1 -> 7783 | TBA2: =TAY2+1 -> 7784 | TBC2: =TBA2+1 -> 7785 | TBE2: =TBC2+1 -> 7786 | TBG2: =TBE2+1 -> 7787 | TBI2: =TBG2+1 -> 7788 | TBK2: =TBI2+1 -> 7789 | TBM2: =TBK2+1 -> 7790 | TBO2: =TBM2+1 -> 7791 | TBQ2: =TBO2+1 -> 7792 | TBS2: =TBQ2+1 -> 7793 | TBU2: =TBS2+1 -> 7794 | TBW2: =TBU2+1 -> 7795 | TBY2: =TBW2+1 -> 7796 | TCA2: =TBY2+1 -> 7797 | TCC2: =TCA2+1 -> 7798 | TCE2: =TCC2+1 -> 7799 | TCG2: =TCE2+1 -> 7800 | TCI2: =TCG2+1 -> 7801 | TCK2: =TCI2+1 -> 7802 | TCM2: =TCK2+1 -> 7803 | TCO2: =TCM2+1 -> 7804 | TCQ2: =TCO2+1 -> 7805 | TCS2: =TCQ2+1 -> 7806 | TCU2: =TCS2+1 -> 7807 | TCW2: =TCU2+1 -> 7808 | TCY2: =TCW2+1 -> 7809 | TDA2: =TCY2+1 -> 7810 | TDC2: =TDA2+1 -> 7811 | TDE2: =TDC2+1 -> 7812 | TDG2: =TDE2+1 -> 7813 | TDI2: =TDG2+1 -> 7814 | TDK2: =TDI2+1 -> 7815 | TDM2: =TDK2+1 -> 7816 | TDO2: =TDM2+1 -> 7817 | TDQ2: =TDO2+1 -> 7818 | TDS2: =TDQ2+1 -> 7819 | TDU2: =TDS2+1 -> 7820 | TDW2: =TDU2+1 -> 7821 | TDY2: =TDW2+1 -> 7822 | TEA2: =TDY2+1 -> 7823 | TEC2: =TEA2+1 -> 7824 | TEE2: =TEC2+1 -> 7825 | TEG2: =TEE2+1 -> 7826 | TEI2: =TEG2+1 -> 7827 | TEK2: =TEI2+1 -> 7828 | TEM2: =TEK2+1 -> 7829 | TEO2: =TEM2+1 -> 7830 | TEQ2: =TEO2+1 -> 7831 | TES2: =TEQ2+1 -> 7832 | TEU2: =TES2+1 -> 7833 | TEW2: =TEU2+1 -> 7834 | TEY2: =TEW2+1 -> 7835 | TFA2: =TEY2+1 -> 7836 | TFC2: =TFA2+1 -> 7837 | TFE2: =TFC2+1 -> 7838 | TFG2: =TFE2+1 -> 7839 | TFI2: =TFG2+1 -> 7840 | TFK2: =TFI2+1 -> 7841 | TFM2: =TFK2+1 -> 7842 | TFO2: =TFM2+1 -> 7843 | TFQ2: =TFO2+1 -> 7844 | TFS2: =TFQ2+1 -> 7845 | TFU2: =TFS2+1 -> 7846 | TFW2: =TFU2+1 -> 7847 | TFY2: =TFW2+1 -> 7848 | TGA2: =TFY2+1 -> 7849 | TGC2: =TGA2+1 -> 7850 | TGE2: =TGC2+1 -> 7851 | TGG2: =TGE2+1 -> 7852 | TGI2: =TGG2+1 -> 7853 | TGK2: =TGI2+1 -> 7854 | TGM2: =TGK2+1 -> 7855 | TGO2: =TGM2+1 -> 7856 | TGQ2: =TGO2+1 -> 7857 | TGS2: =TGQ2+1 -> 7858 | TGU2: =TGS2+1 -> 7859 | TGW2: =TGU2+1 -> 7860 | TGY2: =TGW2+1 -> 7861 | THA2: =TGY2+1 -> 7862 | THC2: =THA2+1 -> 7863 | THE2: =THC2+1 -> 7864 | THG2: =THE2+1 -> 7865 | THI2: =THG2+1 -> 7866 | THK2: =THI2+1 -> 7867 | THM2: =THK2+1 -> 7868 | THO2: =THM2+1 -> 7869 | THQ2: =THO2+1 -> 7870 | THS2: =THQ2+1 -> 7871 | THU2: =THS2+1 -> 7872 | THW2: =THU2+1 -> 7873 | THY2: =THW2+1 -> 7874 | TIA2: =THY2+1 -> 7875 | TIC2: =TIA2+1 -> 7876 | TIE2: =TIC2+1 -> 7877 | TIG2: =TIE2+1 -> 7878 | TII2: =TIG2+1 -> 7879 | TIK2: =TII2+1 -> 7880 | TIM2: =TIK2+1 -> 7881 | TIO2: =TIM2+1 -> 7882 | TIQ2: =TIO2+1 -> 7883 | TIS2: =TIQ2+1 -> 7884 | TIU2: =TIS2+1 -> 7885 | TIW2: =TIU2+1 -> 7886 | TIY2: =TIW2+1 -> 7887 | TJA2: =TIY2+1 -> 7888 | TJC2: =TJA2+1 -> 7889 | TJE2: =TJC2+1 -> 7890 | TJG2: =TJE2+1 -> 7891 | TJI2: =TJG2+1 -> 7892 | TJK2: =TJI2+1 -> 7893 | TJM2: =TJK2+1 -> 7894 | TJO2: =TJM2+1 -> 7895 | TJQ2: =TJO2+1 -> 7896 | TJS2: =TJQ2+1 -> 7897 | TJU2: =TJS2+1 -> 7898 | TJW2: =TJU2+1 -> 7899 | TJY2: =TJW2+1 -> 7900 | TKA2: =TJY2+1 -> 7901 | TKC2: =TKA2+1 -> 7902 | TKE2: =TKC2+1 -> 7903 | TKG2: =TKE2+1 -> 7904 | TKI2: =TKG2+1 -> 7905 | TKK2: =TKI2+1 -> 7906 | TKM2: =TKK2+1 -> 7907 | TKO2: =TKM2+1 -> 7908 | TKQ2: =TKO2+1 -> 7909 | TKS2: =TKQ2+1 -> 7910 | TKU2: =TKS2+1 -> 7911 | TKW2: =TKU2+1 -> 7912 | TKY2: =TKW2+1 -> 7913 | TLA2: =TKY2+1 -> 7914 | TLC2: =TLA2+1 -> 7915 | TLE2: =TLC2+1 -> 7916 | TLG2: =TLE2+1 -> 7917 | TLI2: =TLG2+1 -> 7918 | TLK2: =TLI2+1 -> 7919 | TLM2: =TLK2+1 -> 7920 | TLO2: =TLM2+1 -> 7921 | TLQ2: =TLO2+1 -> 7922 | TLS2: =TLQ2+1 -> 7923 | TLU2: =TLS2+1 -> 7924 | TLW2: =TLU2+1 -> 7925 | TLY2: =TLW2+1 -> 7926 | TMA2: =TLY2+1 -> 7927 | TMC2: =TMA2+1 -> 7928 | TME2: =TMC2+1 -> 7929 | TMG2: =TME2+1 -> 7930 | TMI2: =TMG2+1 -> 7931 | TMK2: =TMI2+1 -> 7932 | TMM2: =TMK2+1 -> 7933 | TMO2: =TMM2+1 -> 7934 | TMQ2: =TMO2+1 -> 7935 | TMS2: =TMQ2+1 -> 7936 | TMU2: =TMS2+1 -> 7937 | TMW2: =TMU2+1 -> 7938 | TMY2: =TMW2+1 -> 7939 | TNA2: =TMY2+1 -> 7940 | TNC2: =TNA2+1 -> 7941 | TNE2: =TNC2+1 -> 7942 | TNG2: =TNE2+1 -> 7943 | TNI2: =TNG2+1 -> 7944 | TNK2: =TNI2+1 -> 7945 | TNM2: =TNK2+1 -> 7946 | TNO2: =TNM2+1 -> 7947 | TNQ2: =TNO2+1 -> 7948 | TNS2: =TNQ2+1 -> 7949 | TNU2: =TNS2+1 -> 7950 | TNW2: =TNU2+1 -> 7951 | TNY2: =TNW2+1 -> 7952 | TOA2: =TNY2+1 -> 7953 | TOC2: =TOA2+1 -> 7954 | TOE2: =TOC2+1 -> 7955 | TOG2: =TOE2+1 -> 7956 | TOI2: =TOG2+1 -> 7957 | TOK2: =TOI2+1 -> 7958 | TOM2: =TOK2+1 -> 7959 | TOO2: =TOM2+1 -> 7960 | TOQ2: =TOO2+1 -> 7961 | TOS2: =TOQ2+1 -> 7962 | TOU2: =TOS2+1 -> 7963 | TOW2: =TOU2+1 -> 7964 | TOY2: =TOW2+1 -> 7965 | TPA2: =TOY2+1 -> 7966 | TPC2: =TPA2+1 -> 7967 | TPE2: =TPC2+1 -> 7968 | TPG2: =TPE2+1 -> 7969 | TPI2: =TPG2+1 -> 7970 | TPK2: =TPI2+1 -> 7971 | TPM2: =TPK2+1 -> 7972 | TPO2: =TPM2+1 -> 7973 | TPQ2: =TPO2+1 -> 7974 | TPS2: =TPQ2+1 -> 7975 | TPU2: =TPS2+1 -> 7976 | TPW2: =TPU2+1 -> 7977 | TPY2: =TPW2+1 -> 7978 | TQA2: =TPY2+1 -> 7979 | TQC2: =TQA2+1 -> 7980 | TQE2: =TQC2+1 -> 7981 | TQG2: =TQE2+1 -> 7982 | TQI2: =TQG2+1 -> 7983 | TQK2: =TQI2+1 -> 7984 | TQM2: =TQK2+1 -> 7985 | TQO2: =TQM2+1 -> 7986 | TQQ2: =TQO2+1 -> 7987 | TQS2: =TQQ2+1 -> 7988 | TQU2: =TQS2+1 -> 7989 | TQW2: =TQU2+1 -> 7990 | TQY2: =TQW2+1 -> 7991 | TRA2: =TQY2+1 -> 7992 | TRC2: =TRA2+1 -> 7993 | TRE2: =TRC2+1 -> 7994 | TRG2: =TRE2+1 -> 7995 | TRI2: =TRG2+1 -> 7996 | TRK2: =TRI2+1 -> 7997 | TRM2: =TRK2+1 -> 7998 | TRO2: =TRM2+1 -> 7999 | TRQ2: =TRO2+1 -> 8000 | TRS2: =TRQ2+1 -> 8001 | TRU2: =TRS2+1 -> 8002 | TRW2: =TRU2+1 -> 8003 | TRY2: =TRW2+1 -> 8004 | TSA2: =TRY2+1 -> 8005 | TSC2: =TSA2+1 -> 8006 | TSE2: =TSC2+1 -> 8007 | TSG2: =TSE2+1 -> 8008 | TSI2: =TSG2+1 -> 8009 | TSK2: =TSI2+1 -> 8010 | TSM2: =TSK2+1 -> 8011 | TSO2: =TSM2+1 -> 8012 | TSQ2: =TSO2+1 -> 8013 | TSS2: =TSQ2+1 -> 8014 | TSU2: =TSS2+1 -> 8015 | TSW2: =TSU2+1 -> 8016 | TSY2: =TSW2+1 -> 8017 | TTA2: =TSY2+1 -> 8018 | TTC2: =TTA2+1 -> 8019 | TTE2: =TTC2+1 -> 8020 | TTG2: =TTE2+1 -> 8021 | TTI2: =TTG2+1 -> 8022 | TTK2: =TTI2+1 -> 8023 | TTM2: =TTK2+1 -> 8024 | TTO2: =TTM2+1 -> 8025 | TTQ2: =TTO2+1 -> 8026 | TTS2: =TTQ2+1 -> 8027 | TTU2: =TTS2+1 -> 8028 | TTW2: =TTU2+1 -> 8029 | TTY2: =TTW2+1 -> 8030 | TUA2: =TTY2+1 -> 8031 | TUC2: =TUA2+1 -> 8032 | TUE2: =TUC2+1 -> 8033 | TUG2: =TUE2+1 -> 8034 | TUI2: =TUG2+1 -> 8035 | TUK2: =TUI2+1 -> 8036 | TUM2: =TUK2+1 -> 8037 | TUO2: =TUM2+1 -> 8038 | TUQ2: =TUO2+1 -> 8039 | TUS2: =TUQ2+1 -> 8040 | TUU2: =TUS2+1 -> 8041 | TUW2: =TUU2+1 -> 8042 | TUY2: =TUW2+1 -> 8043 | TVA2: =TUY2+1 -> 8044 | TVC2: =TVA2+1 -> 8045 | TVE2: =TVC2+1 -> 8046 | TVG2: =TVE2+1 -> 8047 | TVI2: =TVG2+1 -> 8048 | TVK2: =TVI2+1 -> 8049 | TVM2: =TVK2+1 -> 8050 | TVO2: =TVM2+1 -> 8051 | TVQ2: =TVO2+1 -> 8052 | TVS2: =TVQ2+1 -> 8053 | TVU2: =TVS2+1 -> 8054 | TVW2: =TVU2+1 -> 8055 | TVY2: =TVW2+1 -> 8056 | TWA2: =TVY2+1 -> 8057 | TWC2: =TWA2+1 -> 8058 | TWE2: =TWC2+1 -> 8059 | TWG2: =TWE2+1 -> 8060 | TWI2: =TWG2+1 -> 8061 | TWK2: =TWI2+1 -> 8062 | TWM2: =TWK2+1 -> 8063 | TWO2: =TWM2+1 -> 8064 | TWQ2: =TWO2+1 -> 8065 | TWS2: =TWQ2+1 -> 8066 | TWU2: =TWS2+1 -> 8067 | TWW2: =TWU2+1 -> 8068 | TWY2: =TWW2+1 -> 8069 | TXA2: =TWY2+1 -> 8070 | TXC2: =TXA2+1 -> 8071 | TXE2: =TXC2+1 -> 8072 | TXG2: =TXE2+1 -> 8073 | TXI2: =TXG2+1 -> 8074 | TXK2: =TXI2+1 -> 8075 | TXM2: =TXK2+1 -> 8076 | TXO2: =TXM2+1 -> 8077 | TXQ2: =TXO2+1 -> 8078 | TXS2: =TXQ2+1 -> 8079 | TXU2: =TXS2+1 -> 8080 | TXW2: =TXU2+1 -> 8081 | TXY2: =TXW2+1 -> 8082 | TYA2: =TXY2+1 -> 8083 | TYC2: =TYA2+1 -> 8084 | TYE2: =TYC2+1 -> 8085 | TYG2: =TYE2+1 -> 8086 | TYI2: =TYG2+1 -> 8087 | TYK2: =TYI2+1 -> 8088 | TYM2: =TYK2+1 -> 8089 | TYO2: =TYM2+1 -> 8090 | TYQ2: =TYO2+1 -> 8091 | TYS2: =TYQ2+1 -> 8092 | TYU2: =TYS2+1 -> 8093 | TYW2: =TYU2+1 -> 8094 | TYY2: =TYW2+1 -> 8095 | TZA2: =TYY2+1 -> 8096 | TZC2: =TZA2+1 -> 8097 | TZE2: =TZC2+1 -> 8098 | TZG2: =TZE2+1 -> 8099 | TZI2: =TZG2+1 -> 8100 | TZK2: =TZI2+1 -> 8101 | TZM2: =TZK2+1 -> 8102 | TZO2: =TZM2+1 -> 8103 | TZQ2: =TZO2+1 -> 8104 | TZS2: =TZQ2+1 -> 8105 | TZU2: =TZS2+1 -> 8106 | TZW2: =TZU2+1 -> 8107 | TZY2: =TZW2+1 -> 8108 | UAA2: =TZY2+1 -> 8109 | UAC2: =UAA2+1 -> 8110 | UAE2: =UAC2+1 -> 8111 | UAG2: =UAE2+1 -> 8112 | UAI2: =UAG2+1 -> 8113 | UAK2: =UAI2+1 -> 8114 | UAM2: =UAK2+1 -> 8115 | UAO2: =UAM2+1 -> 8116 | UAQ2: =UAO2+1 -> 8117 | UAS2: =UAQ2+1 -> 8118 | UAU2: =UAS2+1 -> 8119 | UAW2: =UAU2+1 -> 8120 | UAY2: =UAW2+1 -> 8121 | UBA2: =UAY2+1 -> 8122 | UBC2: =UBA2+1 -> 8123 | UBE2: =UBC2+1 -> 8124 | UBG2: =UBE2+1 -> 8125 | UBI2: =UBG2+1 -> 8126 | UBK2: =UBI2+1 -> 8127 | UBM2: =UBK2+1 -> 8128 | UBO2: =UBM2+1 -> 8129 | UBQ2: =UBO2+1 -> 8130 | UBS2: =UBQ2+1 -> 8131 | UBU2: =UBS2+1 -> 8132 | UBW2: =UBU2+1 -> 8133 | UBY2: =UBW2+1 -> 8134 | UCA2: =UBY2+1 -> 8135 | UCC2: =UCA2+1 -> 8136 | UCE2: =UCC2+1 -> 8137 | UCG2: =UCE2+1 -> 8138 | UCI2: =UCG2+1 -> 8139 | UCK2: =UCI2+1 -> 8140 | UCM2: =UCK2+1 -> 8141 | UCO2: =UCM2+1 -> 8142 | UCQ2: =UCO2+1 -> 8143 | UCS2: =UCQ2+1 -> 8144 | UCU2: =UCS2+1 -> 8145 | UCW2: =UCU2+1 -> 8146 | UCY2: =UCW2+1 -> 8147 | UDA2: =UCY2+1 -> 8148 | UDC2: =UDA2+1 -> 8149 | UDE2: =UDC2+1 -> 8150 | UDG2: =UDE2+1 -> 8151 | UDI2: =UDG2+1 -> 8152 | UDK2: =UDI2+1 -> 8153 | UDM2: =UDK2+1 -> 8154 | UDO2: =UDM2+1 -> 8155 | UDQ2: =UDO2+1 -> 8156 | UDS2: =UDQ2+1 -> 8157 | UDU2: =UDS2+1 -> 8158 | UDW2: =UDU2+1 -> 8159 | UDY2: =UDW2+1 -> 8160 | UEA2: =UDY2+1 -> 8161 | UEC2: =UEA2+1 -> 8162 | UEE2: =UEC2+1 -> 8163 | UEG2: =UEE2+1 -> 8164 | UEI2: =UEG2+1 -> 8165 | UEK2: =UEI2+1 -> 8166 | UEM2: =UEK2+1 -> 8167 | UEO2: =UEM2+1 -> 8168 | UEQ2: =UEO2+1 -> 8169 | UES2: =UEQ2+1 -> 8170 | UEU2: =UES2+1 -> 8171 | UEW2: =UEU2+1 -> 8172 | UEY2: =UEW2+1 -> 8173 | UFA2: =UEY2+1 -> 8174 | UFC2: =UFA2+1 -> 8175 | UFE2: =UFC2+1 -> 8176 | UFG2: =UFE2+1 -> 8177 | UFI2: =UFG2+1 -> 8178 | UFK2: =UFI2+1 -> 8179 | UFM2: =UFK2+1 -> 8180 | UFO2: =UFM2+1 -> 8181 | UFQ2: =UFO2+1 -> 8182 | UFS2: =UFQ2+1 -> 8183 | UFU2: =UFS2+1 -> 8184 | UFW2: =UFU2+1 -> 8185 | UFY2: =UFW2+1 -> 8186 | UGA2: =UFY2+1 -> 8187 | UGC2: =UGA2+1 -> 8188 | UGE2: =UGC2+1 -> 8189 | UGG2: =UGE2+1 -> 8190 | UGI2: =UGG2+1 -> 8191 | UGK2: =UGI2+1 -> 8192 | UGM2: =UGK2+1 -> 8193 | UGO2: =UGM2+1 -> 8194 | UGQ2: =UGO2+1 -> 8195 | UGS2: =UGQ2+1 -> 8196 | UGU2: =UGS2+1 -> 8197 | UGW2: =UGU2+1 -> 8198 | UGY2: =UGW2+1 -> 8199 | UHA2: =UGY2+1 -> 8200 | UHC2: =UHA2+1 -> 8201 | UHE2: =UHC2+1 -> 8202 | UHG2: =UHE2+1 -> 8203 | UHI2: =UHG2+1 -> 8204 | UHK2: =UHI2+1 -> 8205 | UHM2: =UHK2+1 -> 8206 | UHO2: =UHM2+1 -> 8207 | UHQ2: =UHO2+1 -> 8208 | UHS2: =UHQ2+1 -> 8209 | UHU2: =UHS2+1 -> 8210 | UHW2: =UHU2+1 -> 8211 | UHY2: =UHW2+1 -> 8212 | UIA2: =UHY2+1 -> 8213 | UIC2: =UIA2+1 -> 8214 | UIE2: =UIC2+1 -> 8215 | UIG2: =UIE2+1 -> 8216 | UII2: =UIG2+1 -> 8217 | UIK2: =UII2+1 -> 8218 | UIM2: =UIK2+1 -> 8219 | UIO2: =UIM2+1 -> 8220 | UIQ2: =UIO2+1 -> 8221 | UIS2: =UIQ2+1 -> 8222 | UIU2: =UIS2+1 -> 8223 | UIW2: =UIU2+1 -> 8224 | UIY2: =UIW2+1 -> 8225 | UJA2: =UIY2+1 -> 8226 | UJC2: =UJA2+1 -> 8227 | UJE2: =UJC2+1 -> 8228 | UJG2: =UJE2+1 -> 8229 | UJI2: =UJG2+1 -> 8230 | UJK2: =UJI2+1 -> 8231 | UJM2: =UJK2+1 -> 8232 | UJO2: =UJM2+1 -> 8233 | UJQ2: =UJO2+1 -> 8234 | UJS2: =UJQ2+1 -> 8235 | UJU2: =UJS2+1 -> 8236 | UJW2: =UJU2+1 -> 8237 | UJY2: =UJW2+1 -> 8238 | UKA2: =UJY2+1 -> 8239 | UKC2: =UKA2+1 -> 8240 | UKE2: =UKC2+1 -> 8241 | UKG2: =UKE2+1 -> 8242 | UKI2: =UKG2+1 -> 8243 | UKK2: =UKI2+1 -> 8244 | UKM2: =UKK2+1 -> 8245 | UKO2: =UKM2+1 -> 8246 | UKQ2: =UKO2+1 -> 8247 | UKS2: =UKQ2+1 -> 8248 | UKU2: =UKS2+1 -> 8249 | UKW2: =UKU2+1 -> 8250 | UKY2: =UKW2+1 -> 8251 | ULA2: =UKY2+1 -> 8252 | ULC2: =ULA2+1 -> 8253 | ULE2: =ULC2+1 -> 8254 | ULG2: =ULE2+1 -> 8255 | ULI2: =ULG2+1 -> 8256 | ULK2: =ULI2+1 -> 8257 | ULM2: =ULK2+1 -> 8258 | ULO2: =ULM2+1 -> 8259 | ULQ2: =ULO2+1 -> 8260 | ULS2: =ULQ2+1 -> 8261 | ULU2: =ULS2+1 -> 8262 | ULW2: =ULU2+1 -> 8263 | ULY2: =ULW2+1 -> 8264 | UMA2: =ULY2+1 -> 8265 | UMC2: =UMA2+1 -> 8266 | UME2: =UMC2+1 -> 8267 | UMG2: =UME2+1 -> 8268 | UMI2: =UMG2+1 -> 8269 | UMK2: =UMI2+1 -> 8270 | UMM2: =UMK2+1 -> 8271 | UMO2: =UMM2+1 -> 8272 | UMQ2: =UMO2+1 -> 8273 | UMS2: =UMQ2+1 -> 8274 | UMU2: =UMS2+1 -> 8275 | UMW2: =UMU2+1 -> 8276 | UMY2: =UMW2+1 -> 8277 | UNA2: =UMY2+1 -> 8278 | UNC2: =UNA2+1 -> 8279 | UNE2: =UNC2+1 -> 8280 | UNG2: =UNE2+1 -> 8281 | UNI2: =UNG2+1 -> 8282 | UNK2: =UNI2+1 -> 8283 | UNM2: =UNK2+1 -> 8284 | UNO2: =UNM2+1 -> 8285 | UNQ2: =UNO2+1 -> 8286 | UNS2: =UNQ2+1 -> 8287 | UNU2: =UNS2+1 -> 8288 | UNW2: =UNU2+1 -> 8289 | UNY2: =UNW2+1 -> 8290 | UOA2: =UNY2+1 -> 8291 | UOC2: =UOA2+1 -> 8292 | UOE2: =UOC2+1 -> 8293 | UOG2: =UOE2+1 -> 8294 | UOI2: =UOG2+1 -> 8295 | UOK2: =UOI2+1 -> 8296 | UOM2: =UOK2+1 -> 8297 | UOO2: =UOM2+1 -> 8298 | UOQ2: =UOO2+1 -> 8299 | UOS2: =UOQ2+1 -> 8300 | UOU2: =UOS2+1 -> 8301 | UOW2: =UOU2+1 -> 8302 | UOY2: =UOW2+1 -> 8303 | UPA2: =UOY2+1 -> 8304 | UPC2: =UPA2+1 -> 8305 | UPE2: =UPC2+1 -> 8306 | UPG2: =UPE2+1 -> 8307 | UPI2: =UPG2+1 -> 8308 | UPK2: =UPI2+1 -> 8309 | UPM2: =UPK2+1 -> 8310 | UPO2: =UPM2+1 -> 8311 | UPQ2: =UPO2+1 -> 8312 | UPS2: =UPQ2+1 -> 8313 | UPU2: =UPS2+1 -> 8314 | UPW2: =UPU2+1 -> 8315 | UPY2: =UPW2+1 -> 8316 | UQA2: =UPY2+1 -> 8317 | UQC2: =UQA2+1 -> 8318 | UQE2: =UQC2+1 -> 8319 | UQG2: =UQE2+1 -> 8320 | UQI2: =UQG2+1 -> 8321 | UQK2: =UQI2+1 -> 8322 | UQM2: =UQK2+1 -> 8323 | UQO2: =UQM2+1 -> 8324 | UQQ2: =UQO2+1 -> 8325 | UQS2: =UQQ2+1 -> 8326 | UQU2: =UQS2+1 -> 8327 | UQW2: =UQU2+1 -> 8328 | UQY2: =UQW2+1 -> 8329 | URA2: =UQY2+1 -> 8330 | URC2: =URA2+1 -> 8331 | URE2: =URC2+1 -> 8332 | URG2: =URE2+1 -> 8333 | URI2: =URG2+1 -> 8334 | URK2: =URI2+1 -> 8335 | URM2: =URK2+1 -> 8336 | URO2: =URM2+1 -> 8337 | URQ2: =URO2+1 -> 8338 | URS2: =URQ2+1 -> 8339 | URU2: =URS2+1 -> 8340 | URW2: =URU2+1 -> 8341 | URY2: =URW2+1 -> 8342 | USA2: =URY2+1 -> 8343 | USC2: =USA2+1 -> 8344 | USE2: =USC2+1 -> 8345 | USG2: =USE2+1 -> 8346 | USI2: =USG2+1 -> 8347 | USK2: =USI2+1 -> 8348 | USM2: =USK2+1 -> 8349 | USO2: =USM2+1 -> 8350 | USQ2: =USO2+1 -> 8351 | USS2: =USQ2+1 -> 8352 | USU2: =USS2+1 -> 8353 | USW2: =USU2+1 -> 8354 | USY2: =USW2+1 -> 8355 | UTA2: =USY2+1 -> 8356 | UTC2: =UTA2+1 -> 8357 | UTE2: =UTC2+1 -> 8358 | UTG2: =UTE2+1 -> 8359 | UTI2: =UTG2+1 -> 8360 | UTK2: =UTI2+1 -> 8361 | UTM2: =UTK2+1 -> 8362 | UTO2: =UTM2+1 -> 8363 | UTQ2: =UTO2+1 -> 8364 | UTS2: =UTQ2+1 -> 8365 | UTU2: =UTS2+1 -> 8366 | UTW2: =UTU2+1 -> 8367 | UTY2: =UTW2+1 -> 8368 | UUA2: =UTY2+1 -> 8369 | UUC2: =UUA2+1 -> 8370 | UUE2: =UUC2+1 -> 8371 | UUG2: =UUE2+1 -> 8372 | UUI2: =UUG2+1 -> 8373 | UUK2: =UUI2+1 -> 8374 | UUM2: =UUK2+1 -> 8375 | UUO2: =UUM2+1 -> 8376 | UUQ2: =UUO2+1 -> 8377 | UUS2: =UUQ2+1 -> 8378 | UUU2: =UUS2+1 -> 8379 | UUW2: =UUU2+1 -> 8380 | UUY2: =UUW2+1 -> 8381 | UVA2: =UUY2+1 -> 8382 | UVC2: =UVA2+1 -> 8383 | UVE2: =UVC2+1 -> 8384 | UVG2: =UVE2+1 -> 8385 | UVI2: =UVG2+1 -> 8386 | UVK2: =UVI2+1 -> 8387 | UVM2: =UVK2+1 -> 8388 | UVO2: =UVM2+1 -> 8389 | UVQ2: =UVO2+1 -> 8390 | UVS2: =UVQ2+1 -> 8391 | UVU2: =UVS2+1 -> 8392 | UVW2: =UVU2+1 -> 8393 | UVY2: =UVW2+1 -> 8394 | UWA2: =UVY2+1 -> 8395 | UWC2: =UWA2+1 -> 8396 | UWE2: =UWC2+1 -> 8397 | UWG2: =UWE2+1 -> 8398 | UWI2: =UWG2+1 -> 8399 | UWK2: =UWI2+1 -> 8400 | UWM2: =UWK2+1 -> 8401 | UWO2: =UWM2+1 -> 8402 | UWQ2: =UWO2+1 -> 8403 | UWS2: =UWQ2+1 -> 8404 | UWU2: =UWS2+1 -> 8405 | UWW2: =UWU2+1 -> 8406 | UWY2: =UWW2+1 -> 8407 | UXA2: =UWY2+1 -> 8408 | UXC2: =UXA2+1 -> 8409 | UXE2: =UXC2+1 -> 8410 | UXG2: =UXE2+1 -> 8411 | UXI2: =UXG2+1 -> 8412 | UXK2: =UXI2+1 -> 8413 | UXM2: =UXK2+1 -> 8414 | UXO2: =UXM2+1 -> 8415 | UXQ2: =UXO2+1 -> 8416 | UXS2: =UXQ2+1 -> 8417 | UXU2: =UXS2+1 -> 8418 | UXW2: =UXU2+1 -> 8419 | UXY2: =UXW2+1 -> 8420 | UYA2: =UXY2+1 -> 8421 | UYC2: =UYA2+1 -> 8422 | UYE2: =UYC2+1 -> 8423 | UYG2: =UYE2+1 -> 8424 | UYI2: =UYG2+1 -> 8425 | UYK2: =UYI2+1 -> 8426 | UYM2: =UYK2+1 -> 8427 | UYO2: =UYM2+1 -> 8428 | UYQ2: =UYO2+1 -> 8429 | UYS2: =UYQ2+1 -> 8430 | UYU2: =UYS2+1 -> 8431 | UYW2: =UYU2+1 -> 8432 | UYY2: =UYW2+1 -> 8433 | UZA2: =UYY2+1 -> 8434 | UZC2: =UZA2+1 -> 8435 | UZE2: =UZC2+1 -> 8436 | UZG2: =UZE2+1 -> 8437 | UZI2: =UZG2+1 -> 8438 | UZK2: =UZI2+1 -> 8439 | UZM2: =UZK2+1 -> 8440 | UZO2: =UZM2+1 -> 8441 | UZQ2: =UZO2+1 -> 8442 | UZS2: =UZQ2+1 -> 8443 | UZU2: =UZS2+1 -> 8444 | UZW2: =UZU2+1 -> 8445 | UZY2: =UZW2+1 -> 8446 | VAA2: =UZY2+1 -> 8447 | VAC2: =VAA2+1 -> 8448 | VAE2: =VAC2+1 -> 8449 | VAG2: =VAE2+1 -> 8450 | VAI2: =VAG2+1 -> 8451 | VAK2: =VAI2+1 -> 8452 | VAM2: =VAK2+1 -> 8453 | VAO2: =VAM2+1 -> 8454 | VAQ2: =VAO2+1 -> 8455 | VAS2: =VAQ2+1 -> 8456 | VAU2: =VAS2+1 -> 8457 | VAW2: =VAU2+1 -> 8458 | VAY2: =VAW2+1 -> 8459 | VBA2: =VAY2+1 -> 8460 | VBC2: =VBA2+1 -> 8461 | VBE2: =VBC2+1 -> 8462 | VBG2: =VBE2+1 -> 8463 | VBI2: =VBG2+1 -> 8464 | VBK2: =VBI2+1 -> 8465 | VBM2: =VBK2+1 -> 8466 | VBO2: =VBM2+1 -> 8467 | VBQ2: =VBO2+1 -> 8468 | VBS2: =VBQ2+1 -> 8469 | VBU2: =VBS2+1 -> 8470 | VBW2: =VBU2+1 -> 8471 | VBY2: =VBW2+1 -> 8472 | VCA2: =VBY2+1 -> 8473 | VCC2: =VCA2+1 -> 8474 | VCE2: =VCC2+1 -> 8475 | VCG2: =VCE2+1 -> 8476 | VCI2: =VCG2+1 -> 8477 | VCK2: =VCI2+1 -> 8478 | VCM2: =VCK2+1 -> 8479 | VCO2: =VCM2+1 -> 8480 | VCQ2: =VCO2+1 -> 8481 | VCS2: =VCQ2+1 -> 8482 | VCU2: =VCS2+1 -> 8483 | VCW2: =VCU2+1 -> 8484 | VCY2: =VCW2+1 -> 8485 | VDA2: =VCY2+1 -> 8486 | VDC2: =VDA2+1 -> 8487 | VDE2: =VDC2+1 -> 8488 | VDG2: =VDE2+1 -> 8489 | VDI2: =VDG2+1 -> 8490 | VDK2: =VDI2+1 -> 8491 | VDM2: =VDK2+1 -> 8492 | VDO2: =VDM2+1 -> 8493 | VDQ2: =VDO2+1 -> 8494 | VDS2: =VDQ2+1 -> 8495 | VDU2: =VDS2+1 -> 8496 | VDW2: =VDU2+1 -> 8497 | VDY2: =VDW2+1 -> 8498 | VEA2: =VDY2+1 -> 8499 | VEC2: =VEA2+1 -> 8500 | VEE2: =VEC2+1 -> 8501 | VEG2: =VEE2+1 -> 8502 | VEI2: =VEG2+1 -> 8503 | VEK2: =VEI2+1 -> 8504 | VEM2: =VEK2+1 -> 8505 | VEO2: =VEM2+1 -> 8506 | VEQ2: =VEO2+1 -> 8507 | VES2: =VEQ2+1 -> 8508 | VEU2: =VES2+1 -> 8509 | VEW2: =VEU2+1 -> 8510 | VEY2: =VEW2+1 -> 8511 | VFA2: =VEY2+1 -> 8512 | VFC2: =VFA2+1 -> 8513 | VFE2: =VFC2+1 -> 8514 | VFG2: =VFE2+1 -> 8515 | VFI2: =VFG2+1 -> 8516 | VFK2: =VFI2+1 -> 8517 | VFM2: =VFK2+1 -> 8518 | VFO2: =VFM2+1 -> 8519 | VFQ2: =VFO2+1 -> 8520 | VFS2: =VFQ2+1 -> 8521 | VFU2: =VFS2+1 -> 8522 | VFW2: =VFU2+1 -> 8523 | VFY2: =VFW2+1 -> 8524 | VGA2: =VFY2+1 -> 8525 | VGC2: =VGA2+1 -> 8526 | VGE2: =VGC2+1 -> 8527 | VGG2: =VGE2+1 -> 8528 | VGI2: =VGG2+1 -> 8529 | VGK2: =VGI2+1 -> 8530 | VGM2: =VGK2+1 -> 8531 | VGO2: =VGM2+1 -> 8532 | VGQ2: =VGO2+1 -> 8533 | VGS2: =VGQ2+1 -> 8534 | VGU2: =VGS2+1 -> 8535 | VGW2: =VGU2+1 -> 8536 | VGY2: =VGW2+1 -> 8537 | VHA2: =VGY2+1 -> 8538 | VHC2: =VHA2+1 -> 8539 | VHE2: =VHC2+1 -> 8540 | VHG2: =VHE2+1 -> 8541 | VHI2: =VHG2+1 -> 8542 | VHK2: =VHI2+1 -> 8543 | VHM2: =VHK2+1 -> 8544 | VHO2: =VHM2+1 -> 8545 | VHQ2: =VHO2+1 -> 8546 | VHS2: =VHQ2+1 -> 8547 | VHU2: =VHS2+1 -> 8548 | VHW2: =VHU2+1 -> 8549 | VHY2: =VHW2+1 -> 8550 | VIA2: =VHY2+1 -> 8551 | VIC2: =VIA2+1 -> 8552 | VIE2: =VIC2+1 -> 8553 | VIG2: =VIE2+1 -> 8554 | VII2: =VIG2+1 -> 8555 | VIK2: =VII2+1 -> 8556 | VIM2: =VIK2+1 -> 8557 | VIO2: =VIM2+1 -> 8558 | VIQ2: =VIO2+1 -> 8559 | VIS2: =VIQ2+1 -> 8560 | VIU2: =VIS2+1 -> 8561 | VIW2: =VIU2+1 -> 8562 | VIY2: =VIW2+1 -> 8563 | VJA2: =VIY2+1 -> 8564 | VJC2: =VJA2+1 -> 8565 | VJE2: =VJC2+1 -> 8566 | VJG2: =VJE2+1 -> 8567 | VJI2: =VJG2+1 -> 8568 | VJK2: =VJI2+1 -> 8569 | VJM2: =VJK2+1 -> 8570 | VJO2: =VJM2+1 -> 8571 | VJQ2: =VJO2+1 -> 8572 | VJS2: =VJQ2+1 -> 8573 | VJU2: =VJS2+1 -> 8574 | VJW2: =VJU2+1 -> 8575 | VJY2: =VJW2+1 -> 8576 | VKA2: =VJY2+1 -> 8577 | VKC2: =VKA2+1 -> 8578 | VKE2: =VKC2+1 -> 8579 | VKG2: =VKE2+1 -> 8580 | VKI2: =VKG2+1 -> 8581 | VKK2: =VKI2+1 -> 8582 | VKM2: =VKK2+1 -> 8583 | VKO2: =VKM2+1 -> 8584 | VKQ2: =VKO2+1 -> 8585 | VKS2: =VKQ2+1 -> 8586 | VKU2: =VKS2+1 -> 8587 | VKW2: =VKU2+1 -> 8588 | VKY2: =VKW2+1 -> 8589 | VLA2: =VKY2+1 -> 8590 | VLC2: =VLA2+1 -> 8591 | VLE2: =VLC2+1 -> 8592 | VLG2: =VLE2+1 -> 8593 | VLI2: =VLG2+1 -> 8594 | VLK2: =VLI2+1 -> 8595 | VLM2: =VLK2+1 -> 8596 | VLO2: =VLM2+1 -> 8597 | VLQ2: =VLO2+1 -> 8598 | VLS2: =VLQ2+1 -> 8599 | VLU2: =VLS2+1 -> 8600 | VLW2: =VLU2+1 -> 8601 | VLY2: =VLW2+1 -> 8602 | VMA2: =VLY2+1 -> 8603 | VMC2: =VMA2+1 -> 8604 | VME2: =VMC2+1 -> 8605 | VMG2: =VME2+1 -> 8606 | VMI2: =VMG2+1 -> 8607 | VMK2: =VMI2+1 -> 8608 | VMM2: =VMK2+1 -> 8609 | VMO2: =VMM2+1 -> 8610 | VMQ2: =VMO2+1 -> 8611 | VMS2: =VMQ2+1 -> 8612 | VMU2: =VMS2+1 -> 8613 | VMW2: =VMU2+1 -> 8614 | VMY2: =VMW2+1 -> 8615 | VNA2: =VMY2+1 -> 8616 | VNC2: =VNA2+1 -> 8617 | VNE2: =VNC2+1 -> 8618 | VNG2: =VNE2+1 -> 8619 | VNI2: =VNG2+1 -> 8620 | VNK2: =VNI2+1 -> 8621 | VNM2: =VNK2+1 -> 8622 | VNO2: =VNM2+1 -> 8623 | VNQ2: =VNO2+1 -> 8624 | VNS2: =VNQ2+1 -> 8625 | VNU2: =VNS2+1 -> 8626 | VNW2: =VNU2+1 -> 8627 | VNY2: =VNW2+1 -> 8628 | VOA2: =VNY2+1 -> 8629 | VOC2: =VOA2+1 -> 8630 | VOE2: =VOC2+1 -> 8631 | VOG2: =VOE2+1 -> 8632 | VOI2: =VOG2+1 -> 8633 | VOK2: =VOI2+1 -> 8634 | VOM2: =VOK2+1 -> 8635 | VOO2: =VOM2+1 -> 8636 | VOQ2: =VOO2+1 -> 8637 | VOS2: =VOQ2+1 -> 8638 | VOU2: =VOS2+1 -> 8639 | VOW2: =VOU2+1 -> 8640 | VOY2: =VOW2+1 -> 8641 | VPA2: =VOY2+1 -> 8642 | VPC2: =VPA2+1 -> 8643 | VPE2: =VPC2+1 -> 8644 | VPG2: =VPE2+1 -> 8645 | VPI2: =VPG2+1 -> 8646 | VPK2: =VPI2+1 -> 8647 | VPM2: =VPK2+1 -> 8648 | VPO2: =VPM2+1 -> 8649 | VPQ2: =VPO2+1 -> 8650 | VPS2: =VPQ2+1 -> 8651 | VPU2: =VPS2+1 -> 8652 | VPW2: =VPU2+1 -> 8653 | VPY2: =VPW2+1 -> 8654 | VQA2: =VPY2+1 -> 8655 | VQC2: =VQA2+1 -> 8656 | VQE2: =VQC2+1 -> 8657 | VQG2: =VQE2+1 -> 8658 | VQI2: =VQG2+1 -> 8659 | VQK2: =VQI2+1 -> 8660 | VQM2: =VQK2+1 -> 8661 | VQO2: =VQM2+1 -> 8662 | VQQ2: =VQO2+1 -> 8663 | VQS2: =VQQ2+1 -> 8664 | VQU2: =VQS2+1 -> 8665 | VQW2: =VQU2+1 -> 8666 | VQY2: =VQW2+1 -> 8667 | VRA2: =VQY2+1 -> 8668 | VRC2: =VRA2+1 -> 8669 | VRE2: =VRC2+1 -> 8670 | VRG2: =VRE2+1 -> 8671 | VRI2: =VRG2+1 -> 8672 | VRK2: =VRI2+1 -> 8673 | VRM2: =VRK2+1 -> 8674 | VRO2: =VRM2+1 -> 8675 | VRQ2: =VRO2+1 -> 8676 | VRS2: =VRQ2+1 -> 8677 | VRU2: =VRS2+1 -> 8678 | VRW2: =VRU2+1 -> 8679 | VRY2: =VRW2+1 -> 8680 | VSA2: =VRY2+1 -> 8681 | VSC2: =VSA2+1 -> 8682 | VSE2: =VSC2+1 -> 8683 | VSG2: =VSE2+1 -> 8684 | VSI2: =VSG2+1 -> 8685 | VSK2: =VSI2+1 -> 8686 | VSM2: =VSK2+1 -> 8687 | VSO2: =VSM2+1 -> 8688 | VSQ2: =VSO2+1 -> 8689 | VSS2: =VSQ2+1 -> 8690 | VSU2: =VSS2+1 -> 8691 | VSW2: =VSU2+1 -> 8692 | VSY2: =VSW2+1 -> 8693 | VTA2: =VSY2+1 -> 8694 | VTC2: =VTA2+1 -> 8695 | VTE2: =VTC2+1 -> 8696 | VTG2: =VTE2+1 -> 8697 | VTI2: =VTG2+1 -> 8698 | VTK2: =VTI2+1 -> 8699 | VTM2: =VTK2+1 -> 8700 | VTO2: =VTM2+1 -> 8701 | VTQ2: =VTO2+1 -> 8702 | VTS2: =VTQ2+1 -> 8703 | VTU2: =VTS2+1 -> 8704 | VTW2: =VTU2+1 -> 8705 | VTY2: =VTW2+1 -> 8706 | VUA2: =VTY2+1 -> 8707 | VUC2: =VUA2+1 -> 8708 | VUE2: =VUC2+1 -> 8709 | VUG2: =VUE2+1 -> 8710 | VUI2: =VUG2+1 -> 8711 | VUK2: =VUI2+1 -> 8712 | VUM2: =VUK2+1 -> 8713 | VUO2: =VUM2+1 -> 8714 | VUQ2: =VUO2+1 -> 8715 | VUS2: =VUQ2+1 -> 8716 | VUU2: =VUS2+1 -> 8717 | VUW2: =VUU2+1 -> 8718 | VUY2: =VUW2+1 -> 8719 | VVA2: =VUY2+1 -> 8720 | VVC2: =VVA2+1 -> 8721 | VVE2: =VVC2+1 -> 8722 | VVG2: =VVE2+1 -> 8723 | VVI2: =VVG2+1 -> 8724 | VVK2: =VVI2+1 -> 8725 | VVM2: =VVK2+1 -> 8726 | VVO2: =VVM2+1 -> 8727 | VVQ2: =VVO2+1 -> 8728 | VVS2: =VVQ2+1 -> 8729 | VVU2: =VVS2+1 -> 8730 | VVW2: =VVU2+1 -> 8731 | VVY2: =VVW2+1 -> 8732 | VWA2: =VVY2+1 -> 8733 | VWC2: =VWA2+1 -> 8734 | VWE2: =VWC2+1 -> 8735 | VWG2: =VWE2+1 -> 8736 | VWI2: =VWG2+1 -> 8737 | VWK2: =VWI2+1 -> 8738 | VWM2: =VWK2+1 -> 8739 | VWO2: =VWM2+1 -> 8740 | VWQ2: =VWO2+1 -> 8741 | VWS2: =VWQ2+1 -> 8742 | VWU2: =VWS2+1 -> 8743 | VWW2: =VWU2+1 -> 8744 | VWY2: =VWW2+1 -> 8745 | VXA2: =VWY2+1 -> 8746 | VXC2: =VXA2+1 -> 8747 | VXE2: =VXC2+1 -> 8748 | VXG2: =VXE2+1 -> 8749 | VXI2: =VXG2+1 -> 8750 | VXK2: =VXI2+1 -> 8751 | VXM2: =VXK2+1 -> 8752 | VXO2: =VXM2+1 -> 8753 | VXQ2: =VXO2+1 -> 8754 | VXS2: =VXQ2+1 -> 8755 | VXU2: =VXS2+1 -> 8756 | VXW2: =VXU2+1 -> 8757 | VXY2: =VXW2+1 -> 8758 | VYA2: =VXY2+1 -> 8759 | VYC2: =VYA2+1 -> 8760 | VYE2: =VYC2+1 -> 8761 | VYG2: =VYE2+1 -> 8762 | VYI2: =VYG2+1 -> 8763 | VYK2: =VYI2+1 -> 8764 | VYM2: =VYK2+1 -> 8765 | VYO2: =VYM2+1 -> 8766 | VYQ2: =VYO2+1 -> 8767 | VYS2: =VYQ2+1 -> 8768 | VYU2: =VYS2+1 -> 8769 | VYW2: =VYU2+1 -> 8770 | VYY2: =VYW2+1 -> 8771 | VZA2: =VYY2+1 -> 8772 | VZC2: =VZA2+1 -> 8773 | VZE2: =VZC2+1 -> 8774 | VZG2: =VZE2+1 -> 8775 | VZI2: =VZG2+1 -> 8776 | VZK2: =VZI2+1 -> 8777 | VZM2: =VZK2+1 -> 8778 | VZO2: =VZM2+1 -> 8779 | VZQ2: =VZO2+1 -> 8780 | VZS2: =VZQ2+1 -> 8781 | VZU2: =VZS2+1 -> 8782 | VZW2: =VZU2+1 -> 8783 | VZY2: =VZW2+1 -> 8784 | WAA2: =VZY2+1 -> 8785 | WAC2: =WAA2+1 -> 8786 | WAE2: =WAC2+1 -> 8787 | WAG2: =WAE2+1 -> 8788 | WAI2: =WAG2+1 -> 8789 | WAK2: =WAI2+1 -> 8790 | WAM2: =WAK2+1 -> 8791 | WAO2: =WAM2+1 -> 8792 | WAQ2: =WAO2+1 -> 8793 | WAS2: =WAQ2+1 -> 8794 | WAU2: =WAS2+1 -> 8795 | WAW2: =WAU2+1 -> 8796 | WAY2: =WAW2+1 -> 8797 | WBA2: =WAY2+1 -> 8798 | WBC2: =WBA2+1 -> 8799 | WBE2: =WBC2+1 -> 8800 | WBG2: =WBE2+1 -> 8801 | WBI2: =WBG2+1 -> 8802 | WBK2: =WBI2+1 -> 8803 | WBM2: =WBK2+1 -> 8804 | WBO2: =WBM2+1 -> 8805 | WBQ2: =WBO2+1 -> 8806 | WBS2: =WBQ2+1 -> 8807 | WBU2: =WBS2+1 -> 8808 | WBW2: =WBU2+1 -> 8809 | WBY2: =WBW2+1 -> 8810 | WCA2: =WBY2+1 -> 8811 | WCC2: =WCA2+1 -> 8812 | WCE2: =WCC2+1 -> 8813 | WCG2: =WCE2+1 -> 8814 | WCI2: =WCG2+1 -> 8815 | WCK2: =WCI2+1 -> 8816 | WCM2: =WCK2+1 -> 8817 | WCO2: =WCM2+1 -> 8818 | WCQ2: =WCO2+1 -> 8819 | WCS2: =WCQ2+1 -> 8820 | WCU2: =WCS2+1 -> 8821 | WCW2: =WCU2+1 -> 8822 | WCY2: =WCW2+1 -> 8823 | WDA2: =WCY2+1 -> 8824 | WDC2: =WDA2+1 -> 8825 | WDE2: =WDC2+1 -> 8826 | WDG2: =WDE2+1 -> 8827 | WDI2: =WDG2+1 -> 8828 | WDK2: =WDI2+1 -> 8829 | WDM2: =WDK2+1 -> 8830 | WDO2: =WDM2+1 -> 8831 | WDQ2: =WDO2+1 -> 8832 | WDS2: =WDQ2+1 -> 8833 | WDU2: =WDS2+1 -> 8834 | WDW2: =WDU2+1 -> 8835 | WDY2: =WDW2+1 -> 8836 | WEA2: =WDY2+1 -> 8837 | WEC2: =WEA2+1 -> 8838 | WEE2: =WEC2+1 -> 8839 | WEG2: =WEE2+1 -> 8840 | WEI2: =WEG2+1 -> 8841 | WEK2: =WEI2+1 -> 8842 | WEM2: =WEK2+1 -> 8843 | WEO2: =WEM2+1 -> 8844 | WEQ2: =WEO2+1 -> 8845 | WES2: =WEQ2+1 -> 8846 | WEU2: =WES2+1 -> 8847 | WEW2: =WEU2+1 -> 8848 | WEY2: =WEW2+1 -> 8849 | WFA2: =WEY2+1 -> 8850 | WFC2: =WFA2+1 -> 8851 | WFE2: =WFC2+1 -> 8852 | WFG2: =WFE2+1 -> 8853 | WFI2: =WFG2+1 -> 8854 | WFK2: =WFI2+1 -> 8855 | WFM2: =WFK2+1 -> 8856 | WFO2: =WFM2+1 -> 8857 | WFQ2: =WFO2+1 -> 8858 | WFS2: =WFQ2+1 -> 8859 | WFU2: =WFS2+1 -> 8860 | WFW2: =WFU2+1 -> 8861 | WFY2: =WFW2+1 -> 8862 | WGA2: =WFY2+1 -> 8863 | WGC2: =WGA2+1 -> 8864 | WGE2: =WGC2+1 -> 8865 | WGG2: =WGE2+1 -> 8866 | WGI2: =WGG2+1 -> 8867 | WGK2: =WGI2+1 -> 8868 | WGM2: =WGK2+1 -> 8869 | WGO2: =WGM2+1 -> 8870 | WGQ2: =WGO2+1 -> 8871 | WGS2: =WGQ2+1 -> 8872 | WGU2: =WGS2+1 -> 8873 | WGW2: =WGU2+1 -> 8874 | WGY2: =WGW2+1 -> 8875 | WHA2: =WGY2+1 -> 8876 | WHC2: =WHA2+1 -> 8877 | WHE2: =WHC2+1 -> 8878 | WHG2: =WHE2+1 -> 8879 | WHI2: =WHG2+1 -> 8880 | WHK2: =WHI2+1 -> 8881 | WHM2: =WHK2+1 -> 8882 | WHO2: =WHM2+1 -> 8883 | WHQ2: =WHO2+1 -> 8884 | WHS2: =WHQ2+1 -> 8885 | WHU2: =WHS2+1 -> 8886 | WHW2: =WHU2+1 -> 8887 | WHY2: =WHW2+1 -> 8888 | WIA2: =WHY2+1 -> 8889 | WIC2: =WIA2+1 -> 8890 | WIE2: =WIC2+1 -> 8891 | WIG2: =WIE2+1 -> 8892 | WII2: =WIG2+1 -> 8893 | WIK2: =WII2+1 -> 8894 | WIM2: =WIK2+1 -> 8895 | WIO2: =WIM2+1 -> 8896 | WIQ2: =WIO2+1 -> 8897 | WIS2: =WIQ2+1 -> 8898 | WIU2: =WIS2+1 -> 8899 | WIW2: =WIU2+1 -> 8900 | WIY2: =WIW2+1 -> 8901 | WJA2: =WIY2+1 -> 8902 | WJC2: =WJA2+1 -> 8903 | WJE2: =WJC2+1 -> 8904 | WJG2: =WJE2+1 -> 8905 | WJI2: =WJG2+1 -> 8906 | WJK2: =WJI2+1 -> 8907 | WJM2: =WJK2+1 -> 8908 | WJO2: =WJM2+1 -> 8909 | WJQ2: =WJO2+1 -> 8910 | WJS2: =WJQ2+1 -> 8911 | WJU2: =WJS2+1 -> 8912 | WJW2: =WJU2+1 -> 8913 | WJY2: =WJW2+1 -> 8914 | WKA2: =WJY2+1 -> 8915 | WKC2: =WKA2+1 -> 8916 | WKE2: =WKC2+1 -> 8917 | WKG2: =WKE2+1 -> 8918 | WKI2: =WKG2+1 -> 8919 | WKK2: =WKI2+1 -> 8920 | WKM2: =WKK2+1 -> 8921 | WKO2: =WKM2+1 -> 8922 | WKQ2: =WKO2+1 -> 8923 | WKS2: =WKQ2+1 -> 8924 | WKU2: =WKS2+1 -> 8925 | WKW2: =WKU2+1 -> 8926 | WKY2: =WKW2+1 -> 8927 | WLA2: =WKY2+1 -> 8928 | WLC2: =WLA2+1 -> 8929 | WLE2: =WLC2+1 -> 8930 | WLG2: =WLE2+1 -> 8931 | WLI2: =WLG2+1 -> 8932 | WLK2: =WLI2+1 -> 8933 | WLM2: =WLK2+1 -> 8934 | WLO2: =WLM2+1 -> 8935 | WLQ2: =WLO2+1 -> 8936 | WLS2: =WLQ2+1 -> 8937 | WLU2: =WLS2+1 -> 8938 | WLW2: =WLU2+1 -> 8939 | WLY2: =WLW2+1 -> 8940 | WMA2: =WLY2+1 -> 8941 | WMC2: =WMA2+1 -> 8942 | WME2: =WMC2+1 -> 8943 | WMG2: =WME2+1 -> 8944 | WMI2: =WMG2+1 -> 8945 | WMK2: =WMI2+1 -> 8946 | WMM2: =WMK2+1 -> 8947 | WMO2: =WMM2+1 -> 8948 | WMQ2: =WMO2+1 -> 8949 | WMS2: =WMQ2+1 -> 8950 | WMU2: =WMS2+1 -> 8951 | WMW2: =WMU2+1 -> 8952 | WMY2: =WMW2+1 -> 8953 | WNA2: =WMY2+1 -> 8954 | WNC2: =WNA2+1 -> 8955 | WNE2: =WNC2+1 -> 8956 | WNG2: =WNE2+1 -> 8957 | WNI2: =WNG2+1 -> 8958 | WNK2: =WNI2+1 -> 8959 | WNM2: =WNK2+1 -> 8960 | WNO2: =WNM2+1 -> 8961 | WNQ2: =WNO2+1 -> 8962 | WNS2: =WNQ2+1 -> 8963 | WNU2: =WNS2+1 -> 8964 | WNW2: =WNU2+1 -> 8965 | WNY2: =WNW2+1 -> 8966 | WOA2: =WNY2+1 -> 8967 | WOC2: =WOA2+1 -> 8968 | WOE2: =WOC2+1 -> 8969 | WOG2: =WOE2+1 -> 8970 | WOI2: =WOG2+1 -> 8971 | WOK2: =WOI2+1 -> 8972 | WOM2: =WOK2+1 -> 8973 | WOO2: =WOM2+1 -> 8974 | WOQ2: =WOO2+1 -> 8975 | WOS2: =WOQ2+1 -> 8976 | WOU2: =WOS2+1 -> 8977 | WOW2: =WOU2+1 -> 8978 | WOY2: =WOW2+1 -> 8979 | WPA2: =WOY2+1 -> 8980 | WPC2: =WPA2+1 -> 8981 | WPE2: =WPC2+1 -> 8982 | WPG2: =WPE2+1 -> 8983 | WPI2: =WPG2+1 -> 8984 | WPK2: =WPI2+1 -> 8985 | WPM2: =WPK2+1 -> 8986 | WPO2: =WPM2+1 -> 8987 | WPQ2: =WPO2+1 -> 8988 | WPS2: =WPQ2+1 -> 8989 | WPU2: =WPS2+1 -> 8990 | WPW2: =WPU2+1 -> 8991 | WPY2: =WPW2+1 -> 8992 | WQA2: =WPY2+1 -> 8993 | WQC2: =WQA2+1 -> 8994 | WQE2: =WQC2+1 -> 8995 | WQG2: =WQE2+1 -> 8996 | WQI2: =WQG2+1 -> 8997 | WQK2: =WQI2+1 -> 8998 | WQM2: =WQK2+1 -> 8999 | WQO2: =WQM2+1 -> 9000 | WQQ2: =WQO2+1 -> 9001 | WQS2: =WQQ2+1 -> 9002 | WQU2: =WQS2+1 -> 9003 | WQW2: =WQU2+1 -> 9004 | WQY2: =WQW2+1 -> 9005 | WRA2: =WQY2+1 -> 9006 | WRC2: =WRA2+1 -> 9007 | WRE2: =WRC2+1 -> 9008 | WRG2: =WRE2+1 -> 9009 | WRI2: =WRG2+1 -> 9010 | WRK2: =WRI2+1 -> 9011 | WRM2: =WRK2+1 -> 9012 | WRO2: =WRM2+1 -> 9013 | WRQ2: =WRO2+1 -> 9014 | WRS2: =WRQ2+1 -> 9015 | WRU2: =WRS2+1 -> 9016 | WRW2: =WRU2+1 -> 9017 | WRY2: =WRW2+1 -> 9018 | WSA2: =WRY2+1 -> 9019 | WSC2: =WSA2+1 -> 9020 | WSE2: =WSC2+1 -> 9021 | WSG2: =WSE2+1 -> 9022 | WSI2: =WSG2+1 -> 9023 | WSK2: =WSI2+1 -> 9024 | WSM2: =WSK2+1 -> 9025 | WSO2: =WSM2+1 -> 9026 | WSQ2: =WSO2+1 -> 9027 | WSS2: =WSQ2+1 -> 9028 | WSU2: =WSS2+1 -> 9029 | WSW2: =WSU2+1 -> 9030 | WSY2: =WSW2+1 -> 9031 | WTA2: =WSY2+1 -> 9032 | WTC2: =WTA2+1 -> 9033 | WTE2: =WTC2+1 -> 9034 | WTG2: =WTE2+1 -> 9035 | WTI2: =WTG2+1 -> 9036 | WTK2: =WTI2+1 -> 9037 | WTM2: =WTK2+1 -> 9038 | WTO2: =WTM2+1 -> 9039 | WTQ2: =WTO2+1 -> 9040 | WTS2: =WTQ2+1 -> 9041 | WTU2: =WTS2+1 -> 9042 | WTW2: =WTU2+1 -> 9043 | WTY2: =WTW2+1 -> 9044 | WUA2: =WTY2+1 -> 9045 | WUC2: =WUA2+1 -> 9046 | WUE2: =WUC2+1 -> 9047 | WUG2: =WUE2+1 -> 9048 | WUI2: =WUG2+1 -> 9049 | WUK2: =WUI2+1 -> 9050 | WUM2: =WUK2+1 -> 9051 | WUO2: =WUM2+1 -> 9052 | WUQ2: =WUO2+1 -> 9053 | WUS2: =WUQ2+1 -> 9054 | WUU2: =WUS2+1 -> 9055 | WUW2: =WUU2+1 -> 9056 | WUY2: =WUW2+1 -> 9057 | WVA2: =WUY2+1 -> 9058 | WVC2: =WVA2+1 -> 9059 | WVE2: =WVC2+1 -> 9060 | WVG2: =WVE2+1 -> 9061 | WVI2: =WVG2+1 -> 9062 | WVK2: =WVI2+1 -> 9063 | WVM2: =WVK2+1 -> 9064 | WVO2: =WVM2+1 -> 9065 | WVQ2: =WVO2+1 -> 9066 | WVS2: =WVQ2+1 -> 9067 | WVU2: =WVS2+1 -> 9068 | WVW2: =WVU2+1 -> 9069 | WVY2: =WVW2+1 -> 9070 | WWA2: =WVY2+1 -> 9071 | WWC2: =WWA2+1 -> 9072 | WWE2: =WWC2+1 -> 9073 | WWG2: =WWE2+1 -> 9074 | WWI2: =WWG2+1 -> 9075 | WWK2: =WWI2+1 -> 9076 | WWM2: =WWK2+1 -> 9077 | WWO2: =WWM2+1 -> 9078 | WWQ2: =WWO2+1 -> 9079 | WWS2: =WWQ2+1 -> 9080 | WWU2: =WWS2+1 -> 9081 | WWW2: =WWU2+1 -> 9082 | WWY2: =WWW2+1 -> 9083 | WXA2: =WWY2+1 -> 9084 | WXC2: =WXA2+1 -> 9085 | WXE2: =WXC2+1 -> 9086 | WXG2: =WXE2+1 -> 9087 | WXI2: =WXG2+1 -> 9088 | WXK2: =WXI2+1 -> 9089 | WXM2: =WXK2+1 -> 9090 | WXO2: =WXM2+1 -> 9091 | WXQ2: =WXO2+1 -> 9092 | WXS2: =WXQ2+1 -> 9093 | WXU2: =WXS2+1 -> 9094 | WXW2: =WXU2+1 -> 9095 | WXY2: =WXW2+1 -> 9096 | WYA2: =WXY2+1 -> 9097 | WYC2: =WYA2+1 -> 9098 | WYE2: =WYC2+1 -> 9099 | WYG2: =WYE2+1 -> 9100 | WYI2: =WYG2+1 -> 9101 | WYK2: =WYI2+1 -> 9102 | WYM2: =WYK2+1 -> 9103 | WYO2: =WYM2+1 -> 9104 | WYQ2: =WYO2+1 -> 9105 | WYS2: =WYQ2+1 -> 9106 | WYU2: =WYS2+1 -> 9107 | WYW2: =WYU2+1 -> 9108 | WYY2: =WYW2+1 -> 9109 | WZA2: =WYY2+1 -> 9110 | WZC2: =WZA2+1 -> 9111 | WZE2: =WZC2+1 -> 9112 | WZG2: =WZE2+1 -> 9113 | WZI2: =WZG2+1 -> 9114 | WZK2: =WZI2+1 -> 9115 | WZM2: =WZK2+1 -> 9116 | WZO2: =WZM2+1 -> 9117 | WZQ2: =WZO2+1 -> 9118 | WZS2: =WZQ2+1 -> 9119 | WZU2: =WZS2+1 -> 9120 | WZW2: =WZU2+1 -> 9121 | WZY2: =WZW2+1 -> 9122 | XAA2: =WZY2+1 -> 9123 | XAC2: =XAA2+1 -> 9124 | XAE2: =XAC2+1 -> 9125 | XAG2: =XAE2+1 -> 9126 | XAI2: =XAG2+1 -> 9127 | XAK2: =XAI2+1 -> 9128 | XAM2: =XAK2+1 -> 9129 | XAO2: =XAM2+1 -> 9130 | XAQ2: =XAO2+1 -> 9131 | XAS2: =XAQ2+1 -> 9132 | XAU2: =XAS2+1 -> 9133 | XAW2: =XAU2+1 -> 9134 | XAY2: =XAW2+1 -> 9135 | XBA2: =XAY2+1 -> 9136 | XBC2: =XBA2+1 -> 9137 | XBE2: =XBC2+1 -> 9138 | XBG2: =XBE2+1 -> 9139 | XBI2: =XBG2+1 -> 9140 | XBK2: =XBI2+1 -> 9141 | XBM2: =XBK2+1 -> 9142 | XBO2: =XBM2+1 -> 9143 | XBQ2: =XBO2+1 -> 9144 | XBS2: =XBQ2+1 -> 9145 | XBU2: =XBS2+1 -> 9146 | XBW2: =XBU2+1 -> 9147 | XBY2: =XBW2+1 -> 9148 | XCA2: =XBY2+1 -> 9149 | XCC2: =XCA2+1 -> 9150 | XCE2: =XCC2+1 -> 9151 | XCG2: =XCE2+1 -> 9152 | XCI2: =XCG2+1 -> 9153 | XCK2: =XCI2+1 -> 9154 | XCM2: =XCK2+1 -> 9155 | XCO2: =XCM2+1 -> 9156 | XCQ2: =XCO2+1 -> 9157 | XCS2: =XCQ2+1 -> 9158 | XCU2: =XCS2+1 -> 9159 | XCW2: =XCU2+1 -> 9160 | XCY2: =XCW2+1 -> 9161 | XDA2: =XCY2+1 -> 9162 | XDC2: =XDA2+1 -> 9163 | XDE2: =XDC2+1 -> 9164 | XDG2: =XDE2+1 -> 9165 | XDI2: =XDG2+1 -> 9166 | XDK2: =XDI2+1 -> 9167 | XDM2: =XDK2+1 -> 9168 | XDO2: =XDM2+1 -> 9169 | XDQ2: =XDO2+1 -> 9170 | XDS2: =XDQ2+1 -> 9171 | XDU2: =XDS2+1 -> 9172 | XDW2: =XDU2+1 -> 9173 | XDY2: =XDW2+1 -> 9174 | XEA2: =XDY2+1 -> 9175 | XEC2: =XEA2+1 -> 9176 | XEE2: =XEC2+1 -> 9177 | XEG2: =XEE2+1 -> 9178 | XEI2: =XEG2+1 -> 9179 | XEK2: =XEI2+1 -> 9180 | XEM2: =XEK2+1 -> 9181 | XEO2: =XEM2+1 -> 9182 | XEQ2: =XEO2+1 -> 9183 | XES2: =XEQ2+1 -> 9184 | XEU2: =XES2+1 -> 9185 | XEW2: =XEU2+1 -> 9186 | XEY2: =XEW2+1 -> 9187 | XFA2: =XEY2+1 -> 9188 | XFC2: =XFA2+1 -> 9189
